Workbook

Sheet SolCotizacion
B1: Solicitud de Cotización Acuerdo Marco ETP
B3: Versión: 39 | C3: 2019-09-05
B4: Información de la Entidad Compradora
B6: Nombre de la Entidad | E6: DIRECCIÓN NACIONAL DE DERECHO DE AUTOR | K6: NIT | M6: 800185929-2
B8: Dirección de la Entidad | E8: CALLE 28 # 13A-15 PISO 17 | K8: Correo de contacto | M8: gloria.trivinog@derechodeautor.gov.co
B10: Municipio | E10: BOGOTA | K10: Teléfono de contacto | M10: 3418177 Ext. 121
B12: Nombre funcionario Comprador | E12: GLORIA RAQUEL TRIVIÑO GUZMÁN
B16: Solicitud de Cotización
B18: Segmento | E18: Segmento 1 | I18: Recuerde que los datos de municipio y dirección de prestación del servicio, deben ser donde efectivamente se preste el servicio por parte del Proveedor. Además, que la cantidad de servicios no debe superar la cantidad de productos.
B20: Productos
A22: *Libros, revistas, cartillas y/o catálogo Segmento 1. | B22: =E18 -> Segmento 1
B24: Cantidad de filas: | H24: El IVA, para los ítems que aplique, se encuentra incluido en el valor cotizado por el proveedor y en consecuencia en el valor de la Orden de Compra.
B25: 1 | H25: Es responsabilidad del Proveedor discriminar el valor que corresponda al IVA por cada ítem en las facturas.
B27: Item | C27: Código Catálogo | D27: Tipo | E27: Descripción del ETP | J27: Unidad | K27: Región | L27: Departamento | M27: Municipio | N27: Dirección de entrega | P27: cantidad
A28: =E28&L28 -> All in one 1.5Bogotá | B28: 1 | C28: S1_ETP_13 | D28: =VLOOKUP($C28,Consolidado!$B:$R,3,0) -> ETP | E28: =VLOOKUP($C28,Consolidado!$B:$R,5,0) -> All in one 1.5 | J28: =VLOOKUP($C28,Consolidado!$B:$R,9,0) -> unidad | K28: =VLOOKUP($C28,Consolidado!$B:$R,8,0) -> 1 | L28: Bogotá | M28: Bogotá | N28: CALLE 28 No. 13A-15 Piso 17 | P28: 35
A29: =E29&L29 -> Teclado y mouse alámbrico 1.7Bogotá | B29: 2 | C29: S1_ETP (accesorio)_19 | D29: =VLOOKUP($C29,Consolidado!$B:$R,3,0) -> ETP (accesorio) | E29: =VLOOKUP($C29,Consolidado!$B:$R,5,0) -> Teclado y mouse alámbrico 1.7 | J29: =VLOOKUP($C29,Consolidado!$B:$R,9,0) -> unidad | K29: =VLOOKUP($C29,Consolidado!$B:$R,8,0) -> NA | L29: Bogotá | M29: Bogotá | N29: CALLE 28 No. 13A-15 Piso 17 | P29: 30
A30: =E30&L30 -> Replicador de puertos 1.11Bogotá | B30: 3 | C30: S1_ETP (accesorio)_23 | D30: =VLOOKUP($C30,Consolidado!$B:$R,3,0) -> ETP (accesorio) | E30: =VLOOKUP($C30,Consolidado!$B:$R,5,0) -> Replicador de puertos 1.11 | J30: =VLOOKUP($C30,Consolidado!$B:$R,9,0) -> unidad | K30: =VLOOKUP($C30,Consolidado!$B:$R,8,0) -> NA | L30: Bogotá | M30: Bogotá | N30: CALLE 28 No. 13A-15 Piso 17 | P30: 30
A31: =E31&L31 -> Garantía extendida 1.5Bogotá | B31: 4 | C31: S1_Servicio_42 | D31: =VLOOKUP($C31,Consolidado!$B:$R,3,0) -> Servicio | E31: =VLOOKUP($C31,Consolidado!$B:$R,5,0) -> Garantía extendida 1.5 | J31: =VLOOKUP($C31,Consolidado!$B:$R,9,0) -> ETP/año | K31: =VLOOKUP($C31,Consolidado!$B:$R,8,0) -> NA | L31: Bogotá | M31: Bogotá | N31: CALLE 28 No. 13A-15 Piso 17 | P31: 35
B32: 1. Si requiere agregue o elimine fila
B35: Gravámenes adicionales*
B36: Si los hay, indique los gravámenes adicionales a los que está sujeta la Orden de Compra. Son gravámenes adicionales por ejemplo; estampillas y demás impuestos territoriales. Los impuestos como ICA y retención en la fuente NO son gravámenes adicionales.
B37: Gravámenes adicionales (estampillas)
B38: No | C38: Descripción | H38: Porcentaje
B39: 1
F40: Total porcentaje: | H40: =SUM(H39:H39) -> 0
D41: Filas a agregar o eliminar Gravámenes:
D42: 1

Sheet Anexo Técnico
A1: DATOS DE CONTACTO TECNICO DE LA ENTIDAD
A2: Nombre | B2: CRISTIAN RENNÉ JAIMES VERA
A3: Correo Electronico | B3: cristian.jaimes@derechodeautor.gov.co
A4: Telefono | B4: 3418177 | C4: 142
A5: Celular | B5: 3214180706
A6: Cargo | B6: Ingeniero de Sistemas - Profesional Universitario
A8: ENTREGA Y PRUEBA DE ETP
A9: Ciudad | B9: BOGOTÁ
A10: Dirección | B10: CALLE 28 # 13A-15 PISO 17
A11: Horario | B11: 8:30 AM A 5:30 P.M.
A13: MANTENIMIENTOS PREVENTIVOS
A14: Cantidad | B14: N/A
A15: Frecuencia de mantenimientos (meses) | B15: N/A
A16: Fechas de realización | B16: N/A

Sheet ResumenCotizacion
B1: Solicitud de Cotización Acuerdo Marco ETP
B3: =SolCotizacion!B3 -> Versión: 39 | C3: =SolCotizacion!C3 -> 2019-09-05
B4: Información de la Entidad Compradora
B6: Nombre de la Entidad | E6: DIRECCIÓN NACIONAL DE DERECHO DE AUTOR | K6: NIT | M6: 800185929-2
B8: Dirección de la Entidad | E8: CALLE 28 # 13A-15 PISO 17 | K8: Correo de contacto | M8: gloria.trivinog@derechodeautor.gov.co
B10: Municipio | E10: BOGOTA | K10: Teléfono de contacto | M10: 3418177 Ext. 121
B12: Nombre funcionario Comprador | E12: GLORIA RAQUEL TRIVIÑO GUZMÁN
B16: Solicitud de Cotización
B18: Segmento | E18: Segmento 1
B20: Productos
A22: *Libros, revistas, cartillas y/o catálogo Segmento 1. | B22: =E18 -> Segmento 1
B24: Cantidad de filas:
B25: 1
B27: Item | C27: Código Catálogo | D27: Tipo | E27: Descripción del ETP | J27: Unidad | K27: Región | L27: Departamento | M27: Municipio | N27: Dirección de entrega | P27: cantidad | Q27: Precio Unitario | R27: Precio Unitario + Gravamen | S27: Precio Total
A28: All in one 1.5Bogotá | B28: 1 | C28: S1_ETP_13 | D28: ETP | E28: All in one 1.5 | J28: unidad | K28: 1 | L28: Bogotá | M28: Bogotá | N28: CALLE 28 No. 13A-15 Piso 17 | P28: 35 | Q28: =VLOOKUP("Nex computer S.A."&$C28,temp!$A:$W,14,0) -> 3326352 | R28: =ROUND(Q28/(1-(VLOOKUP("Total porcentaje:",$F:$H,3))),2) -> 3326352 | S28: =P28*R28 -> 116422320
A29: Teclado y mouse alámbrico 1.7Bogotá | B29: 2 | C29: S1_ETP (accesorio)_19 | D29: ETP (accesorio) | E29: Teclado y mouse alámbrico 1.7 | J29: unidad | K29: NA | L29: Bogotá | M29: Bogotá | N29: CALLE 28 No. 13A-15 Piso 17 | P29: 30 | Q29: =VLOOKUP("Nex computer S.A."&$C29,temp!$A:$W,14,0) -> 81696 | R29: =ROUND(Q29/(1-(VLOOKUP("Total porcentaje:",$F:$H,3))),2) -> 81696 | S29: =P29*R29 -> 2450880
A30: Replicador de puertos 1.11Bogotá | B30: 3 | C30: S1_ETP (accesorio)_23 | D30: ETP (accesorio) | E30: Replicador de puertos 1.11 | J30: unidad | K30: NA | L30: Bogotá | M30: Bogotá | N30: CALLE 28 No. 13A-15 Piso 17 | P30: 30 | Q30: =VLOOKUP("Nex computer S.A."&$C30,temp!$A:$W,14,0) -> 231840 | R30: =ROUND(Q30/(1-(VLOOKUP("Total porcentaje:",$F:$H,3))),2) -> 231840 | S30: =P30*R30 -> 6955200
A31: Garantía extendida 1.5Bogotá | B31: 4 | C31: S1_Servicio_42 | D31: Servicio | E31: Garantía extendida 1.5 | J31: ETP/año | K31: NA | L31: Bogotá | M31: Bogotá | N31: CALLE 28 No. 13A-15 Piso 17 | P31: 35 | Q31: =VLOOKUP("Nex computer S.A."&$C31,temp!$A:$W,14,0) -> 51552.02976 | R31: =ROUND(Q31/(1-(VLOOKUP("Total porcentaje:",$F:$H,3))),2) -> 51552.03 | S31: =P31*R31 -> 1804321.05
B32: 1. Si requiere agregue o elimine fila | R32: Valor Total | S32: =ROUND(SUM($S$28:$S$31),2) -> 127632721
B35: Gravámenes adicionales*
B36: Si los hay, indique los gravámenes adicionales a los que está sujeta la Orden de Compra. Son gravámenes adicionales por ejemplo; estampillas y demás impuestos territoriales. Los impuestos como ICA y retención en la fuente NO son gravámenes adicionales.
B37: Gravámenes adicionales (estampillas)
B38: No | C38: Descripción | H38: Porcentaje
B39: 1
F40: Total porcentaje: | H40: =SUM(H39:H39) -> 0
D41: Filas a agregar o eliminar Gravámenes:
D42: 1

Sheet Cotizacion
B1: Solicitud de Cotización Acuerdo Marco ETP
B3: =SolCotizacion!B3 -> Versión: 39 | C3: =SolCotizacion!C3 -> 2019-09-05
B4: Información de la Entidad Compradora
B6: Nombre de la Entidad | E6: DIRECCIÓN NACIONAL DE DERECHO DE AUTOR | K6: NIT | M6: 800185929-2
B8: Dirección de la Entidad | E8: CALLE 28 # 13A-15 PISO 17 | K8: Correo de contacto | M8: gloria.trivinog@derechodeautor.gov.co
B10: Municipio | E10: BOGOTA | K10: Teléfono de contacto | M10: 3418177 Ext. 121
B12: Nombre funcionario Comprador | E12: GLORIA RAQUEL TRIVIÑO GUZMÁN
B16: Solicitud de Cotización
B18: Segmento | E18: Segmento 1
B20: Productos
A22: *Libros, revistas, cartillas y/o catálogo Segmento 1. | B22: =E18 -> Segmento 1
B24: Cantidad de filas:
B25: 1 | L25: Proveedor
B27: Item | C27: Código Catálogo | D27: Tipo | E27: Descripción del ETP | J27: Unidad | K27: Región | L27: Departamento | M27: Municipio | N27: Dirección de entrega | P27: cantidad | Q27: Precio Unitario | R27: Precio Unitario + Gravamen | S27: Descuento adicional | T27: Precio con Descuento | U27: Precio Total
A28: All in one 1.5Bogotá | B28: 1 | C28: S1_ETP_13 | D28: ETP | E28: All in one 1.5 | J28: unidad | K28: 1 | L28: Bogotá | M28: Bogotá | N28: CALLE 28 No. 13A-15 Piso 17 | P28: 35 | Q28: =VLOOKUP($N$25&$C28,temp!$A:$W,14,0) ->  | R28: =ROUND(Q28/(1-(VLOOKUP("Total porcentaje:",$F:$H,3))),2) ->  | T28: =ROUND(R28*(1-S28),2) ->  | U28: =P28*T28 -> 
A29: Teclado y mouse alámbrico 1.7Bogotá | B29: 2 | C29: S1_ETP (accesorio)_19 | D29: ETP (accesorio) | E29: Teclado y mouse alámbrico 1.7 | J29: unidad | K29: NA | L29: Bogotá | M29: Bogotá | N29: CALLE 28 No. 13A-15 Piso 17 | P29: 30 | Q29: =VLOOKUP($N$25&$C29,temp!$A:$W,14,0) ->  | R29: =ROUND(Q29/(1-(VLOOKUP("Total porcentaje:",$F:$H,3))),2) ->  | T29: =ROUND(R29*(1-S29),2) ->  | U29: =P29*T29 -> 
A30: Replicador de puertos 1.11Bogotá | B30: 3 | C30: S1_ETP (accesorio)_23 | D30: ETP (accesorio) | E30: Replicador de puertos 1.11 | J30: unidad | K30: NA | L30: Bogotá | M30: Bogotá | N30: CALLE 28 No. 13A-15 Piso 17 | P30: 30 | Q30: =VLOOKUP($N$25&$C30,temp!$A:$W,14,0) ->  | R30: =ROUND(Q30/(1-(VLOOKUP("Total porcentaje:",$F:$H,3))),2) ->  | T30: =ROUND(R30*(1-S30),2) ->  | U30: =P30*T30 -> 
A31: Garantía extendida 1.5Bogotá | B31: 4 | C31: S1_Servicio_42 | D31: Servicio | E31: Garantía extendida 1.5 | J31: ETP/año | K31: NA | L31: Bogotá | M31: Bogotá | N31: CALLE 28 No. 13A-15 Piso 17 | P31: 35 | Q31: =VLOOKUP($N$25&$C31,temp!$A:$W,14,0) ->  | R31: =ROUND(Q31/(1-(VLOOKUP("Total porcentaje:",$F:$H,3))),2) ->  | T31: =ROUND(R31*(1-S31),2) ->  | U31: =P31*T31 -> 
B32: 1. Si requiere agregue o elimine fila | T32: Valor Total | U32: =ROUND(SUM($U$28:$U$31),2) -> 
B35: Gravámenes adicionales*
B36: Si los hay, indique los gravámenes adicionales a los que está sujeta la Orden de Compra. Son gravámenes adicionales por ejemplo; estampillas y demás impuestos territoriales. Los impuestos como ICA y retención en la fuente NO son gravámenes adicionales.
B37: Gravámenes adicionales (estampillas)
B38: No | C38: Descripción | H38: Porcentaje
B39: 1
F40: Total porcentaje: | H40: =SUM(H39:H39) -> 0
D41: Filas a agregar o eliminar Gravámenes:
D42: 1

Sheet Listas (hidden)
A1: Segmento | B1: Region | C1: Marca | D1: ProductoInicial | E1: Producto | F1: Proveedores | G1: Reg1Departamento | H1: Reg2Departamento | I1: Reg1DepartamentoBogotá | J1: Reg1DepartamentoCundinamarca | K1: Reg2DepartamentoAntioquia | L1: Reg2DepartamentoAtlántico | M1: Reg2DepartamentoBolívar | N1: Reg2DepartamentoBoyacá | O1: Reg2DepartamentoCaldas | P1: Reg2DepartamentoCasanare | Q1: Reg2DepartamentoCauca | R1: Reg2DepartamentoCórdoba | S1: Reg2DepartamentoCundinamarca | T1: Reg2DepartamentoHuila | U1: Reg2DepartamentoMagdalena | V1: Reg2DepartamentoMeta | W1: Reg2DepartamentoNariño | X1: Reg2DepartamentoNortedeSantander | Y1: Reg2DepartamentoQuindío | Z1: Reg2DepartamentoRisaralda | AA1: Reg2DepartamentoSantander | AB1: Reg2DepartamentoSucre | AC1: Reg2DepartamentoTolima | AD1: Reg2DepartamentoValledelCauca | AE1: Reg1DepartamentoRevisarAnexo | AF1: Reg2DepartamentoRevisarAnexo
A2: Segmento 1 | B2: A | C2: Brother | D2: S1_ETP_1 | E2: S1_ETP_1 | F2: AconpiExpress S.A.S. | G2: Bogotá | H2: Antioquia | I2: Bogotá | J2: Bojacá | K2: Abejorral | L2: Baranoa | M2: Cartagena | N2: Almeida | O2: Manizales | P2: Nunchía | Q2: Popayán | R2: Cereté | S2: Agua de Dios | T2: Neiva | U2: Santa Marta | V2: Acacías | W2: Pasto | X2: Cúcuta | Y2: Armenia | Z2: Pereira | AA2: Bucaramanga | AB2: Sincelejo | AC2: Ibagué | AD2: Cali | AE2: Revisar Anexo | AF2: Revisar Anexo
A3: Segmento 2 | B3: B | C3: Canon | D3: S1_ETP_2 | E3: S1_ETP_2 | F3: Colombiana de Software y Hardware Colsof S.A. | G3: Cundinamarca | H3: Atlántico | J3: Cajicá | K3: Abriaquí | L3: Campo de la Cruz | M3: Turbaco | N3: Aquitania | O3: Villamaría | P3: Paya | Q3: El Tambo | R3: Montería | S3: Albán | T3: Campoalegre | U3: Ciénaga | V3: Cumaral | W3: Nariño | X3: Los Patios | Y3: Circasia | Z3: Dosquebradas | AA3: Floridablanca | AB3: Sampués | AC3: Valle de San Juan | AD3: Palmira
A4: Segmento 3 | B4: C | C4: Data Card | D4: S1_ETP_3 | E4: S1_ETP_3 | F4: Computel System S.A.S. | G4: Revisar Anexo | H4: Bolívar | J4: Chía | K4: Alejandría | L4: Candelaria | M4: Arjona | N4: Arcabuco | O4: Anserma | P4: San Luis de Palenque | Q4: Piendamó - Tunía | R4: Puerto Escondido | S4: Anapoima | T4: Palermo | U4: Puebloviejo | V4: Restrepo | W4: Sandoná | X4: Villa del Rosario | Y4: Salento | Z4: La Virginia | AA4: Girón | AB4: Palmito | AC4: San Luis | AD4: Yumbo
A5: Segmento 4 | C5: Dell | D5: S1_ETP_4 | E5: S1_ETP_4 | F5: Controles Empresariales Ltda. | H5: Boyacá | J5: Cogua | K5: Amagá | L5: Galapa | M5: Turbaná | N5: Belén | O5: Palestina | P5: Orocué | Q5: Timbío | R5: San Pelayo | S5: Anolaima | T5: Aipe | U5: El Retén | V5: El Calvario | W5: Ancuya | X5: San Cayetano | Y5: Montenegro | Z5: Marsella | AA5: Piedecuesta | AB5: Tolú | AC5: Piedras | AD5: Jamundí
A6: Segmento 5 | C6: Epson | D6: S1_ETP_5 | E6: S1_ETP_5 | F6: I 3NET S.A.S. | H6: Caldas | J6: Cota | K6: Amalfi | L6: Juan de Acosta | M6: Santa Rosa | N6: Berbeo | O6: Chinchiná | P6: Maní | Q6: Cajibío | R6: San Carlos | S6: Apulo | T6: Rivera | V6: Puerto López | W6: Yacuanquer | X6: El Zulia | Y6: Calarcá | Z6: Santa Rosa de Cabal | AA6: Aguada | AB6: Buenavista | AC6: Flandes | AD6: Florida
A7: Segmento 6 | C7: HP | D7: S1_ETP_6 | E7: S1_ETP_6 | F7: Key Market S.A.S. | H7: Casanare | J7: Facatativá | K7: Andes | L7: Luruaco | M7: Santa Catalina | N7: Betéitiva | O7: Neira | P7: Aguazul | R7: Planeta Rica | S7: Arbeláez | T7: Tello | V7: Puerto Gaitán | W7: Funes | X7: Puerto Santander | Y7: La Tebaida | AA7: Albania | AB7: Caimito | AC7: Espinal | AD7: Pradera
C8: Konica | D8: S1_ETP_7 | E8: S1_ETP_7 | F8: Microhard S.A.S. | H8: Cauca | J8: Funza | K8: Angelópolis | L8: Manatí | M8: Clemencia | N8: Boavita | O8: Marulanda | P8: Yopal | R8: Tierralta | S8: Beltrán | T8: Baraya | V8: San Carlos de Guaroa | W8: Tangua | X8: Ábrego | AA8: Aratoca | AB8: Chalán | AC8: Coello | AD8: Candelaria
C9: Kyocera | D9: S1_ETP_8 | E9: S1_ETP_8 | F9: Micronet S.A.S. | H9: Córdoba | J9: Gachancipá | K9: Angostura | L9: Palmar de Varela | M9: Maria La Baja | N9: Boyacá | R9: Valencia | S9: Bituima | T9: Villavieja | V9: Villavicencio | W9: Imués | X9: Arboledas | AA9: Barbosa | AB9: Coloso | AC9: Cajamarca | AD9: Dagua
C10: LEXMARK | D10: S1_ETP_9 | E10: S1_ETP_9 | F10: Nex computer S.A. | H10: Cundinamarca | J10: La Calera | K10: Anorí | L10: Piojó | M10: Mahates | N10: Briceño | R10: Canalete | S10: Cabrera | W10: Chachaguí | X10: Bochalema | AA10: Barichara | AB10: Corozal | AC10: Anzoátegui | AD10: Puerto Tejada
C11: Oki | D11: S1_ETP_10 | E11: S1_ETP_10 | F11: Oficom.co Ltda. | H11: Huila | J11: Madrid | K11: Anzá | L11: Polonuevo | M11: San Estanislao | N11: Buenavista | R11: Los Cordobas | S11: Cachipay | W11: Buesaco | X11: Bucarasica | AA11: Betulia | AB11: Coveñas | AC11: Alvarado | AD11: Santander de Quilichao
C12: Ricoh | D12: S1_ETP_11 | E12: S1_ETP_11 | F12: Origin IT S.A.S. | H12: Magdalena | J12: Mosquera | K12: Arboletes | L12: Ponedera | M12: Villanueva | N12: Busbanzá | S12: Caparrapí | W12: El Tambo | X12: Cáchira | AA12: Bolívar | AB12: el Roble | AC12: Alpujarra | AD12: Villa Rica
C13: Samsung | D13: S1_ETP_12 | E13: S1_ETP_12 | F13: P&P Systems Colombia S.A.S. | H13: Meta | J13: Nemocón | K13: Argelia | L13: Puerto Colombia | N13: Caldas | S13: Cáqueza | W13: La Florida | X13: Cácota | AA13: Cabrera | AB13: Galeras | AC13: Alvarado
C14: Sharp | D14: S1_ETP_13 | E14: S1_ETP_13 | F14: Pear Solutions S.A.S. | H14: Nariño | J14: Sibaté | K14: Armenia | L14: Repelón | N14: Campohermoso | S14: Carmen de Carupa | W14: Potosí | X14: Chinácota | AA14: California | AB14: Guaranda | AC14: Ambalema
C15: Toshiba | D15: S1_ETP_14 | E15: S1_ETP_14 | F15: Prointech Colombia S.A.S. | H15: Norte de Santander | J15: Soacha | K15: Barbosa | L15: Sabanagrande | N15: Cerinza | S15: Chaguaní | W15: Ipiales | X15: Chitagá | AA15: Capitanejo | AB15: la Unión | AC15: Anzoátegui
C16: Xerox | D16: S1_ETP_15 | E16: S1_ETP_15 | F16: Redcomputo Ltda. | H16: Quindío | J16: Sopó | K16: Belmira | L16: Sabanalarga | N16: Chinavita | S16: Chipaque | W16: Ospina | X16: Convención | AA16: Carcasí | AB16: los Palmitos | AC16: Armero Guayabal
C17: Zebra | D17: S1_ETP_16 | E17: S1_ETP_16 | F17: Selcom ingeniería S.A.S. | H17: Risaralda | J17: Tabio | K17: Betania | L17: Santa Lucía | N17: Chiquinquirá | S17: Choachí | W17: Arboleda | X17: Cucutilla | AA17: Cepitá | AB17: Majagual | AC17: Ataco
D18: S1_ETP_17 | E18: S1_ETP_17 | F18: Sistetronics ltda. | H18: Santander | J18: Tenjo | K18: Betulia | L18: Santo Tomás | N18: Chíquiza | S18: Chocontá | W18: El Tablón | X18: Durania | AA18: Cerrito | AB18: Morroa | AC18: Cajamarca
D19: S1_ETP_18 | E19: S1_ETP_18 | F19: Sumimas S.A.S. | H19: Sucre | J19: Tocancipá | K19: Briceño | L19: Suan | N19: Chiscas | S19: Cucunubá | X19: el Carmen | AA19: Charalá | AB19: Ovejas | AC19: Carmen de Apicalá
D20: S1_ETP_67 | E20: S1_ETP (accesorio)_19 | F20: Uniples S.A. | H20: Tolima | J20: Zipaquirá | K20: Buriticá | L20: Tubará y Usiacurí | N20: Chita | S20: el Colegio | X20: el Tarra | AA20: Charta | AB20: Palmito | AC20: Casabianca
D21: S1_ETP_68 | E21: S1_ETP (accesorio)_20 | F21: UT CCE Tecnológico | H21: Valle del Cauca | K21: Cáceres | L21: Barranquilla | N21: Chitaraque | S21: el Peñón | X21: el Zulia | AA21: Chima | AB21: Sampués | AC21: Chaparral
D22: S1_ETP_69 | E22: S1_ETP (accesorio)_21 | H22: Revisar Anexo | K22: Caicedo | L22: Soledad | N22: Chivatá | S22: el Rosal | X22: Gramalote | AA22: Chipatá | AB22: San Benito Abad | AC22: Coello
E23: S1_ETP (accesorio)_22 | K23: Caldas | L23: Galapa | N23: Chivor | S23: Fómeque | X23: Hacarí | AA23: Cimitarra | AB23: San Juan de Betulia | AC23: Coyaima
E24: S1_ETP (accesorio)_23 | K24: Campamento | L24: Puerto Colombia | N24: Ciénega | S24: Fosca | X24: Herrán | AA24: Concepción | AB24: San Luis de Sincé | AC24: Cunday
E25: S1_Servicio_28 | K25: Cañasgordas | L25: Malambo | N25: Cómbita | S25: Fúquene | X25: la Esperanza | AA25: Confines | AB25: San Marcos | AC25: Dolores
E26: S1_Servicio_31 | K26: Caracolí | N26: Coper | S26: Gachalá | X26: la Playa | AA26: Contratación | AB26: San Onofre | AC26: Espinal
E27: S1_Servicio_42 | K27: Caramanta | N27: Corrales | S27: Gachetá | X27: Labateca | AA27: Coromoro | AB27: San Pedro | AC27: Falan
E28: S1_Servicio_43 | K28: Carepa | N28: Covarachía | S28: Gama | X28: los Patios | AA28: Curití | AB28: Santiago de Tolú | AC28: Flandes
E29: S1_Servicio_46 | K29: Carolina | N29: Cubará | S29: Granada | X29: Lourdes | AA29: el Carmen de Chucurí | AB29: Sucre | AC29: Fresno
E30: S1_ETP_67 | K30: Caucasia | N30: Cucaita | S30: Guachetá | X30: Mutiscua | AA30: el Guacamayo | AB30: Tolú Viejo | AC30: Guamo
E31: S1_ETP_68 | K31: Chigorodó | N31: Cuítiva | S31: Guaduas | X31: Ocaña | AA31: el Peñón | AC31: Herveo
E32: S1_ETP_69 | K32: Cisneros | N32: el Cocuy | S32: Guasca | X32: Pamplona | AA32: el Playón | AC32: Honda
K33: Ciudad Bolívar | N33: Duitama | S33: Guataquí | X33: Pamplonita | AA33: Encino | AC33: Icononzo
K34: Cocorná | N34: el Espino | S34: Guatavita | X34: Puerto Santander | AA34: Enciso | AC34: Lérida
K35: Concepción | N35: Firavitoba | S35: Guayabal de Síquima | X35: Ragonvalia | AA35: Florián | AC35: Líbano
K36: Concordia | N36: Floresta | S36: Guayabetal | X36: Salazar | AA36: Galán | AC36: Melgar
K37: Copacabana | N37: Gachantivá | S37: Gutiérrez | X37: San Calixto | AA37: Gámbita | AC37: Murillo
K38: Dabeiba | N38: Gámeza | S38: Jerusalén | X38: San Cayetano | AA38: Guaca | AC38: Natagaima
K39: Donmatías | N39: Garagoa | S39: Junín | X39: Santiago | AA39: Guadalupe | AC39: Ortega
K40: Ebéjico | N40: Guacamayas | S40: la Mesa | X40: Sardinata | AA40: Guapotá | AC40: Palocabildo
K41: El Bagre | N41: Guateque | S41: la Palma | X41: Silos | AA41: Guavatá | AC41: Piedras
K42: El Carmen de Viboral | N42: Guayatá | S42: la Peña | X42: Teorama | AA42: Güepsa | AC42: Planadas
K43: El Santuario | N43: Güicán | S43: la Vega | X43: Tibú | AA43: Hato | AC43: Prado
K44: Entrerríos | N44: Iza | S44: Lenguazaque | X44: Toledo | AA44: Jesús María | AC44: Purificación
K45: Fredonia | N45: Jenesano | S45: Machetá | X45: Villa Caro | AA45: Jordán | AC45: Rioblanco
K46: Frontino | N46: Jericó | S46: Manta | X46: Villa del Rosario | AA46: la Belleza | AC46: Roncesvalles
K47: Giraldo | N47: la Capilla | S47: Medina | AA47: la Paz | AC47: Rovira
K48: Girardota | N48: la Uvita | S48: Nariño | AA48: Landázuri | AC48: Saldaña
K49: Gómez Plata | N49: la Victoria | S49: Nilo | AA49: Lebrija | AC49: San Antonio
K50: Granada | N50: Labranzagrande | S50: Nimaima | AA50: los Santos | AC50: San Luis
K51: Guadalupe | N51: Macanal | S51: Nocaima | AA51: Macaravita | AC51: San Sebastián de Mariquita
K52: Guarne | N52: Maripí | S52: Pacho | AA52: Málaga | AC52: Santa Isabel
K53: Guatapé | N53: Miraflores | S53: Paime | AA53: Matanza | AC53: Suárez
K54: Heliconia | N54: Mongua | S54: Pandi | AA54: Mogotes | AC54: Valle de San Juan
K55: Hispania | N55: Monguí | S55: Paratebueno | AA55: Molagavita | AC55: Venadillo
K56: Ituango | N56: Moniquirá | S56: Pasca | AA56: Ocamonte | AC56: Villahermosa
K57: Jardín | N57: Motavita | S57: Puerto Salgar | AA57: Oiba | AC57: Villarrica
K58: Jericó | N58: Muzo | S58: Pulí | AA58: Onzaga
K59: la Ceja | N59: Nobsa | S59: Quebradanegra | AA59: Palmar
K60: la Estrella | N60: Nuevo Colón | S60: Quetame | AA60: Palmas del Socorro
K61: la Pintada | N61: Oicatá | S61: Quipile | AA61: Páramo
K62: la Unión | N62: Otanche | S62: Ricaurte | AA62: Pinchote
K63: Liborina | N63: Pachavita | S63: San Antonio del Tequendama | AA63: Puente Nacional
K64: Maceo | N64: Páez | S64: San Bernardo | AA64: Puerto Parra
K65: Marinilla | N65: Paipa | S65: San Cayetano | AA65: Puerto Wilches
K66: Montebello | N66: Pajarito | S66: San Francisco | AA66: Rionegro
K67: Murindó | N67: Panqueba | S67: San Juan de Rioseco | AA67: Sabana de Torres
K68: Mutatá | N68: Pauna | S68: Sasaima | AA68: San Andrés
K69: Nariño | N69: Paya | S69: Sesquilé | AA69: San Benito
K70: Nechí | N70: Paz de Río | S70: Silvania | AA70: San Gil
K71: Necoclí | N71: Pesca | S71: Simijaca | AA71: San Joaquín
K72: Olaya | N72: Pisba | S72: Subachoque | AA72: San José de Miranda
K73: Peñol | N73: Puerto Boyacá | S73: Suesca | AA73: San Miguel
K74: Peque | N74: Quípama | S74: Supatá | AA74: San Vicente de Chucurí
K75: Pueblorrico | N75: Ramiriquí | S75: Susa | AA75: Santa Bárbara
K76: Puerto Berrío | N76: Ráquira | S76: Sutatausa | AA76: Santa Helena del Opón
K77: Puerto Nare | N77: Rondón | S77: Tausa | AA77: Simacota
K78: Puerto Triunfo | N78: Saboyá | S78: Tena | AA78: Socorro
K79: Remedios | N79: Sáchica | S79: Tibacuy | AA79: Suaita
K80: Retiro | N80: Samacá | S80: Tibirita | AA80: Sucre
K81: Sabanalarga | N81: San Eduardo | S81: Tocaima | AA81: Suratá
K82: Salgar | N82: San José de Pare | S82: Topaipí | AA82: Tona
K83: San Andrés De Cuerquía | N83: San Luis de Gaceno | S83: Ubalá | AA83: Valle de San José
K84: San Carlos | N84: San Mateo | S84: Ubaque | AA84: Vélez
K85: San Francisco | N85: San Miguel de Sema | S85: Une | AA85: Vetas
K86: San Jerónimo | N86: San Pablo de Borbur | S86: Útica | AA86: Villanueva
K87: San José de la Montaña | N87: Santa María | S87: Venecia | AA87: Zapatoca
K88: San Juan de Urabá | N88: Santa Rosa de Viterbo | S88: Vergara
K89: San Luis | N89: Santa Sofía | S89: Vianí
K90: San Pedro de los Milagros | N90: Santana | S90: Villa De San Diego de Ubaté
K91: San Pedro de Urabá | N91: Sativanorte | S91: Villagómez
K92: San Rafael | N92: Sativasur | S92: Villapinzón
K93: San Roque | N93: Siachoque | S93: Villeta
K94: San Vicente Ferrer | N94: Soatá | S94: Viotá
K95: Santa Bárbara | N95: Socha | S95: Yacopí
K96: Santa Fé de Antioquia | N96: Socotá | S96: Zipacón
K97: Santa Rosa de Osos | N97: Sogamoso
K98: Santo Domingo | N98: Somondoco
K99: Segovia | N99: Sora
K100: Sonsón | N100: Soracá
K101: Sopetrán | N101: Sotaquirá
K102: Támesis | N102: Susacón
K103: Tarazá | N103: Sutamarchán
K104: Tarso | N104: Sutatenza
K105: Titiribí | N105: Tasco
K106: Toledo | N106: Tenza
K107: Uramita | N107: Tibaná
K108: Urrao | N108: Tibasosa
K109: Valdivia | N109: Tinjacá
K110: Valparaíso | N110: Tipacoque
K111: Vegachí | N111: Toca
K112: Venecia | N112: Togüí
K113: Vigía del Fuerte | N113: Tópaga
K114: Yalí | N114: Tota
K115: Yarumal | N115: Tununguá
K116: Yolombó | N116: Turmequé
K117: Yondó y Zaragoza | N117: Tuta
K118: Caldas | N118: Tutazá
K119: La Estrella | N119: Úmbita
K120: Itagüí | N120: Ventaquemada
K121: Sabaneta | N121: Villa de Leyva
K122: Bello | N122: Viracachá
K123: Copacabana | N123: Zetaquira
K124: Girardota | N124: Chiquinquirá
K125: Barbosa | N125: Cómbita
K126: Envigado | N126: Duitama
K127: Medellín | N127: Villa de Leyva
K128: Armenia | N128: Cucaita
N129: Sora
N130: Tinjacá
N131: Ráquira
N132: Samacá
N133: Sáchica
N134: Soracá
N135: Ciénega
N136: Boyacá Boyacá
N137: Jenesano
N138: Ramiriquí
N139: Miraflores
N140: Tibaná
N141: Garagoa
N142: Oicatá
N143: Chivatá
N144: Sibaté
N145: Siachoque
N146: Toca
N147: Tuta
N148: Santa Rosa de Viterbo
N149: Nobsa
N150: Belén
N151: Paz del Río
N152: Isa
N153: Pesca
N154: Monguí
N155: Mongua
N156: Tópaga
N157: Corrales
N158: Firavitoba
N159: Moniquirá
N160: Sogamoso
N161: Paipa
N162: Ventaquemada
N163: Tunja

Sheet Consolidado (hidden)
A1: llave | B1: Cod_Cat | C1: Consecutivo | D1: Tipo | E1: Productividad de equipo | F1: ETP/servicio | G1: Dependencia | H1: Segmento | I1: Región | J1: Unidad | K1: Unidad_TVEC | L1: Proveedor | M1: Garantia Porcentaje | N1: Rango 1 | O1: Rango 2 | P1: Activo | Q1: elegible | R1: id | S1: Garantia Anticipada
A2: =L2&B2 -> Sumimas S.A.S.S1_ETP_1 | B2: ="S"&H2&"_"&D2&"_"&C2 -> S1_ETP_1 | C2: 1 | D2: ETP | E2: =F2&I2 -> Computador de escritorio 1.11 | F2: Computador de escritorio 1.1 | G2: Computador de escritorio 1.1 | H2: 1 | I2: 1 | J2: unidad | K2: Und | L2: Sumimas S.A.S. | N2: 2043155.136 | O2: 2022780.816 | P2: 1 | Q2: 1 | R2: 1
A3: Sumimas S.A.S.S1_ETP_2 | B3: S1_ETP_2 | C3: 2 | D3: ETP | E3: Computador de escritorio 1.12 | F3: Computador de escritorio 1.1 | G3: Computador de escritorio 1.1 | H3: 1 | I3: 2 | J3: unidad | K3: Und | L3: Sumimas S.A.S. | N3: 2053242.384 | O3: 2032766.496 | P3: 1 | Q3: 1 | R3: 3
A4: Sumimas S.A.S.S1_ETP_3 | B4: S1_ETP_3 | C4: 3 | D4: ETP | E4: Computador de escritorio 1.13 | F4: Computador de escritorio 1.1 | G4: Computador de escritorio 1.1 | H4: 1 | I4: 3 | J4: unidad | K4: Und | L4: Sumimas S.A.S. | N4: 2043155.136 | O4: 2022780.816 | P4: 1 | Q4: 1 | R4: 5
A5: Sumimas S.A.S.S1_ETP_4 | B5: S1_ETP_4 | C5: 4 | D5: ETP | E5: Computador de escritorio 1.21 | F5: Computador de escritorio 1.2 | G5: Computador de escritorio 1.2 | H5: 1 | I5: 1 | J5: unidad | K5: Und | L5: Sumimas S.A.S. | N5: 2277449.328 | O5: 2254732.32 | P5: 1 | Q5: 1 | R5: 7
A6: Sumimas S.A.S.S1_ETP_5 | B6: S1_ETP_5 | C6: 5 | D6: ETP | E6: Computador de escritorio 1.22 | F6: Computador de escritorio 1.2 | G6: Computador de escritorio 1.2 | H6: 1 | I6: 2 | J6: unidad | K6: Und | L6: Sumimas S.A.S. | N6: 2288695.776 | O6: 2265866.16 | P6: 1 | Q6: 1 | R6: 9
A7: Sumimas S.A.S.S1_ETP_6 | B7: S1_ETP_6 | C7: 6 | D7: ETP | E7: Computador de escritorio 1.23 | F7: Computador de escritorio 1.2 | G7: Computador de escritorio 1.2 | H7: 1 | I7: 3 | J7: unidad | K7: Und | L7: Sumimas S.A.S. | N7: 2277449.328 | O7: 2254732.32 | P7: 1 | Q7: 1 | R7: 11
A8: Sumimas S.A.S.S1_ETP_7 | B8: S1_ETP_7 | C8: 7 | D8: ETP | E8: Computador de escritorio Linux 1.31 | F8: Computador de escritorio Linux 1.3 | G8: Computador de escritorio Linux 1.3 | H8: 1 | I8: 1 | J8: unidad | K8: Und | L8: Sumimas S.A.S. | N8: 1784950.512 | O8: 1767156.24 | P8: 1 | Q8: 1 | R8: 13
A9: Sumimas S.A.S.S1_ETP_8 | B9: S1_ETP_8 | C9: 8 | D9: ETP | E9: Computador de escritorio Linux 1.32 | F9: Computador de escritorio Linux 1.3 | G9: Computador de escritorio Linux 1.3 | H9: 1 | I9: 2 | J9: unidad | K9: Und | L9: Sumimas S.A.S. | N9: 1793760.432 | O9: 1775877.84 | P9: 1 | Q9: 1 | R9: 15
A10: Sumimas S.A.S.S1_ETP_9 | B10: S1_ETP_9 | C10: 9 | D10: ETP | E10: Computador de escritorio Linux 1.33 | F10: Computador de escritorio Linux 1.3 | G10: Computador de escritorio Linux 1.3 | H10: 1 | I10: 3 | J10: unidad | K10: Und | L10: Sumimas S.A.S. | N10: 1784950.512 | O10: 1767156.24 | P10: 1 | Q10: 1 | R10: 17
A11: Sumimas S.A.S.S1_ETP_10 | B11: S1_ETP_10 | C11: 10 | D11: ETP | E11: Computador de escritorio 1.41 | F11: Computador de escritorio 1.4 | G11: Computador de escritorio 1.4 | H11: 1 | I11: 1 | J11: unidad | K11: Und | L11: Sumimas S.A.S. | N11: 2964592.176 | O11: 2935004.976 | P11: 1 | Q11: 1 | R11: 19
A12: Sumimas S.A.S.S1_ETP_11 | B12: S1_ETP_11 | C12: 11 | D12: ETP | E12: Computador de escritorio 1.42 | F12: Computador de escritorio 1.4 | G12: Computador de escritorio 1.4 | H12: 1 | I12: 2 | J12: unidad | K12: Und | L12: Sumimas S.A.S. | N12: 2979240.048 | O12: 2949506.016 | P12: 1 | Q12: 1 | R12: 21
A13: Sumimas S.A.S.S1_ETP_12 | B13: S1_ETP_12 | C13: 12 | D13: ETP | E13: Computador de escritorio 1.43 | F13: Computador de escritorio 1.4 | G13: Computador de escritorio 1.4 | H13: 1 | I13: 3 | J13: unidad | K13: Und | L13: Sumimas S.A.S. | N13: 2964592.176 | O13: 2935004.976 | P13: 1 | Q13: 1 | R13: 23
A14: Sumimas S.A.S.S1_ETP_13 | B14: S1_ETP_13 | C14: 13 | D14: ETP | E14: All in one 1.51 | F14: All in one 1.5 | G14: All in one 1.5 | H14: 1 | I14: 1 | J14: unidad | K14: Und | L14: Sumimas S.A.S. | N14: 3763632.048 | O14: 3726052.992 | P14: 1 | Q14: 1 | R14: 25
A15: Sumimas S.A.S.S1_ETP_14 | B15: S1_ETP_14 | C15: 14 | D15: ETP | E15: All in one 1.52 | F15: All in one 1.5 | G15: All in one 1.5 | H15: 1 | I15: 2 | J15: unidad | K15: Und | L15: Sumimas S.A.S. | N15: 3782235.552 | O15: 3744469.92 | P15: 1 | Q15: 1 | R15: 27
A16: Sumimas S.A.S.S1_ETP_15 | B16: S1_ETP_15 | C16: 15 | D16: ETP | E16: All in one 1.53 | F16: All in one 1.5 | G16: All in one 1.5 | H16: 1 | I16: 3 | J16: unidad | K16: Und | L16: Sumimas S.A.S. | N16: 3763632.048 | O16: 3726052.992 | P16: 1 | Q16: 1 | R16: 29
A17: Sumimas S.A.S.S1_ETP_16 | B17: S1_ETP_16 | C17: 16 | D17: ETP | E17: Computador de escritorio 1.61 | F17: Computador de escritorio 1.6 | G17: Computador de escritorio 1.6 | H17: 1 | I17: 1 | J17: unidad | K17: Und | L17: Sumimas S.A.S. | N17: 3359933.472 | O17: 3326391.744 | P17: 1 | Q17: 1 | R17: 31
A18: Sumimas S.A.S.S1_ETP_17 | B18: S1_ETP_17 | C18: 17 | D18: ETP | E18: Computador de escritorio 1.62 | F18: Computador de escritorio 1.6 | G18: Computador de escritorio 1.6 | H18: 1 | I18: 2 | J18: unidad | K18: Und | L18: Sumimas S.A.S. | N18: 3376537.632 | O18: 3376537.632 | P18: 1 | Q18: 1 | R18: 33
A19: Sumimas S.A.S.S1_ETP_18 | B19: S1_ETP_18 | C19: 18 | D19: ETP | E19: Computador de escritorio 1.63 | F19: Computador de escritorio 1.6 | G19: Computador de escritorio 1.6 | H19: 1 | I19: 3 | J19: unidad | K19: Und | L19: Sumimas S.A.S. | N19: 3359933.472 | O19: 3359933.472 | P19: 1 | Q19: 1 | R19: 35
A20: Sumimas S.A.S.S1_ETP (accesorio)_19 | B20: S1_ETP (accesorio)_19 | C20: 19 | D20: ETP (accesorio) | E20: Teclado y mouse alámbrico 1.7NA | F20: Teclado y mouse alámbrico 1.7 | G20: ETP | H20: 1 | I20: NA | J20: unidad | K20: Und | L20: Sumimas S.A.S. | N20: 64756.224 | O20: 64164.48 | P20: 1 | Q20: =IF(COUNTIF(SolCotizacion!$D:$D,$G20)>0,1,0) -> 1 | R20: 37
A21: Sumimas S.A.S.S1_ETP (accesorio)_20 | B21: S1_ETP (accesorio)_20 | C21: 20 | D21: ETP (accesorio) | E21: Auricular - Diadema de comunicaciones 1.8NA | F21: Auricular - Diadema de comunicaciones 1.8 | G21: ETP | H21: 1 | I21: NA | J21: unidad | K21: Und | L21: Sumimas S.A.S. | N21: 53493.216 | O21: 53016.288 | P21: 1 | Q21: =IF(COUNTIF(SolCotizacion!$D:$D,$G20)>0,1,0) -> 1 | R21: 39
A22: Sumimas S.A.S.S1_ETP (accesorio)_21 | B22: S1_ETP (accesorio)_21 | C22: 21 | D22: ETP (accesorio) | E22: Parlantes 1.9NA | F22: Parlantes 1.9 | G22: ETP | H22: 1 | I22: NA | J22: unidad | K22: Und | L22: Sumimas S.A.S. | N22: 64756.224 | O22: 64164.48 | P22: 1 | Q22: =IF(COUNTIF(SolCotizacion!$D:$D,$G20)>0,1,0) -> 1 | R22: 41
A23: Sumimas S.A.S.S1_ETP (accesorio)_22 | B23: S1_ETP (accesorio)_22 | C23: 22 | D23: ETP (accesorio) | E23: Dispositivo de almacenamiento externo 1.10NA | F23: Dispositivo de almacenamiento externo 1.10 | G23: ETP | H23: 1 | I23: NA | J23: unidad | K23: Und | L23: Sumimas S.A.S. | N23: 449082.912 | O23: 444647.04 | P23: 1 | Q23: =IF(COUNTIF(SolCotizacion!$D:$D,$G20)>0,1,0) -> 1 | R23: 43
A24: Sumimas S.A.S.S1_ETP (accesorio)_23 | B24: S1_ETP (accesorio)_23 | C24: 23 | D24: ETP (accesorio) | E24: Replicador de puertos 1.11NA | F24: Replicador de puertos 1.11 | G24: ETP | H24: 1 | I24: NA | J24: unidad | K24: Und | L24: Sumimas S.A.S. | N24: 416614.272 | O24: 412506.288 | P24: 1 | Q24: =IF(COUNTIF(SolCotizacion!$D:$D,$G20)>0,1,0) -> 1 | R24: 45
A25: Sumimas S.A.S.S1_ETP (accesorio)_24 | B25: S1_ETP (accesorio)_24 | C25: 24 | D25: ETP (accesorio) | E25: Tarjeta de red 1.1NA | F25: Tarjeta de red 1.1 | G25: Computador de escritorio 1.1 | H25: 1 | I25: NA | J25: unidad | K25: Und | L25: Sumimas S.A.S. | N25: 60829.296 | O25: 60278.4 | P25: 1 | Q25: =IF(COUNTIF(SolCotizacion!$E:$E,$G25)>0,1,0) -> 0 | R25: 47
A26: Sumimas S.A.S.S1_ETP (accesorio)_25 | B26: S1_ETP (accesorio)_25 | C26: 25 | D26: ETP (accesorio) | E26: Memoria RAM 1.2NA | F26: Memoria RAM 1.2 | G26: Computador de escritorio 1.2 | H26: 1 | I26: NA | J26: unidad | K26: Und | L26: Sumimas S.A.S. | N26: 266857.776 | O26: 264244.608 | P26: 1 | Q26: =IF(COUNTIF(SolCotizacion!$E:$E,$G26)>0,1,0) -> 0 | R26: 49
A27: Sumimas S.A.S.S1_ETP (accesorio)_26 | B27: S1_ETP (accesorio)_26 | C27: 26 | D27: ETP (accesorio) | E27: Memoria RAM 1.3NA | F27: Memoria RAM 1.3 | G27: Computador de escritorio Linux 1.3 | H27: 1 | I27: NA | J27: unidad | K27: Und | L27: Sumimas S.A.S. | N27: 266857.776 | O27: 264244.608 | P27: 1 | Q27: =IF(COUNTIF(SolCotizacion!$E:$E,$G27)>0,1,0) -> 0 | R27: 51
A28: Sumimas S.A.S.S1_ETP (accesorio)_27 | B28: S1_ETP (accesorio)_27 | C28: 27 | D28: ETP (accesorio) | E28: Memoria RAM 1.6NA | F28: Memoria RAM 1.6 | G28: Computador de escritorio 1.6 | H28: 1 | I28: NA | J28: unidad | K28: Und | L28: Sumimas S.A.S. | N28: 493350 | O28: 488471.424 | P28: 1 | Q28: =IF(COUNTIF(SolCotizacion!$E:$E,$G28)>0,1,0) -> 0 | R28: 53
A29: Sumimas S.A.S.S1_Servicio_28 | B29: S1_Servicio_28 | C29: 28 | D29: Servicio | E29: Mantenimiento preventivo1 | F29: Mantenimiento preventivo | G29: ETP | H29: 1 | I29: 1 | J29: ETP | K29: Und | L29: Sumimas S.A.S. | N29: 1.073072 | O29: 1.073072 | P29: 1 | Q29: =IF(COUNTIFS(SolCotizacion!$D:$D,$G29,SolCotizacion!$K:$K,$I29)>0,1,0) -> 1 | R29: 55
A30: Sumimas S.A.S.S1_Servicio_29 | B30: S1_Servicio_29 | C30: 29 | D30: Servicio | E30: Mantenimiento preventivo2 | F30: Mantenimiento preventivo | G30: ETP | H30: 1 | I30: 2 | J30: ETP | K30: Und | L30: Sumimas S.A.S. | N30: 1.073072 | O30: 1.073072 | P30: 1 | Q30: =IF(COUNTIFS(SolCotizacion!$D:$D,$G30,SolCotizacion!$K:$K,$I30)>0,1,0) -> 0 | R30: 57
A31: Sumimas S.A.S.S1_Servicio_30 | B31: S1_Servicio_30 | C31: 30 | D31: Servicio | E31: Mantenimiento preventivo3 | F31: Mantenimiento preventivo | G31: ETP | H31: 1 | I31: 3 | J31: ETP | K31: Und | L31: Sumimas S.A.S. | N31: 1.073072 | O31: 1.073072 | P31: 1 | Q31: =IF(COUNTIFS(SolCotizacion!$D:$D,$G31,SolCotizacion!$K:$K,$I31)>0,1,0) -> 0 | R31: 59
A32: Sumimas S.A.S.S1_Servicio_31 | B32: S1_Servicio_31 | C32: 31 | D32: Servicio | E32: Migración o transferencia de datos1 | F32: Migración o transferencia de datos | G32: ETP | H32: 1 | I32: 1 | J32: GB/ETP | K32: GB | L32: Sumimas S.A.S. | N32: 1.073072 | O32: 1.073072 | P32: 1 | Q32: =IF(COUNTIFS(SolCotizacion!$D:$D,$G32,SolCotizacion!$K:$K,$I32)>0,1,0) -> 1 | R32: 61
A33: Sumimas S.A.S.S1_Servicio_32 | B33: S1_Servicio_32 | C33: 32 | D33: Servicio | E33: Migración o transferencia de datos2 | F33: Migración o transferencia de datos | G33: ETP | H33: 1 | I33: 2 | J33: GB/ETP | K33: GB | L33: Sumimas S.A.S. | N33: 1.073072 | O33: 1.073072 | P33: 1 | Q33: =IF(COUNTIFS(SolCotizacion!$D:$D,$G33,SolCotizacion!$K:$K,$I33)>0,1,0) -> 0 | R33: 63
A34: Sumimas S.A.S.S1_Servicio_33 | B34: S1_Servicio_33 | C34: 33 | D34: Servicio | E34: Migración o transferencia de datos3 | F34: Migración o transferencia de datos | G34: ETP | H34: 1 | I34: 3 | J34: GB/ETP | K34: GB | L34: Sumimas S.A.S. | N34: 1.073072 | O34: 1.073072 | P34: 1 | Q34: =IF(COUNTIFS(SolCotizacion!$D:$D,$G34,SolCotizacion!$K:$K,$I34)>0,1,0) -> 0 | R34: 65
A35: Sumimas S.A.S.S1_Servicio_34 | B35: S1_Servicio_34 | C35: 34 | D35: Servicio | E35: Garantía extendida 1.1NA | F35: Garantía extendida 1.1 | G35: Computador de escritorio 1.1 | H35: 1 | I35: NA | J35: ETP/año | K35: ETP1A | L35: Sumimas S.A.S. | N35: 1.073072 | O35: 1.073072 | P35: 1 | Q35: =IF(COUNTIF(SolCotizacion!$E:$E,$G35)>0,1,0) -> 0 | R35: 67
A36: Sumimas S.A.S.S1_Servicio_35 | B36: S1_Servicio_35 | C36: 35 | D36: Servicio | E36: Garantía extendida 1.1NA | F36: Garantía extendida 1.1 | G36: Computador de escritorio 1.1 | H36: 1 | I36: NA | J36: ETP/2 años | K36: ETP2A | L36: Sumimas S.A.S. | N36: 1.073072 | O36: 1.073072 | P36: 1 | Q36: =IF(COUNTIF(SolCotizacion!$E:$E,$G36)>0,1,0) -> 0 | R36: 69
A37: Sumimas S.A.S.S1_Servicio_36 | B37: S1_Servicio_36 | C37: 36 | D37: Servicio | E37: Garantía extendida 1.2NA | F37: Garantía extendida 1.2 | G37: Computador de escritorio 1.2 | H37: 1 | I37: NA | J37: ETP/año | K37: ETP1A | L37: Sumimas S.A.S. | N37: 1.073072 | O37: 1.073072 | P37: 1 | Q37: =IF(COUNTIF(SolCotizacion!$E:$E,$G37)>0,1,0) -> 0 | R37: 71
A38: Sumimas S.A.S.S1_Servicio_37 | B38: S1_Servicio_37 | C38: 37 | D38: Servicio | E38: Garantía extendida 1.2NA | F38: Garantía extendida 1.2 | G38: Computador de escritorio 1.2 | H38: 1 | I38: NA | J38: ETP/2 años | K38: ETP2A | L38: Sumimas S.A.S. | N38: 1.073072 | O38: 1.073072 | P38: 1 | Q38: =IF(COUNTIF(SolCotizacion!$E:$E,$G38)>0,1,0) -> 0 | R38: 73
A39: Sumimas S.A.S.S1_Servicio_38 | B39: S1_Servicio_38 | C39: 38 | D39: Servicio | E39: Garantía extendida 1.3NA | F39: Garantía extendida 1.3 | G39: Computador de escritorio Linux 1.3 | H39: 1 | I39: NA | J39: ETP/año | K39: ETP1A | L39: Sumimas S.A.S. | N39: 1.073072 | O39: 1.073072 | P39: 1 | Q39: =IF(COUNTIF(SolCotizacion!$E:$E,$G39)>0,1,0) -> 0 | R39: 75
A40: Sumimas S.A.S.S1_Servicio_39 | B40: S1_Servicio_39 | C40: 39 | D40: Servicio | E40: Garantía extendida 1.3NA | F40: Garantía extendida 1.3 | G40: Computador de escritorio Linux 1.3 | H40: 1 | I40: NA | J40: ETP/2 años | K40: ETP2A | L40: Sumimas S.A.S. | N40: 1.073072 | O40: 1.073072 | P40: 1 | Q40: =IF(COUNTIF(SolCotizacion!$E:$E,$G40)>0,1,0) -> 0 | R40: 77
A41: Sumimas S.A.S.S1_Servicio_40 | B41: S1_Servicio_40 | C41: 40 | D41: Servicio | E41: Garantía extendida 1.4NA | F41: Garantía extendida 1.4 | G41: Computador de escritorio 1.4 | H41: 1 | I41: NA | J41: ETP/año | K41: ETP1A | L41: Sumimas S.A.S. | N41: 1.073072 | O41: 1.073072 | P41: 1 | Q41: =IF(COUNTIF(SolCotizacion!$E:$E,$G41)>0,1,0) -> 0 | R41: 79
A42: Sumimas S.A.S.S1_Servicio_41 | B42: S1_Servicio_41 | C42: 41 | D42: Servicio | E42: Garantía extendida 1.4NA | F42: Garantía extendida 1.4 | G42: Computador de escritorio 1.4 | H42: 1 | I42: NA | J42: ETP/2 años | K42: ETP2A | L42: Sumimas S.A.S. | N42: 1.073072 | O42: 1.073072 | P42: 1 | Q42: =IF(COUNTIF(SolCotizacion!$E:$E,$G42)>0,1,0) -> 0 | R42: 81
A43: Sumimas S.A.S.S1_Servicio_42 | B43: S1_Servicio_42 | C43: 42 | D43: Servicio | E43: Garantía extendida 1.5NA | F43: Garantía extendida 1.5 | G43: All in one 1.5 | H43: 1 | I43: NA | J43: ETP/año | K43: ETP1A | L43: Sumimas S.A.S. | N43: 1.073072 | O43: 1.073072 | P43: 1 | Q43: =IF(COUNTIF(SolCotizacion!$E:$E,$G43)>0,1,0) -> 1 | R43: 83
A44: Sumimas S.A.S.S1_Servicio_43 | B44: S1_Servicio_43 | C44: 43 | D44: Servicio | E44: Garantía extendida 1.5NA | F44: Garantía extendida 1.5 | G44: All in one 1.5 | H44: 1 | I44: NA | J44: ETP/2 años | K44: ETP2A | L44: Sumimas S.A.S. | N44: 1.073072 | O44: 1.073072 | P44: 1 | Q44: =IF(COUNTIF(SolCotizacion!$E:$E,$G44)>0,1,0) -> 1 | R44: 85
A45: Sumimas S.A.S.S1_Servicio_44 | B45: S1_Servicio_44 | C45: 44 | D45: Servicio | E45: Garantía extendida 1.6NA | F45: Garantía extendida 1.6 | G45: Computador de escritorio 1.6 | H45: 1 | I45: NA | J45: ETP/año | K45: ETP1A | L45: Sumimas S.A.S. | N45: 1.073072 | O45: 1.073072 | P45: 1 | Q45: =IF(COUNTIF(SolCotizacion!$E:$E,$G45)>0,1,0) -> 0 | R45: 87
A46: Sumimas S.A.S.S1_Servicio_45 | B46: S1_Servicio_45 | C46: 45 | D46: Servicio | E46: Garantía extendida 1.6NA | F46: Garantía extendida 1.6 | G46: Computador de escritorio 1.6 | H46: 1 | I46: NA | J46: ETP/2 años | K46: ETP2A | L46: Sumimas S.A.S. | N46: 1.073072 | O46: 1.073072 | P46: 1 | Q46: =IF(COUNTIF(SolCotizacion!$E:$E,$G46)>0,1,0) -> 0 | R46: 89
A47: Sumimas S.A.S.S1_Servicio_46 | B47: S1_Servicio_46 | C47: 46 | D47: Servicio | E47: Instalación de software y configuración del ETP1 | F47: Instalación de software y configuración del ETP | G47: ETP | H47: 1 | I47: 1 | J47: ETP | K47: Und | L47: Sumimas S.A.S. | N47: 1.073072 | O47: 1.073072 | P47: 1 | Q47: =IF(COUNTIFS(SolCotizacion!$D:$D,$G47,SolCotizacion!$K:$K,$I47)>0,1,0) -> 1 | R47: 91
A48: Sumimas S.A.S.S1_Servicio_47 | B48: S1_Servicio_47 | C48: 47 | D48: Servicio | E48: Instalación de software y configuración del ETP2 | F48: Instalación de software y configuración del ETP | G48: ETP | H48: 1 | I48: 2 | J48: ETP | K48: Und | L48: Sumimas S.A.S. | N48: 1.073072 | O48: 1.073072 | P48: 1 | Q48: =IF(COUNTIFS(SolCotizacion!$D:$D,$G48,SolCotizacion!$K:$K,$I48)>0,1,0) -> 0 | R48: 93
A49: Sumimas S.A.S.S1_Servicio_48 | B49: S1_Servicio_48 | C49: 48 | D49: Servicio | E49: Instalación de software y configuración del ETP3 | F49: Instalación de software y configuración del ETP | G49: ETP | H49: 1 | I49: 3 | J49: ETP | K49: Und | L49: Sumimas S.A.S. | N49: 1.073072 | O49: 1.073072 | P49: 1 | Q49: =IF(COUNTIFS(SolCotizacion!$D:$D,$G49,SolCotizacion!$K:$K,$I49)>0,1,0) -> 0 | R49: 95
A50: Sumimas S.A.S.S1_Servicio_49 | B50: S1_Servicio_49 | C50: 49 | D50: Servicio | E50: Garantía anticipada 1.11 | F50: Garantía anticipada 1.1 | G50: Computador de escritorio 1.1 | H50: 1 | I50: 1 | J50: % adicional por garantía anticipada/ETP | K50: Und | L50: Sumimas S.A.S. | M50: 0.01 | N50: 19876.35789 | O50: 19678.14911 | P50: 1 | Q50: =IF(SUMIFS(SolCotizacion!$P:$P,SolCotizacion!$E:$E,$G50,SolCotizacion!$K:$K,$I50)>499,1,0) -> 0 | R50: 97 | S50: =IF(SUMIFS(SolCotizacion!$P:$P,SolCotizacion!$E:$E,$G50,SolCotizacion!$K:$K,$I50)>499,4%,0) -> 0
A51: Sumimas S.A.S.S1_Servicio_50 | B51: S1_Servicio_50 | C51: 50 | D51: Servicio | E51: Garantía anticipada 1.12 | F51: Garantía anticipada 1.1 | G51: Computador de escritorio 1.1 | H51: 1 | I51: 2 | J51: % adicional por garantía anticipada/ETP | K51: Und | L51: Sumimas S.A.S. | M51: 0.01 | N51: 19974.49238 | O51: 19775.29308 | P51: 1 | Q51: =IF(SUMIFS(SolCotizacion!$P:$P,SolCotizacion!$E:$E,$G51,SolCotizacion!$K:$K,$I51)>499,1,0) -> 0 | R51: 98 | S51: =IF(SUMIFS(SolCotizacion!$P:$P,SolCotizacion!$E:$E,$G51,SolCotizacion!$K:$K,$I51)>499,4%,0) -> 0
A52: Sumimas S.A.S.S1_Servicio_51 | B52: S1_Servicio_51 | C52: 51 | D52: Servicio | E52: Garantía anticipada 1.13 | F52: Garantía anticipada 1.1 | G52: Computador de escritorio 1.1 | H52: 1 | I52: 3 | J52: % adicional por garantía anticipada/ETP | K52: Und | L52: Sumimas S.A.S. | M52: 0.01 | N52: 19876.35789 | O52: 19678.14911 | P52: 1 | Q52: =IF(SUMIFS(SolCotizacion!$P:$P,SolCotizacion!$E:$E,$G52,SolCotizacion!$K:$K,$I52)>499,1,0) -> 0 | R52: 99 | S52: =IF(SUMIFS(SolCotizacion!$P:$P,SolCotizacion!$E:$E,$G52,SolCotizacion!$K:$K,$I52)>499,4%,0) -> 0
A53: Sumimas S.A.S.S1_Servicio_52 | B53: S1_Servicio_52 | C53: 52 | D53: Servicio | E53: Garantía anticipada 1.21 | F53: Garantía anticipada 1.2 | G53: Computador de escritorio 1.2 | H53: 1 | I53: 1 | J53: % adicional por garantía anticipada/ETP | K53: Und | L53: Sumimas S.A.S. | M53: 0.01 | N53: 22155.63504 | O53: 21934.6338 | P53: 1 | Q53: =IF(SUMIFS(SolCotizacion!$P:$P,SolCotizacion!$E:$E,$G53,SolCotizacion!$K:$K,$I53)>499,1,0) -> 0 | R53: 100 | S53: =IF(SUMIFS(SolCotizacion!$P:$P,SolCotizacion!$E:$E,$G53,SolCotizacion!$K:$K,$I53)>499,4%,0) -> 0
A54: Sumimas S.A.S.S1_Servicio_53 | B54: S1_Servicio_53 | C54: 53 | D54: Servicio | E54: Garantía anticipada 1.22 | F54: Garantía anticipada 1.2 | G54: Computador de escritorio 1.2 | H54: 1 | I54: 2 | J54: % adicional por garantía anticipada/ETP | K54: Und | L54: Sumimas S.A.S. | M54: 0.01 | N54: 22265.04711 | O54: 22042.95216 | P54: 1 | Q54: =IF(SUMIFS(SolCotizacion!$P:$P,SolCotizacion!$E:$E,$G54,SolCotizacion!$K:$K,$I54)>499,1,0) -> 0 | R54: 101 | S54: =IF(SUMIFS(SolCotizacion!$P:$P,SolCotizacion!$E:$E,$G54,SolCotizacion!$K:$K,$I54)>499,4%,0) -> 0
A55: Sumimas S.A.S.S1_Servicio_54 | B55: S1_Servicio_54 | C55: 54 | D55: Servicio | E55: Garantía anticipada 1.23 | F55: Garantía anticipada 1.2 | G55: Computador de escritorio 1.2 | H55: 1 | I55: 3 | J55: % adicional por garantía anticipada/ETP | K55: Und | L55: Sumimas S.A.S. | M55: 0.01 | N55: 22155.63504 | O55: 21934.6338 | P55: 1 | Q55: =IF(SUMIFS(SolCotizacion!$P:$P,SolCotizacion!$E:$E,$G55,SolCotizacion!$K:$K,$I55)>499,1,0) -> 0 | R55: 102 | S55: =IF(SUMIFS(SolCotizacion!$P:$P,SolCotizacion!$E:$E,$G55,SolCotizacion!$K:$K,$I55)>499,4%,0) -> 0
A56: Sumimas S.A.S.S1_Servicio_55 | B56: S1_Servicio_55 | C56: 55 | D56: Servicio | E56: Garantía anticipada 1.31 | F56: Garantía anticipada 1.3 | G56: Computador de escritorio Linux 1.3 | H56: 1 | I56: 1 | J56: % adicional por garantía anticipada/ETP | K56: Und | L56: Sumimas S.A.S. | M56: 0.01 | N56: 17364.47174 | O56: 17191.36665 | P56: 1 | Q56: =IF(SUMIFS(SolCotizacion!$P:$P,SolCotizacion!$E:$E,$G56,SolCotizacion!$K:$K,$I56)>499,1,0) -> 0 | R56: 103 | S56: =IF(SUMIFS(SolCotizacion!$P:$P,SolCotizacion!$E:$E,$G56,SolCotizacion!$K:$K,$I56)>499,4%,0) -> 0
A57: Sumimas S.A.S.S1_Servicio_56 | B57: S1_Servicio_56 | C57: 56 | D57: Servicio | E57: Garantía anticipada 1.32 | F57: Garantía anticipada 1.3 | G57: Computador de escritorio Linux 1.3 | H57: 1 | I57: 2 | J57: % adicional por garantía anticipada/ETP | K57: Und | L57: Sumimas S.A.S. | M57: 0.01 | N57: 17450.18337 | O57: 17276.21157 | P57: 1 | Q57: =IF(SUMIFS(SolCotizacion!$P:$P,SolCotizacion!$E:$E,$G57,SolCotizacion!$K:$K,$I57)>499,1,0) -> 0 | R57: 104 | S57: =IF(SUMIFS(SolCotizacion!$P:$P,SolCotizacion!$E:$E,$G57,SolCotizacion!$K:$K,$I57)>499,4%,0) -> 0
A58: Sumimas S.A.S.S1_Servicio_57 | B58: S1_Servicio_57 | C58: 57 | D58: Servicio | E58: Garantía anticipada 1.33 | F58: Garantía anticipada 1.3 | G58: Computador de escritorio Linux 1.3 | H58: 1 | I58: 3 | J58: % adicional por garantía anticipada/ETP | K58: Und | L58: Sumimas S.A.S. | M58: 0.01 | N58: 17364.47174 | O58: 17191.36665 | P58: 1 | Q58: =IF(SUMIFS(SolCotizacion!$P:$P,SolCotizacion!$E:$E,$G58,SolCotizacion!$K:$K,$I58)>499,1,0) -> 0 | R58: 105 | S58: =IF(SUMIFS(SolCotizacion!$P:$P,SolCotizacion!$E:$E,$G58,SolCotizacion!$K:$K,$I58)>499,4%,0) -> 0
A59: Sumimas S.A.S.S1_Servicio_58 | B59: S1_Servicio_58 | C59: 58 | D59: Servicio | E59: Garantía anticipada 1.41 | F59: Garantía anticipada 1.4 | G59: Computador de escritorio 1.4 | H59: 1 | I59: 1 | J59: % adicional por garantía anticipada/ETP | K59: Und | L59: Sumimas S.A.S. | M59: 0.01 | N59: 28840.34738 | O59: 28552.50614 | P59: 1 | Q59: =IF(SUMIFS(SolCotizacion!$P:$P,SolCotizacion!$E:$E,$G59,SolCotizacion!$K:$K,$I59)>499,1,0) -> 0 | R59: 106 | S59: =IF(SUMIFS(SolCotizacion!$P:$P,SolCotizacion!$E:$E,$G59,SolCotizacion!$K:$K,$I59)>499,4%,0) -> 0
A60: Sumimas S.A.S.S1_Servicio_59 | B60: S1_Servicio_59 | C60: 59 | D60: Servicio | E60: Garantía anticipada 1.42 | F60: Garantía anticipada 1.4 | G60: Computador de escritorio 1.4 | H60: 1 | I60: 2 | J60: % adicional por garantía anticipada/ETP | K60: Und | L60: Sumimas S.A.S. | M60: 0.01 | N60: 28982.83896 | O60: 28693.58415 | P60: 1 | Q60: =IF(SUMIFS(SolCotizacion!$P:$P,SolCotizacion!$E:$E,$G60,SolCotizacion!$K:$K,$I60)>499,1,0) -> 0 | R60: 107 | S60: =IF(SUMIFS(SolCotizacion!$P:$P,SolCotizacion!$E:$E,$G60,SolCotizacion!$K:$K,$I60)>499,4%,0) -> 0
A61: Sumimas S.A.S.S1_Servicio_60 | B61: S1_Servicio_60 | C61: 60 | D61: Servicio | E61: Garantía anticipada 1.43 | F61: Garantía anticipada 1.4 | G61: Computador de escritorio 1.4 | H61: 1 | I61: 3 | J61: % adicional por garantía anticipada/ETP | K61: Und | L61: Sumimas S.A.S. | M61: 0.01 | N61: 28840.34738 | O61: 28552.50614 | P61: 1 | Q61: =IF(SUMIFS(SolCotizacion!$P:$P,SolCotizacion!$E:$E,$G61,SolCotizacion!$K:$K,$I61)>499,1,0) -> 0 | R61: 108 | S61: =IF(SUMIFS(SolCotizacion!$P:$P,SolCotizacion!$E:$E,$G61,SolCotizacion!$K:$K,$I61)>499,4%,0) -> 0
A62: Sumimas S.A.S.S1_Servicio_61 | B62: S1_Servicio_61 | C62: 61 | D62: Servicio | E62: Garantía anticipada 1.51 | F62: Garantía anticipada 1.5 | G62: All in one 1.5 | H62: 1 | I62: 1 | J62: % adicional por garantía anticipada/ETP | K62: Und | L62: Sumimas S.A.S. | M62: 0.01 | N62: 36613.61904 | O62: 36248.03167 | P62: 1 | Q62: =IF(SUMIFS(SolCotizacion!$P:$P,SolCotizacion!$E:$E,$G62,SolCotizacion!$K:$K,$I62)>499,1,0) -> 0 | R62: 109 | S62: =IF(SUMIFS(SolCotizacion!$P:$P,SolCotizacion!$E:$E,$G62,SolCotizacion!$K:$K,$I62)>499,4%,0) -> 0
A63: Sumimas S.A.S.S1_Servicio_62 | B63: S1_Servicio_62 | C63: 62 | D63: Servicio | E63: Garantía anticipada 1.52 | F63: Garantía anticipada 1.5 | G63: All in one 1.5 | H63: 1 | I63: 2 | J63: % adicional por garantía anticipada/ETP | K63: Und | L63: Sumimas S.A.S. | M63: 0.01 | N63: 36794.59676 | O63: 36427.20374 | P63: 1 | Q63: =IF(SUMIFS(SolCotizacion!$P:$P,SolCotizacion!$E:$E,$G63,SolCotizacion!$K:$K,$I63)>499,1,0) -> 0 | R63: 110 | S63: =IF(SUMIFS(SolCotizacion!$P:$P,SolCotizacion!$E:$E,$G63,SolCotizacion!$K:$K,$I63)>499,4%,0) -> 0
A64: Sumimas S.A.S.S1_Servicio_63 | B64: S1_Servicio_63 | C64: 63 | D64: Servicio | E64: Garantía anticipada 1.53 | F64: Garantía anticipada 1.5 | G64: All in one 1.5 | H64: 1 | I64: 3 | J64: % adicional por garantía anticipada/ETP | K64: Und | L64: Sumimas S.A.S. | M64: 0.01 | N64: 36613.61904 | O64: 36248.03167 | P64: 1 | Q64: =IF(SUMIFS(SolCotizacion!$P:$P,SolCotizacion!$E:$E,$G64,SolCotizacion!$K:$K,$I64)>499,1,0) -> 0 | R64: 111 | S64: =IF(SUMIFS(SolCotizacion!$P:$P,SolCotizacion!$E:$E,$G64,SolCotizacion!$K:$K,$I64)>499,4%,0) -> 0
A65: Sumimas S.A.S.S1_Servicio_64 | B65: S1_Servicio_64 | C65: 64 | D65: Servicio | E65: Garantía anticipada 1.61 | F65: Garantía anticipada 1.6 | G65: Computador de escritorio 1.6 | H65: 1 | I65: 1 | J65: % adicional por garantía anticipada/ETP | K65: Und | L65: Sumimas S.A.S. | M65: 0.01 | N65: 32686.33029 | O65: 32360.02354 | P65: 1 | Q65: =IF(SUMIFS(SolCotizacion!$P:$P,SolCotizacion!$E:$E,$G65,SolCotizacion!$K:$K,$I65)>499,1,0) -> 0 | R65: 112 | S65: =IF(SUMIFS(SolCotizacion!$P:$P,SolCotizacion!$E:$E,$G65,SolCotizacion!$K:$K,$I65)>499,4%,0) -> 0
A66: Sumimas S.A.S.S1_Servicio_65 | B66: S1_Servicio_65 | C66: 65 | D66: Servicio | E66: Garantía anticipada 1.62 | F66: Garantía anticipada 1.6 | G66: Computador de escritorio 1.6 | H66: 1 | I66: 2 | J66: % adicional por garantía anticipada/ETP | K66: Und | L66: Sumimas S.A.S. | M66: 0.01 | N66: 32847.85858 | O66: 32847.85858 | P66: 1 | Q66: =IF(SUMIFS(SolCotizacion!$P:$P,SolCotizacion!$E:$E,$G66,SolCotizacion!$K:$K,$I66)>499,1,0) -> 0 | R66: 113 | S66: =IF(SUMIFS(SolCotizacion!$P:$P,SolCotizacion!$E:$E,$G66,SolCotizacion!$K:$K,$I66)>499,4%,0) -> 0
A67: Sumimas S.A.S.S1_Servicio_66 | B67: S1_Servicio_66 | C67: 66 | D67: Servicio | E67: Garantía anticipada 1.63 | F67: Garantía anticipada 1.6 | G67: Computador de escritorio 1.6 | H67: 1 | I67: 3 | J67: % adicional por garantía anticipada/ETP | K67: Und | L67: Sumimas S.A.S. | M67: 0.01 | N67: 32686.33029 | O67: 32686.33029 | P67: 1 | Q67: =IF(SUMIFS(SolCotizacion!$P:$P,SolCotizacion!$E:$E,$G67,SolCotizacion!$K:$K,$I67)>499,1,0) -> 0 | R67: 114 | S67: =IF(SUMIFS(SolCotizacion!$P:$P,SolCotizacion!$E:$E,$G67,SolCotizacion!$K:$K,$I67)>499,4%,0) -> 0
A68: Nex computer S.A.S1_ETP_1 | B68: S1_ETP_1 | C68: 1 | D68: ETP | E68: Computador de escritorio 1.11 | F68: Computador de escritorio 1.1 | G68: Computador de escritorio 1.1 | H68: 1 | I68: 1 | J68: unidad | K68: Und | L68: Nex computer S.A. | N68: 2676096 | O68: 2620896 | P68: 1 | Q68: 1 | R68: 115
A69: Nex computer S.A.S1_ETP_2 | B69: S1_ETP_2 | C69: 2 | D69: ETP | E69: Computador de escritorio 1.12 | F69: Computador de escritorio 1.1 | G69: Computador de escritorio 1.1 | H69: 1 | I69: 2 | J69: unidad | K69: Und | L69: Nex computer S.A. | N69: 2695968 | O69: 2641872 | P69: 1 | Q69: 1 | R69: 117
A70: Nex computer S.A.S1_ETP_3 | B70: S1_ETP_3 | C70: 3 | D70: ETP | E70: Computador de escritorio 1.13 | F70: Computador de escritorio 1.1 | G70: Computador de escritorio 1.1 | H70: 1 | I70: 3 | J70: unidad | K70: Und | L70: Nex computer S.A. | N70: 2727984 | O70: 2673888 | P70: 1 | Q70: 1 | R70: 119
A71: Nex computer S.A.S1_ETP_4 | B71: S1_ETP_4 | C71: 4 | D71: ETP | E71: Computador de escritorio 1.21 | F71: Computador de escritorio 1.2 | G71: Computador de escritorio 1.2 | H71: 1 | I71: 1 | J71: unidad | K71: Und | L71: Nex computer S.A. | N71: 2938848 | O71: 2879232 | P71: 1 | Q71: 1 | R71: 121
A72: Nex computer S.A.S1_ETP_5 | B72: S1_ETP_5 | C72: 5 | D72: ETP | E72: Computador de escritorio 1.22 | F72: Computador de escritorio 1.2 | G72: Computador de escritorio 1.2 | H72: 1 | I72: 2 | J72: unidad | K72: Und | L72: Nex computer S.A. | N72: 2962032 | O72: 2902416 | P72: 1 | Q72: 1 | R72: 123
A73: Nex computer S.A.S1_ETP_6 | B73: S1_ETP_6 | C73: 6 | D73: ETP | E73: Computador de escritorio 1.23 | F73: Computador de escritorio 1.2 | G73: Computador de escritorio 1.2 | H73: 1 | I73: 3 | J73: unidad | K73: Und | L73: Nex computer S.A. | N73: 2997360 | O73: 2936640 | P73: 1 | Q73: 1 | R73: 125
A74: Nex computer S.A.S1_ETP_7 | B74: S1_ETP_7 | C74: 7 | D74: ETP | E74: Computador de escritorio Linux 1.31 | F74: Computador de escritorio Linux 1.3 | G74: Computador de escritorio Linux 1.3 | H74: 1 | I74: 1 | J74: unidad | K74: Und | L74: Nex computer S.A. | N74: 2173776 | O74: 2129616 | P74: 1 | Q74: 1 | R74: 127
A75: Nex computer S.A.S1_ETP_8 | B75: S1_ETP_8 | C75: 8 | D75: ETP | E75: Computador de escritorio Linux 1.32 | F75: Computador de escritorio Linux 1.3 | G75: Computador de escritorio Linux 1.3 | H75: 1 | I75: 2 | J75: unidad | K75: Und | L75: Nex computer S.A. | N75: 2190336 | O75: 2146176 | P75: 1 | Q75: 1 | R75: 129
A76: Nex computer S.A.S1_ETP_9 | B76: S1_ETP_9 | C76: 9 | D76: ETP | E76: Computador de escritorio Linux 1.33 | F76: Computador de escritorio Linux 1.3 | G76: Computador de escritorio Linux 1.3 | H76: 1 | I76: 3 | J76: unidad | K76: Und | L76: Nex computer S.A. | N76: 2216832 | O76: 2172672 | P76: 1 | Q76: 1 | R76: 131
A77: Nex computer S.A.S1_ETP_10 | B77: S1_ETP_10 | C77: 10 | D77: ETP | E77: Computador de escritorio 1.41 | F77: Computador de escritorio 1.4 | G77: Computador de escritorio 1.4 | H77: 1 | I77: 1 | J77: unidad | K77: Und | L77: Nex computer S.A. | N77: 3206016 | O77: 3140880 | P77: 1 | Q77: 1 | R77: 133
A78: Nex computer S.A.S1_ETP_11 | B78: S1_ETP_11 | C78: 11 | D78: ETP | E78: Computador de escritorio 1.42 | F78: Computador de escritorio 1.4 | G78: Computador de escritorio 1.4 | H78: 1 | I78: 2 | J78: unidad | K78: Und | L78: Nex computer S.A. | N78: 3231408 | O78: 3166272 | P78: 1 | Q78: 1 | R78: 135
A79: Nex computer S.A.S1_ETP_12 | B79: S1_ETP_12 | C79: 12 | D79: ETP | E79: Computador de escritorio 1.43 | F79: Computador de escritorio 1.4 | G79: Computador de escritorio 1.4 | H79: 1 | I79: 3 | J79: unidad | K79: Und | L79: Nex computer S.A. | N79: 3270048 | O79: 3203808 | P79: 1 | Q79: 1 | R79: 137
A80: Nex computer S.A.S1_ETP_13 | B80: S1_ETP_13 | C80: 13 | D80: ETP | E80: All in one 1.51 | F80: All in one 1.5 | G80: All in one 1.5 | H80: 1 | I80: 1 | J80: unidad | K80: Und | L80: Nex computer S.A. | N80: 3326352 | O80: 3259008 | P80: 1 | Q80: 1 | R80: 139
A81: Nex computer S.A.S1_ETP_14 | B81: S1_ETP_14 | C81: 14 | D81: ETP | E81: All in one 1.52 | F81: All in one 1.5 | G81: All in one 1.5 | H81: 1 | I81: 2 | J81: unidad | K81: Und | L81: Nex computer S.A. | N81: 3352848 | O81: 3285504 | P81: 1 | Q81: 1 | R81: 141
A82: Nex computer S.A.S1_ETP_15 | B82: S1_ETP_15 | C82: 15 | D82: ETP | E82: All in one 1.53 | F82: All in one 1.5 | G82: All in one 1.5 | H82: 1 | I82: 3 | J82: unidad | K82: Und | L82: Nex computer S.A. | N82: 3392592 | O82: 3324144 | P82: 1 | Q82: 1 | R82: 143
A83: Nex computer S.A.S1_ETP_16 | B83: S1_ETP_16 | C83: 16 | D83: ETP | E83: Computador de escritorio 1.61 | F83: Computador de escritorio 1.6 | G83: Computador de escritorio 1.6 | H83: 1 | I83: 1 | J83: unidad | K83: Und | L83: Nex computer S.A. | N83: 3759120 | O83: 3682944 | P83: 1 | Q83: 1 | R83: 145
A84: Nex computer S.A.S1_ETP_17 | B84: S1_ETP_17 | C84: 17 | D84: ETP | E84: Computador de escritorio 1.62 | F84: Computador de escritorio 1.6 | G84: Computador de escritorio 1.6 | H84: 1 | I84: 2 | J84: unidad | K84: Und | L84: Nex computer S.A. | N84: 3788928 | O84: 3712752 | P84: 1 | Q84: 1 | R84: 147
A85: Nex computer S.A.S1_ETP_18 | B85: S1_ETP_18 | C85: 18 | D85: ETP | E85: Computador de escritorio 1.63 | F85: Computador de escritorio 1.6 | G85: Computador de escritorio 1.6 | H85: 1 | I85: 3 | J85: unidad | K85: Und | L85: Nex computer S.A. | N85: 3834192 | O85: 3756912 | P85: 1 | Q85: 1 | R85: 149
A86: Nex computer S.A.S1_ETP (accesorio)_19 | B86: S1_ETP (accesorio)_19 | C86: 19 | D86: ETP (accesorio) | E86: Teclado y mouse alámbrico 1.7NA | F86: Teclado y mouse alámbrico 1.7 | G86: ETP | H86: 1 | I86: NA | J86: unidad | K86: Und | L86: Nex computer S.A. | N86: 81696 | O86: 79488 | P86: 1 | Q86: =IF(COUNTIF(SolCotizacion!$D:$D,$G86)>0,1,0) -> 1 | R86: 151
A87: Nex computer S.A.S1_ETP (accesorio)_20 | B87: S1_ETP (accesorio)_20 | C87: 20 | D87: ETP (accesorio) | E87: Auricular - Diadema de comunicaciones 1.8NA | F87: Auricular - Diadema de comunicaciones 1.8 | G87: ETP | H87: 1 | I87: NA | J87: unidad | K87: Und | L87: Nex computer S.A. | N87: 136896 | O87: 133584 | P87: 1 | Q87: =IF(COUNTIF(SolCotizacion!$D:$D,$G86)>0,1,0) -> 1 | R87: 153
A88: Nex computer S.A.S1_ETP (accesorio)_21 | B88: S1_ETP (accesorio)_21 | C88: 21 | D88: ETP (accesorio) | E88: Parlantes 1.9NA | F88: Parlantes 1.9 | G88: ETP | H88: 1 | I88: NA | J88: unidad | K88: Und | L88: Nex computer S.A. | N88: 17664 | O88: 16560 | P88: 1 | Q88: =IF(COUNTIF(SolCotizacion!$D:$D,$G86)>0,1,0) -> 1 | R88: 155
A89: Nex computer S.A.S1_ETP (accesorio)_22 | B89: S1_ETP (accesorio)_22 | C89: 22 | D89: ETP (accesorio) | E89: Dispositivo de almacenamiento externo 1.10NA | F89: Dispositivo de almacenamiento externo 1.10 | G89: ETP | H89: 1 | I89: NA | J89: unidad | K89: Und | L89: Nex computer S.A. | N89: 602784 | O89: 590640 | P89: 1 | Q89: =IF(COUNTIF(SolCotizacion!$D:$D,$G86)>0,1,0) -> 1 | R89: 157
A90: Nex computer S.A.S1_ETP (accesorio)_23 | B90: S1_ETP (accesorio)_23 | C90: 23 | D90: ETP (accesorio) | E90: Replicador de puertos 1.11NA | F90: Replicador de puertos 1.11 | G90: ETP | H90: 1 | I90: NA | J90: unidad | K90: Und | L90: Nex computer S.A. | N90: 231840 | O90: 220800 | P90: 1 | Q90: =IF(COUNTIF(SolCotizacion!$D:$D,$G86)>0,1,0) -> 1 | R90: 159
A91: Nex computer S.A.S1_ETP (accesorio)_24 | B91: S1_ETP (accesorio)_24 | C91: 24 | D91: ETP (accesorio) | E91: Tarjeta de red 1.1NA | F91: Tarjeta de red 1.1 | G91: Computador de escritorio 1.1 | H91: 1 | I91: NA | J91: unidad | K91: Und | L91: Nex computer S.A. | N91: 35328 | O91: 33120 | P91: 1 | Q91: =IF(COUNTIF(SolCotizacion!$E:$E,$G91)>0,1,0) -> 0 | R91: 161
A92: Nex computer S.A.S1_ETP (accesorio)_25 | B92: S1_ETP (accesorio)_25 | C92: 25 | D92: ETP (accesorio) | E92: Memoria RAM 1.2NA | F92: Memoria RAM 1.2 | G92: Computador de escritorio 1.2 | H92: 1 | I92: NA | J92: unidad | K92: Und | L92: Nex computer S.A. | N92: 248400 | O92: 245088 | P92: 1 | Q92: =IF(COUNTIF(SolCotizacion!$E:$E,$G92)>0,1,0) -> 0 | R92: 163
A93: Nex computer S.A.S1_ETP (accesorio)_26 | B93: S1_ETP (accesorio)_26 | C93: 26 | D93: ETP (accesorio) | E93: Memoria RAM 1.3NA | F93: Memoria RAM 1.3 | G93: Computador de escritorio Linux 1.3 | H93: 1 | I93: NA | J93: unidad | K93: Und | L93: Nex computer S.A. | N93: 248400 | O93: 245088 | P93: 1 | Q93: =IF(COUNTIF(SolCotizacion!$E:$E,$G93)>0,1,0) -> 0 | R93: 165
A94: Nex computer S.A.S1_ETP (accesorio)_27 | B94: S1_ETP (accesorio)_27 | C94: 27 | D94: ETP (accesorio) | E94: Memoria RAM 1.6NA | F94: Memoria RAM 1.6 | G94: Computador de escritorio 1.6 | H94: 1 | I94: NA | J94: unidad | K94: Und | L94: Nex computer S.A. | N94: 496800 | O94: 485760 | P94: 1 | Q94: =IF(COUNTIF(SolCotizacion!$E:$E,$G94)>0,1,0) -> 0 | R94: 167
A95: Nex computer S.A.S1_Servicio_28 | B95: S1_Servicio_28 | C95: 28 | D95: Servicio | E95: Mantenimiento preventivo1 | F95: Mantenimiento preventivo | G95: ETP | H95: 1 | I95: 1 | J95: ETP | K95: Und | L95: Nex computer S.A. | N95: 12888.00744 | O95: 10740.0062 | P95: 1 | Q95: =IF(COUNTIFS(SolCotizacion!$D:$D,$G95,SolCotizacion!$K:$K,$I95)>0,1,0) -> 1 | R95: 169
A96: Nex computer S.A.S1_Servicio_29 | B96: S1_Servicio_29 | C96: 29 | D96: Servicio | E96: Mantenimiento preventivo2 | F96: Mantenimiento preventivo | G96: ETP | H96: 1 | I96: 2 | J96: ETP | K96: Und | L96: Nex computer S.A. | N96: 15036.00868 | O96: 13962.00806 | P96: 1 | Q96: =IF(COUNTIFS(SolCotizacion!$D:$D,$G96,SolCotizacion!$K:$K,$I96)>0,1,0) -> 0 | R96: 171
A97: Nex computer S.A.S1_Servicio_30 | B97: S1_Servicio_30 | C97: 30 | D97: Servicio | E97: Mantenimiento preventivo3 | F97: Mantenimiento preventivo | G97: ETP | H97: 1 | I97: 3 | J97: ETP | K97: Und | L97: Nex computer S.A. | N97: 15036.00868 | O97: 13962.00806 | P97: 1 | Q97: =IF(COUNTIFS(SolCotizacion!$D:$D,$G97,SolCotizacion!$K:$K,$I97)>0,1,0) -> 0 | R97: 173
A98: Nex computer S.A.S1_Servicio_31 | B98: S1_Servicio_31 | C98: 31 | D98: Servicio | E98: Migración o transferencia de datos1 | F98: Migración o transferencia de datos | G98: ETP | H98: 1 | I98: 1 | J98: GB/ETP | K98: GB | L98: Nex computer S.A. | N98: 6444.00372 | O98: 5370.0031 | P98: 1 | Q98: =IF(COUNTIFS(SolCotizacion!$D:$D,$G98,SolCotizacion!$K:$K,$I98)>0,1,0) -> 1 | R98: 175
A99: Nex computer S.A.S1_Servicio_32 | B99: S1_Servicio_32 | C99: 32 | D99: Servicio | E99: Migración o transferencia de datos2 | F99: Migración o transferencia de datos | G99: ETP | H99: 1 | I99: 2 | J99: GB/ETP | K99: GB | L99: Nex computer S.A. | N99: 6444.00372 | O99: 5370.0031 | P99: 1 | Q99: =IF(COUNTIFS(SolCotizacion!$D:$D,$G99,SolCotizacion!$K:$K,$I99)>0,1,0) -> 0 | R99: 177
A100: Nex computer S.A.S1_Servicio_33 | B100: S1_Servicio_33 | C100: 33 | D100: Servicio | E100: Migración o transferencia de datos3 | F100: Migración o transferencia de datos | G100: ETP | H100: 1 | I100: 3 | J100: GB/ETP | K100: GB | L100: Nex computer S.A. | N100: 6444.00372 | O100: 5370.0031 | P100: 1 | Q100: =IF(COUNTIFS(SolCotizacion!$D:$D,$G100,SolCotizacion!$K:$K,$I100)>0,1,0) -> 0 | R100: 179
A101: Nex computer S.A.S1_Servicio_34 | B101: S1_Servicio_34 | C101: 34 | D101: Servicio | E101: Garantía extendida 1.1NA | F101: Garantía extendida 1.1 | G101: Computador de escritorio 1.1 | H101: 1 | I101: NA | J101: ETP/año | K101: ETP1A | L101: Nex computer S.A. | N101: 51552.02976 | O101: 49404.02852 | P101: 1 | Q101: =IF(COUNTIF(SolCotizacion!$E:$E,$G101)>0,1,0) -> 0 | R101: 181
A102: Nex computer S.A.S1_Servicio_35 | B102: S1_Servicio_35 | C102: 35 | D102: Servicio | E102: Garantía extendida 1.1NA | F102: Garantía extendida 1.1 | G102: Computador de escritorio 1.1 | H102: 1 | I102: NA | J102: ETP/2 años | K102: ETP2A | L102: Nex computer S.A. | N102: 51552.02976 | O102: 49404.02852 | P102: 1 | Q102: =IF(COUNTIF(SolCotizacion!$E:$E,$G102)>0,1,0) -> 0 | R102: 183
A103: Nex computer S.A.S1_Servicio_36 | B103: S1_Servicio_36 | C103: 36 | D103: Servicio | E103: Garantía extendida 1.2NA | F103: Garantía extendida 1.2 | G103: Computador de escritorio 1.2 | H103: 1 | I103: NA | J103: ETP/año | K103: ETP1A | L103: Nex computer S.A. | N103: 51552.02976 | O103: 49404.02852 | P103: 1 | Q103: =IF(COUNTIF(SolCotizacion!$E:$E,$G103)>0,1,0) -> 0 | R103: 185
A104: Nex computer S.A.S1_Servicio_37 | B104: S1_Servicio_37 | C104: 37 | D104: Servicio | E104: Garantía extendida 1.2NA | F104: Garantía extendida 1.2 | G104: Computador de escritorio 1.2 | H104: 1 | I104: NA | J104: ETP/2 años | K104: ETP2A | L104: Nex computer S.A. | N104: 51552.02976 | O104: 49404.02852 | P104: 1 | Q104: =IF(COUNTIF(SolCotizacion!$E:$E,$G104)>0,1,0) -> 0 | R104: 187
A105: Nex computer S.A.S1_Servicio_38 | B105: S1_Servicio_38 | C105: 38 | D105: Servicio | E105: Garantía extendida 1.3NA | F105: Garantía extendida 1.3 | G105: Computador de escritorio Linux 1.3 | H105: 1 | I105: NA | J105: ETP/año | K105: ETP1A | L105: Nex computer S.A. | N105: 51552.02976 | O105: 49404.02852 | P105: 1 | Q105: =IF(COUNTIF(SolCotizacion!$E:$E,$G105)>0,1,0) -> 0 | R105: 189
A106: Nex computer S.A.S1_Servicio_39 | B106: S1_Servicio_39 | C106: 39 | D106: Servicio | E106: Garantía extendida 1.3NA | F106: Garantía extendida 1.3 | G106: Computador de escritorio Linux 1.3 | H106: 1 | I106: NA | J106: ETP/2 años | K106: ETP2A | L106: Nex computer S.A. | N106: 51552.02976 | O106: 49404.02852 | P106: 1 | Q106: =IF(COUNTIF(SolCotizacion!$E:$E,$G106)>0,1,0) -> 0 | R106: 191
A107: Nex computer S.A.S1_Servicio_40 | B107: S1_Servicio_40 | C107: 40 | D107: Servicio | E107: Garantía extendida 1.4NA | F107: Garantía extendida 1.4 | G107: Computador de escritorio 1.4 | H107: 1 | I107: NA | J107: ETP/año | K107: ETP1A | L107: Nex computer S.A. | N107: 51552.02976 | O107: 49404.02852 | P107: 1 | Q107: =IF(COUNTIF(SolCotizacion!$E:$E,$G107)>0,1,0) -> 0 | R107: 193
A108: Nex computer S.A.S1_Servicio_41 | B108: S1_Servicio_41 | C108: 41 | D108: Servicio | E108: Garantía extendida 1.4NA | F108: Garantía extendida 1.4 | G108: Computador de escritorio 1.4 | H108: 1 | I108: NA | J108: ETP/2 años | K108: ETP2A | L108: Nex computer S.A. | N108: 51552.02976 | O108: 49404.02852 | P108: 1 | Q108: =IF(COUNTIF(SolCotizacion!$E:$E,$G108)>0,1,0) -> 0 | R108: 195
A109: Nex computer S.A.S1_Servicio_42 | B109: S1_Servicio_42 | C109: 42 | D109: Servicio | E109: Garantía extendida 1.5NA | F109: Garantía extendida 1.5 | G109: All in one 1.5 | H109: 1 | I109: NA | J109: ETP/año | K109: ETP1A | L109: Nex computer S.A. | N109: 51552.02976 | O109: 49404.02852 | P109: 1 | Q109: =IF(COUNTIF(SolCotizacion!$E:$E,$G109)>0,1,0) -> 1 | R109: 197
A110: Nex computer S.A.S1_Servicio_43 | B110: S1_Servicio_43 | C110: 43 | D110: Servicio | E110: Garantía extendida 1.5NA | F110: Garantía extendida 1.5 | G110: All in one 1.5 | H110: 1 | I110: NA | J110: ETP/2 años | K110: ETP2A | L110: Nex computer S.A. | N110: 51552.02976 | O110: 49404.02852 | P110: 1 | Q110: =IF(COUNTIF(SolCotizacion!$E:$E,$G110)>0,1,0) -> 1 | R110: 199
A111: Nex computer S.A.S1_Servicio_44 | B111: S1_Servicio_44 | C111: 44 | D111: Servicio | E111: Garantía extendida 1.6NA | F111: Garantía extendida 1.6 | G111: Computador de escritorio 1.6 | H111: 1 | I111: NA | J111: ETP/año | K111: ETP1A | L111: Nex computer S.A. | N111: 51552.02976 | O111: 49404.02852 | P111: 1 | Q111: =IF(COUNTIF(SolCotizacion!$E:$E,$G111)>0,1,0) -> 0 | R111: 201
A112: Nex computer S.A.S1_Servicio_45 | B112: S1_Servicio_45 | C112: 45 | D112: Servicio | E112: Garantía extendida 1.6NA | F112: Garantía extendida 1.6 | G112: Computador de escritorio 1.6 | H112: 1 | I112: NA | J112: ETP/2 años | K112: ETP2A | L112: Nex computer S.A. | N112: 51552.02976 | O112: 49404.02852 | P112: 1 | Q112: =IF(COUNTIF(SolCotizacion!$E:$E,$G112)>0,1,0) -> 0 | R112: 203
A113: Nex computer S.A.S1_Servicio_46 | B113: S1_Servicio_46 | C113: 46 | D113: Servicio | E113: Instalación de software y configuración del ETP1 | F113: Instalación de software y configuración del ETP | G113: ETP | H113: 1 | I113: 1 | J113: ETP | K113: Und | L113: Nex computer S.A. | N113: 5370.0031 | O113: 5370.0031 | P113: 1 | Q113: =IF(COUNTIFS(SolCotizacion!$D:$D,$G113,SolCotizacion!$K:$K,$I113)>0,1,0) -> 1 | R113: 205
A114: Nex computer S.A.S1_Servicio_47 | B114: S1_Servicio_47 | C114: 47 | D114: Servicio | E114: Instalación de software y configuración del ETP2 | F114: Instalación de software y configuración del ETP | G114: ETP | H114: 1 | I114: 2 | J114: ETP | K114: Und | L114: Nex computer S.A. | N114: 5370.0031 | O114: 5370.0031 | P114: 1 | Q114: =IF(COUNTIFS(SolCotizacion!$D:$D,$G114,SolCotizacion!$K:$K,$I114)>0,1,0) -> 0 | R114: 207
A115: Nex computer S.A.S1_Servicio_48 | B115: S1_Servicio_48 | C115: 48 | D115: Servicio | E115: Instalación de software y configuración del ETP3 | F115: Instalación de software y configuración del ETP | G115: ETP | H115: 1 | I115: 3 | J115: ETP | K115: Und | L115: Nex computer S.A. | N115: 5370.0031 | O115: 5370.0031 | P115: 1 | Q115: =IF(COUNTIFS(SolCotizacion!$D:$D,$G115,SolCotizacion!$K:$K,$I115)>0,1,0) -> 0 | R115: 209
A116: Nex computer S.A.S1_Servicio_49 | B116: S1_Servicio_49 | C116: 49 | D116: Servicio | E116: Garantía anticipada 1.11 | F116: Garantía anticipada 1.1 | G116: Computador de escritorio 1.1 | H116: 1 | I116: 1 | J116: % adicional por garantía anticipada/ETP | K116: Und | L116: Nex computer S.A. | M116: 0.005 | N116: 13016.88958 | O116: 12748.38426 | P116: 1 | Q116: =IF(SUMIFS(SolCotizacion!$P:$P,SolCotizacion!$E:$E,$G116,SolCotizacion!$K:$K,$I116)>499,1,0) -> 0 | R116: 211 | S116: =IF(SUMIFS(SolCotizacion!$P:$P,SolCotizacion!$E:$E,$G116,SolCotizacion!$K:$K,$I116)>499,4%,0) -> 0
A117: Nex computer S.A.S1_Servicio_50 | B117: S1_Servicio_50 | C117: 50 | D117: Servicio | E117: Garantía anticipada 1.12 | F117: Garantía anticipada 1.1 | G117: Computador de escritorio 1.1 | H117: 1 | I117: 2 | J117: % adicional por garantía anticipada/ETP | K117: Und | L117: Nex computer S.A. | M117: 0.005 | N117: 13113.5486 | O117: 12850.41897 | P117: 1 | Q117: =IF(SUMIFS(SolCotizacion!$P:$P,SolCotizacion!$E:$E,$G117,SolCotizacion!$K:$K,$I117)>499,1,0) -> 0 | R117: 212 | S117: =IF(SUMIFS(SolCotizacion!$P:$P,SolCotizacion!$E:$E,$G117,SolCotizacion!$K:$K,$I117)>499,4%,0) -> 0
A118: Nex computer S.A.S1_Servicio_51 | B118: S1_Servicio_51 | C118: 51 | D118: Servicio | E118: Garantía anticipada 1.13 | F118: Garantía anticipada 1.1 | G118: Computador de escritorio 1.1 | H118: 1 | I118: 3 | J118: % adicional por garantía anticipada/ETP | K118: Und | L118: Nex computer S.A. | M118: 0.005 | N118: 13269.27818 | O118: 13006.14854 | P118: 1 | Q118: =IF(SUMIFS(SolCotizacion!$P:$P,SolCotizacion!$E:$E,$G118,SolCotizacion!$K:$K,$I118)>499,1,0) -> 0 | R118: 213 | S118: =IF(SUMIFS(SolCotizacion!$P:$P,SolCotizacion!$E:$E,$G118,SolCotizacion!$K:$K,$I118)>499,4%,0) -> 0
A119: Nex computer S.A.S1_Servicio_52 | B119: S1_Servicio_52 | C119: 52 | D119: Servicio | E119: Garantía anticipada 1.21 | F119: Garantía anticipada 1.2 | G119: Computador de escritorio 1.2 | H119: 1 | I119: 1 | J119: % adicional por garantía anticipada/ETP | K119: Und | L119: Nex computer S.A. | M119: 0.005 | N119: 14294.94928 | O119: 14004.97221 | P119: 1 | Q119: =IF(SUMIFS(SolCotizacion!$P:$P,SolCotizacion!$E:$E,$G119,SolCotizacion!$K:$K,$I119)>499,1,0) -> 0 | R119: 214 | S119: =IF(SUMIFS(SolCotizacion!$P:$P,SolCotizacion!$E:$E,$G119,SolCotizacion!$K:$K,$I119)>499,4%,0) -> 0
A120: Nex computer S.A.S1_Servicio_53 | B120: S1_Servicio_53 | C120: 53 | D120: Servicio | E120: Garantía anticipada 1.22 | F120: Garantía anticipada 1.2 | G120: Computador de escritorio 1.2 | H120: 1 | I120: 2 | J120: % adicional por garantía anticipada/ETP | K120: Und | L120: Nex computer S.A. | M120: 0.005 | N120: 14407.71471 | O120: 14117.73763 | P120: 1 | Q120: =IF(SUMIFS(SolCotizacion!$P:$P,SolCotizacion!$E:$E,$G120,SolCotizacion!$K:$K,$I120)>499,1,0) -> 0 | R120: 215 | S120: =IF(SUMIFS(SolCotizacion!$P:$P,SolCotizacion!$E:$E,$G120,SolCotizacion!$K:$K,$I120)>499,4%,0) -> 0
A121: Nex computer S.A.S1_Servicio_54 | B121: S1_Servicio_54 | C121: 54 | D121: Servicio | E121: Garantía anticipada 1.23 | F121: Garantía anticipada 1.2 | G121: Computador de escritorio 1.2 | H121: 1 | I121: 3 | J121: % adicional por garantía anticipada/ETP | K121: Und | L121: Nex computer S.A. | M121: 0.005 | N121: 14579.561 | O121: 14284.20825 | P121: 1 | Q121: =IF(SUMIFS(SolCotizacion!$P:$P,SolCotizacion!$E:$E,$G121,SolCotizacion!$K:$K,$I121)>499,1,0) -> 0 | R121: 216 | S121: =IF(SUMIFS(SolCotizacion!$P:$P,SolCotizacion!$E:$E,$G121,SolCotizacion!$K:$K,$I121)>499,4%,0) -> 0
A122: Nex computer S.A.S1_Servicio_55 | B122: S1_Servicio_55 | C122: 55 | D122: Servicio | E122: Garantía anticipada 1.31 | F122: Garantía anticipada 1.3 | G122: Computador de escritorio Linux 1.3 | H122: 1 | I122: 1 | J122: % adicional por garantía anticipada/ETP | K122: Und | L122: Nex computer S.A. | M122: 0.005 | N122: 10573.53559 | O122: 10358.73546 | P122: 1 | Q122: =IF(SUMIFS(SolCotizacion!$P:$P,SolCotizacion!$E:$E,$G122,SolCotizacion!$K:$K,$I122)>499,1,0) -> 0 | R122: 217 | S122: =IF(SUMIFS(SolCotizacion!$P:$P,SolCotizacion!$E:$E,$G122,SolCotizacion!$K:$K,$I122)>499,4%,0) -> 0
A123: Nex computer S.A.S1_Servicio_56 | B123: S1_Servicio_56 | C123: 56 | D123: Servicio | E123: Garantía anticipada 1.32 | F123: Garantía anticipada 1.3 | G123: Computador de escritorio Linux 1.3 | H123: 1 | I123: 2 | J123: % adicional por garantía anticipada/ETP | K123: Und | L123: Nex computer S.A. | M123: 0.005 | N123: 10654.08821 | O123: 10439.28809 | P123: 1 | Q123: =IF(SUMIFS(SolCotizacion!$P:$P,SolCotizacion!$E:$E,$G123,SolCotizacion!$K:$K,$I123)>499,1,0) -> 0 | R123: 218 | S123: =IF(SUMIFS(SolCotizacion!$P:$P,SolCotizacion!$E:$E,$G123,SolCotizacion!$K:$K,$I123)>499,4%,0) -> 0
A124: Nex computer S.A.S1_Servicio_57 | B124: S1_Servicio_57 | C124: 57 | D124: Servicio | E124: Garantía anticipada 1.33 | F124: Garantía anticipada 1.3 | G124: Computador de escritorio Linux 1.3 | H124: 1 | I124: 3 | J124: % adicional por garantía anticipada/ETP | K124: Und | L124: Nex computer S.A. | M124: 0.005 | N124: 10782.97035 | O124: 10568.17023 | P124: 1 | Q124: =IF(SUMIFS(SolCotizacion!$P:$P,SolCotizacion!$E:$E,$G124,SolCotizacion!$K:$K,$I124)>499,1,0) -> 0 | R124: 219 | S124: =IF(SUMIFS(SolCotizacion!$P:$P,SolCotizacion!$E:$E,$G124,SolCotizacion!$K:$K,$I124)>499,4%,0) -> 0
A125: Nex computer S.A.S1_Servicio_58 | B125: S1_Servicio_58 | C125: 58 | D125: Servicio | E125: Garantía anticipada 1.41 | F125: Garantía anticipada 1.4 | G125: Computador de escritorio 1.4 | H125: 1 | I125: 1 | J125: % adicional por garantía anticipada/ETP | K125: Und | L125: Nex computer S.A. | M125: 0.005 | N125: 15594.49107 | O125: 15277.65624 | P125: 1 | Q125: =IF(SUMIFS(SolCotizacion!$P:$P,SolCotizacion!$E:$E,$G125,SolCotizacion!$K:$K,$I125)>499,1,0) -> 0 | R125: 220 | S125: =IF(SUMIFS(SolCotizacion!$P:$P,SolCotizacion!$E:$E,$G125,SolCotizacion!$K:$K,$I125)>499,4%,0) -> 0
A126: Nex computer S.A.S1_Servicio_59 | B126: S1_Servicio_59 | C126: 59 | D126: Servicio | E126: Garantía anticipada 1.42 | F126: Garantía anticipada 1.4 | G126: Computador de escritorio 1.4 | H126: 1 | I126: 2 | J126: % adicional por garantía anticipada/ETP | K126: Und | L126: Nex computer S.A. | M126: 0.005 | N126: 15717.99753 | O126: 15401.17302 | P126: 1 | Q126: =IF(SUMIFS(SolCotizacion!$P:$P,SolCotizacion!$E:$E,$G126,SolCotizacion!$K:$K,$I126)>499,1,0) -> 0 | R126: 221 | S126: =IF(SUMIFS(SolCotizacion!$P:$P,SolCotizacion!$E:$E,$G126,SolCotizacion!$K:$K,$I126)>499,4%,0) -> 0
A127: Nex computer S.A.S1_Servicio_60 | B127: S1_Servicio_60 | C127: 60 | D127: Servicio | E127: Garantía anticipada 1.43 | F127: Garantía anticipada 1.4 | G127: Computador de escritorio 1.4 | H127: 1 | I127: 3 | J127: % adicional por garantía anticipada/ETP | K127: Und | L127: Nex computer S.A. | M127: 0.005 | N127: 15905.95021 | O127: 15583.75003 | P127: 1 | Q127: =IF(SUMIFS(SolCotizacion!$P:$P,SolCotizacion!$E:$E,$G127,SolCotizacion!$K:$K,$I127)>499,1,0) -> 0 | R127: 222 | S127: =IF(SUMIFS(SolCotizacion!$P:$P,SolCotizacion!$E:$E,$G127,SolCotizacion!$K:$K,$I127)>499,4%,0) -> 0
A128: Nex computer S.A.S1_Servicio_61 | B128: S1_Servicio_61 | C128: 61 | D128: Servicio | E128: Garantía anticipada 1.51 | F128: Garantía anticipada 1.5 | G128: All in one 1.5 | H128: 1 | I128: 1 | J128: % adicional por garantía anticipada/ETP | K128: Und | L128: Nex computer S.A. | M128: 0.005 | N128: 16179.82089 | O128: 15852.24502 | P128: 1 | Q128: =IF(SUMIFS(SolCotizacion!$P:$P,SolCotizacion!$E:$E,$G128,SolCotizacion!$K:$K,$I128)>499,1,0) -> 0 | R128: 223 | S128: =IF(SUMIFS(SolCotizacion!$P:$P,SolCotizacion!$E:$E,$G128,SolCotizacion!$K:$K,$I128)>499,4%,0) -> 0
A129: Nex computer S.A.S1_Servicio_62 | B129: S1_Servicio_62 | C129: 62 | D129: Servicio | E129: Garantía anticipada 1.52 | F129: Garantía anticipada 1.5 | G129: All in one 1.5 | H129: 1 | I129: 2 | J129: % adicional por garantía anticipada/ETP | K129: Und | L129: Nex computer S.A. | M129: 0.005 | N129: 16308.70303 | O129: 15981.12716 | P129: 1 | Q129: =IF(SUMIFS(SolCotizacion!$P:$P,SolCotizacion!$E:$E,$G129,SolCotizacion!$K:$K,$I129)>499,1,0) -> 0 | R129: 224 | S129: =IF(SUMIFS(SolCotizacion!$P:$P,SolCotizacion!$E:$E,$G129,SolCotizacion!$K:$K,$I129)>499,4%,0) -> 0
A130: Nex computer S.A.S1_Servicio_63 | B130: S1_Servicio_63 | C130: 63 | D130: Servicio | E130: Garantía anticipada 1.53 | F130: Garantía anticipada 1.5 | G130: All in one 1.5 | H130: 1 | I130: 3 | J130: % adicional por garantía anticipada/ETP | K130: Und | L130: Nex computer S.A. | M130: 0.005 | N130: 16502.02107 | O130: 16169.07985 | P130: 1 | Q130: =IF(SUMIFS(SolCotizacion!$P:$P,SolCotizacion!$E:$E,$G130,SolCotizacion!$K:$K,$I130)>499,1,0) -> 0 | R130: 225 | S130: =IF(SUMIFS(SolCotizacion!$P:$P,SolCotizacion!$E:$E,$G130,SolCotizacion!$K:$K,$I130)>499,4%,0) -> 0
A131: Nex computer S.A.S1_Servicio_64 | B131: S1_Servicio_64 | C131: 64 | D131: Servicio | E131: Garantía anticipada 1.61 | F131: Garantía anticipada 1.6 | G131: Computador de escritorio 1.6 | H131: 1 | I131: 1 | J131: % adicional por garantía anticipada/ETP | K131: Und | L131: Nex computer S.A. | M131: 0.005 | N131: 18284.85798 | O131: 17914.32828 | P131: 1 | Q131: =IF(SUMIFS(SolCotizacion!$P:$P,SolCotizacion!$E:$E,$G131,SolCotizacion!$K:$K,$I131)>499,1,0) -> 0 | R131: 226 | S131: =IF(SUMIFS(SolCotizacion!$P:$P,SolCotizacion!$E:$E,$G131,SolCotizacion!$K:$K,$I131)>499,4%,0) -> 0
A132: Nex computer S.A.S1_Servicio_65 | B132: S1_Servicio_65 | C132: 65 | D132: Servicio | E132: Garantía anticipada 1.62 | F132: Garantía anticipada 1.6 | G132: Computador de escritorio 1.6 | H132: 1 | I132: 2 | J132: % adicional por garantía anticipada/ETP | K132: Und | L132: Nex computer S.A. | M132: 0.005 | N132: 18429.84651 | O132: 18059.31681 | P132: 1 | Q132: =IF(SUMIFS(SolCotizacion!$P:$P,SolCotizacion!$E:$E,$G132,SolCotizacion!$K:$K,$I132)>499,1,0) -> 0 | R132: 227 | S132: =IF(SUMIFS(SolCotizacion!$P:$P,SolCotizacion!$E:$E,$G132,SolCotizacion!$K:$K,$I132)>499,4%,0) -> 0
A133: Nex computer S.A.S1_Servicio_66 | B133: S1_Servicio_66 | C133: 66 | D133: Servicio | E133: Garantía anticipada 1.63 | F133: Garantía anticipada 1.6 | G133: Computador de escritorio 1.6 | H133: 1 | I133: 3 | J133: % adicional por garantía anticipada/ETP | K133: Und | L133: Nex computer S.A. | M133: 0.005 | N133: 18650.02231 | O133: 18274.11694 | P133: 1 | Q133: =IF(SUMIFS(SolCotizacion!$P:$P,SolCotizacion!$E:$E,$G133,SolCotizacion!$K:$K,$I133)>499,1,0) -> 0 | R133: 228 | S133: =IF(SUMIFS(SolCotizacion!$P:$P,SolCotizacion!$E:$E,$G133,SolCotizacion!$K:$K,$I133)>499,4%,0) -> 0
A134: Selcom ingeniería S.A.S.S1_ETP_1 | B134: S1_ETP_1 | C134: 1 | D134: ETP | E134: Computador de escritorio 1.11 | F134: Computador de escritorio 1.1 | G134: Computador de escritorio 1.1 | H134: 1 | I134: 1 | J134: unidad | K134: Und | L134: Selcom ingeniería S.A.S. | N134: 1907364.24 | O134: 1816223.52 | P134: 1 | Q134: 1 | R134: 229
A135: Selcom ingeniería S.A.S.S1_ETP_2 | B135: S1_ETP_2 | C135: 2 | D135: ETP | E135: Computador de escritorio 1.12 | F135: Computador de escritorio 1.1 | G135: Computador de escritorio 1.1 | H135: 1 | I135: 2 | J135: unidad | K135: Und | L135: Selcom ingeniería S.A.S. | N135: 2315391.6 | O135: 1853864.4 | P135: 1 | Q135: 1 | R135: 231
A136: Selcom ingeniería S.A.S.S1_ETP_3 | B136: S1_ETP_3 | C136: 3 | D136: ETP | E136: Computador de escritorio 1.13 | F136: Computador de escritorio 1.1 | G136: Computador de escritorio 1.1 | H136: 1 | I136: 3 | J136: unidad | K136: Und | L136: Selcom ingeniería S.A.S. | N136: 2372418.72 | O136: 2262090.48 | P136: 1 | Q136: 1 | R136: 233
A137: Selcom ingeniería S.A.S.S1_ETP_4 | B137: S1_ETP_4 | C137: 4 | D137: ETP | E137: Computador de escritorio 1.21 | F137: Computador de escritorio 1.2 | G137: Computador de escritorio 1.2 | H137: 1 | I137: 1 | J137: unidad | K137: Und | L137: Selcom ingeniería S.A.S. | N137: 2823215.04 | O137: 2688306.24 | P137: 1 | Q137: 1 | R137: 235
A138: Selcom ingeniería S.A.S.S1_ETP_5 | B138: S1_ETP_5 | C138: 5 | D138: ETP | E138: Computador de escritorio 1.22 | F138: Computador de escritorio 1.2 | G138: Computador de escritorio 1.2 | H138: 1 | I138: 2 | J138: unidad | K138: Und | L138: Selcom ingeniería S.A.S. | N138: 2879960.64 | O138: 2744019.6 | P138: 1 | Q138: 1 | R138: 237
A139: Selcom ingeniería S.A.S.S1_ETP_6 | B139: S1_ETP_6 | C139: 6 | D139: ETP | E139: Computador de escritorio 1.23 | F139: Computador de escritorio 1.2 | G139: Computador de escritorio 1.2 | H139: 1 | I139: 3 | J139: unidad | K139: Und | L139: Selcom ingeniería S.A.S. | N139: 2950892.64 | O139: 2813670.96 | P139: 1 | Q139: 1 | R139: 239
A140: Selcom ingeniería S.A.S.S1_ETP_7 | B140: S1_ETP_7 | C140: 7 | D140: ETP | E140: Computador de escritorio Linux 1.31 | F140: Computador de escritorio Linux 1.3 | G140: Computador de escritorio Linux 1.3 | H140: 1 | I140: 1 | J140: unidad | K140: Und | L140: Selcom ingeniería S.A.S. | N140: 1930824.24 | O140: 1838557.44 | P140: 1 | Q140: 1 | R140: 241
A141: Selcom ingeniería S.A.S.S1_ETP_8 | B141: S1_ETP_8 | C141: 8 | D141: ETP | E141: Computador de escritorio Linux 1.32 | F141: Computador de escritorio Linux 1.3 | G141: Computador de escritorio Linux 1.3 | H141: 1 | I141: 2 | J141: unidad | K141: Und | L141: Selcom ingeniería S.A.S. | N141: 2343858.24 | O141: 1876667.52 | P141: 1 | Q141: 1 | R141: 243
A142: Selcom ingeniería S.A.S.S1_ETP_9 | B142: S1_ETP_9 | C142: 9 | D142: ETP | E142: Computador de escritorio Linux 1.33 | F142: Computador de escritorio Linux 1.3 | G142: Computador de escritorio Linux 1.3 | H142: 1 | I142: 3 | J142: unidad | K142: Und | L142: Selcom ingeniería S.A.S. | N142: 2401597.44 | O142: 2289911.28 | P142: 1 | Q142: 1 | R142: 245
A143: Selcom ingeniería S.A.S.S1_ETP_10 | B143: S1_ETP_10 | C143: 10 | D143: ETP | E143: Computador de escritorio 1.41 | F143: Computador de escritorio 1.4 | G143: Computador de escritorio 1.4 | H143: 1 | I143: 1 | J143: unidad | K143: Und | L143: Selcom ingeniería S.A.S. | N143: 3014455.44 | O143: 2870411.04 | P143: 1 | Q143: 1 | R143: 247
A144: Selcom ingeniería S.A.S.S1_ETP_11 | B144: S1_ETP_11 | C144: 11 | D144: ETP | E144: Computador de escritorio 1.42 | F144: Computador de escritorio 1.4 | G144: Computador de escritorio 1.4 | H144: 1 | I144: 2 | J144: unidad | K144: Und | L144: Selcom ingeniería S.A.S. | N144: 3075048.48 | O144: 2929900.08 | P144: 1 | Q144: 1 | R144: 249
A145: Selcom ingeniería S.A.S.S1_ETP_12 | B145: S1_ETP_12 | C145: 12 | D145: ETP | E145: Computador de escritorio 1.43 | F145: Computador de escritorio 1.4 | G145: Computador de escritorio 1.4 | H145: 1 | I145: 3 | J145: unidad | K145: Und | L145: Selcom ingeniería S.A.S. | N145: 3150788.4 | O145: 3004265.52 | P145: 1 | Q145: 1 | R145: 251
A146: Selcom ingeniería S.A.S.S1_ETP_13 | B146: S1_ETP_13 | C146: 13 | D146: ETP | E146: All in one 1.51 | F146: All in one 1.5 | G146: All in one 1.5 | H146: 1 | I146: 1 | J146: unidad | K146: Und | L146: Selcom ingeniería S.A.S. | N146: 3396014.4 | O146: 3233742.96 | P146: 1 | Q146: 1 | R146: 253
A147: Selcom ingeniería S.A.S.S1_ETP_14 | B147: S1_ETP_14 | C147: 14 | D147: ETP | E147: All in one 1.52 | F147: All in one 1.5 | G147: All in one 1.5 | H147: 1 | I147: 2 | J147: unidad | K147: Und | L147: Selcom ingeniería S.A.S. | N147: 3464280.24 | O147: 3300761.28 | P147: 1 | Q147: 1 | R147: 255
A148: Selcom ingeniería S.A.S.S1_ETP_15 | B148: S1_ETP_15 | C148: 15 | D148: ETP | E148: All in one 1.53 | F148: All in one 1.5 | G148: All in one 1.5 | H148: 1 | I148: 3 | J148: unidad | K148: Und | L148: Selcom ingeniería S.A.S. | N148: 3549608.4 | O148: 3384532.8 | P148: 1 | Q148: 1 | R148: 257
A149: Selcom ingeniería S.A.S.S1_ETP_16 | B149: S1_ETP_16 | C149: 16 | D149: ETP | E149: Computador de escritorio 1.61 | F149: Computador de escritorio 1.6 | G149: Computador de escritorio 1.6 | H149: 1 | I149: 1 | J149: unidad | K149: Und | L149: Selcom ingeniería S.A.S. | N149: 3750481.2 | O149: 3571268.88 | P149: 1 | Q149: 1 | R149: 259
A150: Selcom ingeniería S.A.S.S1_ETP_17 | B150: S1_ETP_17 | C150: 17 | D150: ETP | E150: Computador de escritorio 1.62 | F150: Computador de escritorio 1.6 | G150: Computador de escritorio 1.6 | H150: 1 | I150: 2 | J150: unidad | K150: Und | L150: Selcom ingeniería S.A.S. | N150: 3825867.84 | O150: 3645281.04 | P150: 1 | Q150: 1 | R150: 261
A151: Selcom ingeniería S.A.S.S1_ETP_18 | B151: S1_ETP_18 | C151: 18 | D151: ETP | E151: Computador de escritorio 1.63 | F151: Computador de escritorio 1.6 | G151: Computador de escritorio 1.6 | H151: 1 | I151: 3 | J151: unidad | K151: Und | L151: Selcom ingeniería S.A.S. | N151: 3920099.76 | O151: 3737801.76 | P151: 1 | Q151: 1 | R151: 263
A152: Selcom ingeniería S.A.S.S1_ETP (accesorio)_19 | B152: S1_ETP (accesorio)_19 | C152: 19 | D152: ETP (accesorio) | E152: Teclado y mouse alámbrico 1.7NA | F152: Teclado y mouse alámbrico 1.7 | G152: ETP | H152: 1 | I152: NA | J152: unidad | K152: Und | L152: Selcom ingeniería S.A.S. | N152: 42007.2 | O152: 40014.48 | P152: 1 | Q152: =IF(COUNTIF(SolCotizacion!$D:$D,$G152)>0,1,0) -> 1 | R152: 265
A153: Selcom ingeniería S.A.S.S1_ETP (accesorio)_20 | B153: S1_ETP (accesorio)_20 | C153: 20 | D153: ETP (accesorio) | E153: Auricular - Diadema de comunicaciones 1.8NA | F153: Auricular - Diadema de comunicaciones 1.8 | G153: ETP | H153: 1 | I153: NA | J153: unidad | K153: Und | L153: Selcom ingeniería S.A.S. | N153: 192521.04 | O153: 183346.8 | P153: 1 | Q153: =IF(COUNTIF(SolCotizacion!$D:$D,$G152)>0,1,0) -> 1 | R153: 267
A154: Selcom ingeniería S.A.S.S1_ETP (accesorio)_21 | B154: S1_ETP (accesorio)_21 | C154: 21 | D154: ETP (accesorio) | E154: Parlantes 1.9NA | F154: Parlantes 1.9 | G154: ETP | H154: 1 | I154: NA | J154: unidad | K154: Und | L154: Selcom ingeniería S.A.S. | N154: 24873.12 | O154: 23686.32 | P154: 1 | Q154: =IF(COUNTIF(SolCotizacion!$D:$D,$G152)>0,1,0) -> 1 | R154: 269
A155: Selcom ingeniería S.A.S.S1_ETP (accesorio)_22 | B155: S1_ETP (accesorio)_22 | C155: 22 | D155: ETP (accesorio) | E155: Dispositivo de almacenamiento externo 1.10NA | F155: Dispositivo de almacenamiento externo 1.10 | G155: ETP | H155: 1 | I155: NA | J155: unidad | K155: Und | L155: Selcom ingeniería S.A.S. | N155: 510075.6 | O155: 485782.08 | P155: 1 | Q155: =IF(COUNTIF(SolCotizacion!$D:$D,$G152)>0,1,0) -> 1 | R155: 271
A156: Selcom ingeniería S.A.S.S1_ETP (accesorio)_23 | B156: S1_ETP (accesorio)_23 | C156: 23 | D156: ETP (accesorio) | E156: Replicador de puertos 1.11NA | F156: Replicador de puertos 1.11 | G156: ETP | H156: 1 | I156: NA | J156: unidad | K156: Und | L156: Selcom ingeniería S.A.S. | N156: 335803.68 | O156: 319806.72 | P156: 1 | Q156: =IF(COUNTIF(SolCotizacion!$D:$D,$G152)>0,1,0) -> 1 | R156: 273
A157: Selcom ingeniería S.A.S.S1_ETP (accesorio)_24 | B157: S1_ETP (accesorio)_24 | C157: 24 | D157: ETP (accesorio) | E157: Tarjeta de red 1.1NA | F157: Tarjeta de red 1.1 | G157: Computador de escritorio 1.1 | H157: 1 | I157: NA | J157: unidad | K157: Und | L157: Selcom ingeniería S.A.S. | N157: 62856.24 | O157: 59858.88 | P157: 1 | Q157: =IF(COUNTIF(SolCotizacion!$E:$E,$G157)>0,1,0) -> 0 | R157: 275
A158: Selcom ingeniería S.A.S.S1_ETP (accesorio)_25 | B158: S1_ETP (accesorio)_25 | C158: 25 | D158: ETP (accesorio) | E158: Memoria RAM 1.2NA | F158: Memoria RAM 1.2 | G158: Computador de escritorio 1.2 | H158: 1 | I158: NA | J158: unidad | K158: Und | L158: Selcom ingeniería S.A.S. | N158: 246948.24 | O158: 235190.64 | P158: 1 | Q158: =IF(COUNTIF(SolCotizacion!$E:$E,$G158)>0,1,0) -> 0 | R158: 277
A159: Selcom ingeniería S.A.S.S1_ETP (accesorio)_26 | B159: S1_ETP (accesorio)_26 | C159: 26 | D159: ETP (accesorio) | E159: Memoria RAM 1.3NA | F159: Memoria RAM 1.3 | G159: Computador de escritorio Linux 1.3 | H159: 1 | I159: NA | J159: unidad | K159: Und | L159: Selcom ingeniería S.A.S. | N159: 253837.2 | O159: 241742.88 | P159: 1 | Q159: =IF(COUNTIF(SolCotizacion!$E:$E,$G159)>0,1,0) -> 0 | R159: 279
A160: Selcom ingeniería S.A.S.S1_ETP (accesorio)_27 | B160: S1_ETP (accesorio)_27 | C160: 27 | D160: ETP (accesorio) | E160: Memoria RAM 1.6NA | F160: Memoria RAM 1.6 | G160: Computador de escritorio 1.6 | H160: 1 | I160: NA | J160: unidad | K160: Und | L160: Selcom ingeniería S.A.S. | N160: 501712.8 | O160: 477822.24 | P160: 1 | Q160: =IF(COUNTIF(SolCotizacion!$E:$E,$G160)>0,1,0) -> 0 | R160: 281
A161: Selcom ingeniería S.A.S.S1_Servicio_28 | B161: S1_Servicio_28 | C161: 28 | D161: Servicio | E161: Mantenimiento preventivo1 | F161: Mantenimiento preventivo | G161: ETP | H161: 1 | I161: 1 | J161: ETP | K161: Und | L161: Selcom ingeniería S.A.S. | N161: 18274.11694 | O161: 11040.72431 | P161: 1 | Q161: =IF(COUNTIFS(SolCotizacion!$D:$D,$G161,SolCotizacion!$K:$K,$I161)>0,1,0) -> 1 | R161: 283
A162: Selcom ingeniería S.A.S.S1_Servicio_29 | B162: S1_Servicio_29 | C162: 29 | D162: Servicio | E162: Mantenimiento preventivo2 | F162: Mantenimiento preventivo | G162: ETP | H162: 1 | I162: 2 | J162: ETP | K162: Und | L162: Selcom ingeniería S.A.S. | N162: 42176.00125 | O162: 24847.0028 | P162: 1 | Q162: =IF(COUNTIFS(SolCotizacion!$D:$D,$G162,SolCotizacion!$K:$K,$I162)>0,1,0) -> 0 | R162: 285
A163: Selcom ingeniería S.A.S.S1_Servicio_30 | B163: S1_Servicio_30 | C163: 30 | D163: Servicio | E163: Mantenimiento preventivo3 | F163: Mantenimiento preventivo | G163: ETP | H163: 1 | I163: 3 | J163: ETP | K163: Und | L163: Selcom ingeniería S.A.S. | N163: 70293.34574 | O163: 55212.22676 | P163: 1 | Q163: =IF(COUNTIFS(SolCotizacion!$D:$D,$G163,SolCotizacion!$K:$K,$I163)>0,1,0) -> 0 | R163: 287
A164: Selcom ingeniería S.A.S.S1_Servicio_31 | B164: S1_Servicio_31 | C164: 31 | D164: Servicio | E164: Migración o transferencia de datos1 | F164: Migración o transferencia de datos | G164: ETP | H164: 1 | I164: 1 | J164: GB/ETP | K164: GB | L164: Selcom ingeniería S.A.S. | N164: 7518.00434 | O164: 8055.00465 | P164: 1 | Q164: =IF(COUNTIFS(SolCotizacion!$D:$D,$G164,SolCotizacion!$K:$K,$I164)>0,1,0) -> 1 | R164: 289
A165: Selcom ingeniería S.A.S.S1_Servicio_32 | B165: S1_Servicio_32 | C165: 32 | D165: Servicio | E165: Migración o transferencia de datos2 | F165: Migración o transferencia de datos | G165: ETP | H165: 1 | I165: 2 | J165: GB/ETP | K165: GB | L165: Selcom ingeniería S.A.S. | N165: 8592.00496 | O165: 9129.00527 | P165: 1 | Q165: =IF(COUNTIFS(SolCotizacion!$D:$D,$G165,SolCotizacion!$K:$K,$I165)>0,1,0) -> 0 | R165: 291
A166: Selcom ingeniería S.A.S.S1_Servicio_33 | B166: S1_Servicio_33 | C166: 33 | D166: Servicio | E166: Migración o transferencia de datos3 | F166: Migración o transferencia de datos | G166: ETP | H166: 1 | I166: 3 | J166: GB/ETP | K166: GB | L166: Selcom ingeniería S.A.S. | N166: 9666.00558 | O166: 10203.00589 | P166: 1 | Q166: =IF(COUNTIFS(SolCotizacion!$D:$D,$G166,SolCotizacion!$K:$K,$I166)>0,1,0) -> 0 | R166: 293
A167: Selcom ingeniería S.A.S.S1_Servicio_34 | B167: S1_Servicio_34 | C167: 34 | D167: Servicio | E167: Garantía extendida 1.1NA | F167: Garantía extendida 1.1 | G167: Computador de escritorio 1.1 | H167: 1 | I167: NA | J167: ETP/año | K167: ETP1A | L167: Selcom ingeniería S.A.S. | N167: 113086.8999 | O167: 107695.4148 | P167: 1 | Q167: =IF(COUNTIF(SolCotizacion!$E:$E,$G167)>0,1,0) -> 0 | R167: 295
A168: Selcom ingeniería S.A.S.S1_Servicio_35 | B168: S1_Servicio_35 | C168: 35 | D168: Servicio | E168: Garantía extendida 1.1NA | F168: Garantía extendida 1.1 | G168: Computador de escritorio 1.1 | H168: 1 | I168: NA | J168: ETP/2 años | K168: ETP2A | L168: Selcom ingeniería S.A.S. | N168: 203555.3406 | O168: 193857.1119 | P168: 1 | Q168: =IF(COUNTIF(SolCotizacion!$E:$E,$G168)>0,1,0) -> 0 | R168: 297
A169: Selcom ingeniería S.A.S.S1_Servicio_36 | B169: S1_Servicio_36 | C169: 36 | D169: Servicio | E169: Garantía extendida 1.2NA | F169: Garantía extendida 1.2 | G169: Computador de escritorio 1.2 | H169: 1 | I169: NA | J169: ETP/año | K169: ETP1A | L169: Selcom ingeniería S.A.S. | N169: 146413.1319 | O169: 139432.1279 | P169: 1 | Q169: =IF(COUNTIF(SolCotizacion!$E:$E,$G169)>0,1,0) -> 0 | R169: 299
A170: Selcom ingeniería S.A.S.S1_Servicio_37 | B170: S1_Servicio_37 | C170: 37 | D170: Servicio | E170: Garantía extendida 1.2NA | F170: Garantía extendida 1.2 | G170: Computador de escritorio 1.2 | H170: 1 | I170: NA | J170: ETP/2 años | K170: ETP2A | L170: Selcom ingeniería S.A.S. | N170: 263538.2701 | O170: 250983.2039 | P170: 1 | Q170: =IF(COUNTIF(SolCotizacion!$E:$E,$G170)>0,1,0) -> 0 | R170: 301
A171: Selcom ingeniería S.A.S.S1_Servicio_38 | B171: S1_Servicio_38 | C171: 38 | D171: Servicio | E171: Garantía extendida 1.3NA | F171: Garantía extendida 1.3 | G171: Computador de escritorio Linux 1.3 | H171: 1 | I171: NA | J171: ETP/año | K171: ETP1A | L171: Selcom ingeniería S.A.S. | N171: 120250.481 | O171: 114526.0546 | P171: 1 | Q171: =IF(COUNTIF(SolCotizacion!$E:$E,$G171)>0,1,0) -> 0 | R171: 303
A172: Selcom ingeniería S.A.S.S1_Servicio_39 | B172: S1_Servicio_39 | C172: 39 | D172: Servicio | E172: Garantía extendida 1.3NA | F172: Garantía extendida 1.3 | G172: Computador de escritorio Linux 1.3 | H172: 1 | I172: NA | J172: ETP/2 años | K172: ETP2A | L172: Selcom ingeniería S.A.S. | N172: 216454.0891 | O172: 206143.6831 | P172: 1 | Q172: =IF(COUNTIF(SolCotizacion!$E:$E,$G172)>0,1,0) -> 0 | R172: 305
A173: Selcom ingeniería S.A.S.S1_Servicio_40 | B173: S1_Servicio_40 | C173: 40 | D173: Servicio | E173: Garantía extendida 1.4NA | F173: Garantía extendida 1.4 | G173: Computador de escritorio 1.4 | H173: 1 | I173: NA | J173: ETP/año | K173: ETP1A | L173: Selcom ingeniería S.A.S. | N173: 147363.6261 | O173: 140345.0336 | P173: 1 | Q173: =IF(COUNTIF(SolCotizacion!$E:$E,$G173)>0,1,0) -> 0 | R173: 307
A174: Selcom ingeniería S.A.S.S1_Servicio_41 | B174: S1_Servicio_41 | C174: 41 | D174: Servicio | E174: Garantía extendida 1.4NA | F174: Garantía extendida 1.4 | G174: Computador de escritorio 1.4 | H174: 1 | I174: NA | J174: ETP/2 años | K174: ETP2A | L174: Selcom ingeniería S.A.S. | N174: 265256.6711 | O174: 252621.0522 | P174: 1 | Q174: =IF(COUNTIF(SolCotizacion!$E:$E,$G174)>0,1,0) -> 0 | R174: 309
A175: Selcom ingeniería S.A.S.S1_Servicio_42 | B175: S1_Servicio_42 | C175: 42 | D175: Servicio | E175: Garantía extendida 1.5NA | F175: Garantía extendida 1.5 | G175: All in one 1.5 | H175: 1 | I175: NA | J175: ETP/año | K175: ETP1A | L175: Selcom ingeniería S.A.S. | N175: 166019.0138 | O175: 158108.9977 | P175: 1 | Q175: =IF(COUNTIF(SolCotizacion!$E:$E,$G175)>0,1,0) -> 1 | R175: 311
A176: Selcom ingeniería S.A.S.S1_Servicio_43 | B176: S1_Servicio_43 | C176: 43 | D176: Servicio | E176: Garantía extendida 1.5NA | F176: Garantía extendida 1.5 | G176: All in one 1.5 | H176: 1 | I176: NA | J176: ETP/2 años | K176: ETP2A | L176: Selcom ingeniería S.A.S. | N176: 298829.9366 | O176: 284594.0579 | P176: 1 | Q176: =IF(COUNTIF(SolCotizacion!$E:$E,$G176)>0,1,0) -> 1 | R176: 313
A177: Selcom ingeniería S.A.S.S1_Servicio_44 | B177: S1_Servicio_44 | C177: 44 | D177: Servicio | E177: Garantía extendida 1.6NA | F177: Garantía extendida 1.6 | G177: Computador de escritorio 1.6 | H177: 1 | I177: NA | J177: ETP/año | K177: ETP1A | L177: Selcom ingeniería S.A.S. | N177: 183342.6469 | O177: 174611.0187 | P177: 1 | Q177: =IF(COUNTIF(SolCotizacion!$E:$E,$G177)>0,1,0) -> 0 | R177: 315
A178: Selcom ingeniería S.A.S.S1_Servicio_45 | B178: S1_Servicio_45 | C178: 45 | D178: Servicio | E178: Garantía extendida 1.6NA | F178: Garantía extendida 1.6 | G178: Computador de escritorio 1.6 | H178: 1 | I178: NA | J178: ETP/2 años | K178: ETP2A | L178: Selcom ingeniería S.A.S. | N178: 330018.9084 | O178: 314300.9109 | P178: 1 | Q178: =IF(COUNTIF(SolCotizacion!$E:$E,$G178)>0,1,0) -> 0 | R178: 317
A179: Selcom ingeniería S.A.S.S1_Servicio_46 | B179: S1_Servicio_46 | C179: 46 | D179: Servicio | E179: Instalación de software y configuración del ETP1 | F179: Instalación de software y configuración del ETP | G179: ETP | H179: 1 | I179: 1 | J179: ETP | K179: Und | L179: Selcom ingeniería S.A.S. | N179: 3759.00217 | O179: 3222.00186 | P179: 1 | Q179: =IF(COUNTIFS(SolCotizacion!$D:$D,$G179,SolCotizacion!$K:$K,$I179)>0,1,0) -> 1 | R179: 319
A180: Selcom ingeniería S.A.S.S1_Servicio_47 | B180: S1_Servicio_47 | C180: 47 | D180: Servicio | E180: Instalación de software y configuración del ETP2 | F180: Instalación de software y configuración del ETP | G180: ETP | H180: 1 | I180: 2 | J180: ETP | K180: Und | L180: Selcom ingeniería S.A.S. | N180: 4833.00279 | O180: 4296.00248 | P180: 1 | Q180: =IF(COUNTIFS(SolCotizacion!$D:$D,$G180,SolCotizacion!$K:$K,$I180)>0,1,0) -> 0 | R180: 321
A181: Selcom ingeniería S.A.S.S1_Servicio_48 | B181: S1_Servicio_48 | C181: 48 | D181: Servicio | E181: Instalación de software y configuración del ETP3 | F181: Instalación de software y configuración del ETP | G181: ETP | H181: 1 | I181: 3 | J181: ETP | K181: Und | L181: Selcom ingeniería S.A.S. | N181: 5907.00341 | O181: 5370.0031 | P181: 1 | Q181: =IF(COUNTIFS(SolCotizacion!$D:$D,$G181,SolCotizacion!$K:$K,$I181)>0,1,0) -> 0 | R181: 323
A182: Selcom ingeniería S.A.S.S1_Servicio_49 | B182: S1_Servicio_49 | C182: 49 | D182: Servicio | E182: Garantía anticipada 1.11 | F182: Garantía anticipada 1.1 | G182: Computador de escritorio 1.1 | H182: 1 | I182: 1 | J182: % adicional por garantía anticipada/ETP | K182: Und | L182: Selcom ingeniería S.A.S. | M182: 0.01 | N182: 18555.34435 | O182: 17668.70829 | P182: 1 | Q182: =IF(SUMIFS(SolCotizacion!$P:$P,SolCotizacion!$E:$E,$G182,SolCotizacion!$K:$K,$I182)>499,1,0) -> 0 | R182: 325 | S182: =IF(SUMIFS(SolCotizacion!$P:$P,SolCotizacion!$E:$E,$G182,SolCotizacion!$K:$K,$I182)>499,4%,0) -> 0
A183: Selcom ingeniería S.A.S.S1_Servicio_50 | B183: S1_Servicio_50 | C183: 50 | D183: Servicio | E183: Garantía anticipada 1.12 | F183: Garantía anticipada 1.1 | G183: Computador de escritorio 1.1 | H183: 1 | I183: 2 | J183: % adicional por garantía anticipada/ETP | K183: Und | L183: Selcom ingeniería S.A.S. | M183: 0.01 | N183: 22524.75117 | O183: 18034.88379 | P183: 1 | Q183: =IF(SUMIFS(SolCotizacion!$P:$P,SolCotizacion!$E:$E,$G183,SolCotizacion!$K:$K,$I183)>499,1,0) -> 0 | R183: 326 | S183: =IF(SUMIFS(SolCotizacion!$P:$P,SolCotizacion!$E:$E,$G183,SolCotizacion!$K:$K,$I183)>499,4%,0) -> 0
A184: Selcom ingeniería S.A.S.S1_Servicio_51 | B184: S1_Servicio_51 | C184: 51 | D184: Servicio | E184: Garantía anticipada 1.13 | F184: Garantía anticipada 1.1 | G184: Computador de escritorio 1.1 | H184: 1 | I184: 3 | J184: % adicional por garantía anticipada/ETP | K184: Und | L184: Selcom ingeniería S.A.S. | M184: 0.01 | N184: 23079.51908 | O184: 22006.22008 | P184: 1 | Q184: =IF(SUMIFS(SolCotizacion!$P:$P,SolCotizacion!$E:$E,$G184,SolCotizacion!$K:$K,$I184)>499,1,0) -> 0 | R184: 327 | S184: =IF(SUMIFS(SolCotizacion!$P:$P,SolCotizacion!$E:$E,$G184,SolCotizacion!$K:$K,$I184)>499,4%,0) -> 0
A185: Selcom ingeniería S.A.S.S1_Servicio_52 | B185: S1_Servicio_52 | C185: 52 | D185: Servicio | E185: Garantía anticipada 1.21 | F185: Garantía anticipada 1.2 | G185: Computador de escritorio 1.2 | H185: 1 | I185: 1 | J185: % adicional por garantía anticipada/ETP | K185: Und | L185: Selcom ingeniería S.A.S. | M185: 0.01 | N185: 27464.98894 | O185: 26152.55997 | P185: 1 | Q185: =IF(SUMIFS(SolCotizacion!$P:$P,SolCotizacion!$E:$E,$G185,SolCotizacion!$K:$K,$I185)>499,1,0) -> 0 | R185: 328 | S185: =IF(SUMIFS(SolCotizacion!$P:$P,SolCotizacion!$E:$E,$G185,SolCotizacion!$K:$K,$I185)>499,4%,0) -> 0
A186: Selcom ingeniería S.A.S.S1_Servicio_53 | B186: S1_Servicio_53 | C186: 53 | D186: Servicio | E186: Garantía anticipada 1.22 | F186: Garantía anticipada 1.2 | G186: Computador de escritorio 1.2 | H186: 1 | I186: 2 | J186: % adicional por garantía anticipada/ETP | K186: Und | L186: Selcom ingeniería S.A.S. | M186: 0.01 | N186: 28017.02257 | O186: 26694.55419 | P186: 1 | Q186: =IF(SUMIFS(SolCotizacion!$P:$P,SolCotizacion!$E:$E,$G186,SolCotizacion!$K:$K,$I186)>499,1,0) -> 0 | R186: 329 | S186: =IF(SUMIFS(SolCotizacion!$P:$P,SolCotizacion!$E:$E,$G186,SolCotizacion!$K:$K,$I186)>499,4%,0) -> 0
A187: Selcom ingeniería S.A.S.S1_Servicio_54 | B187: S1_Servicio_54 | C187: 54 | D187: Servicio | E187: Garantía anticipada 1.23 | F187: Garantía anticipada 1.2 | G187: Computador de escritorio 1.2 | H187: 1 | I187: 3 | J187: % adicional por garantía anticipada/ETP | K187: Und | L187: Selcom ingeniería S.A.S. | M187: 0.01 | N187: 28707.06978 | O187: 27372.13725 | P187: 1 | Q187: =IF(SUMIFS(SolCotizacion!$P:$P,SolCotizacion!$E:$E,$G187,SolCotizacion!$K:$K,$I187)>499,1,0) -> 0 | R187: 330 | S187: =IF(SUMIFS(SolCotizacion!$P:$P,SolCotizacion!$E:$E,$G187,SolCotizacion!$K:$K,$I187)>499,4%,0) -> 0
A188: Selcom ingeniería S.A.S.S1_Servicio_55 | B188: S1_Servicio_55 | C188: 55 | D188: Servicio | E188: Garantía anticipada 1.31 | F188: Garantía anticipada 1.3 | G188: Computador de escritorio Linux 1.3 | H188: 1 | I188: 1 | J188: % adicional por garantía anticipada/ETP | K188: Und | L188: Selcom ingeniería S.A.S. | M188: 0.01 | N188: 18783.56819 | O188: 17885.97441 | P188: 1 | Q188: =IF(SUMIFS(SolCotizacion!$P:$P,SolCotizacion!$E:$E,$G188,SolCotizacion!$K:$K,$I188)>499,1,0) -> 0 | R188: 331 | S188: =IF(SUMIFS(SolCotizacion!$P:$P,SolCotizacion!$E:$E,$G188,SolCotizacion!$K:$K,$I188)>499,4%,0) -> 0
A189: Selcom ingeniería S.A.S.S1_Servicio_56 | B189: S1_Servicio_56 | C189: 56 | D189: Servicio | E189: Garantía anticipada 1.32 | F189: Garantía anticipada 1.3 | G189: Computador de escritorio Linux 1.3 | H189: 1 | I189: 2 | J189: % adicional por garantía anticipada/ETP | K189: Und | L189: Selcom ingeniería S.A.S. | M189: 0.01 | N189: 22801.67597 | O189: 18256.72079 | P189: 1 | Q189: =IF(SUMIFS(SolCotizacion!$P:$P,SolCotizacion!$E:$E,$G189,SolCotizacion!$K:$K,$I189)>499,1,0) -> 0 | R189: 332 | S189: =IF(SUMIFS(SolCotizacion!$P:$P,SolCotizacion!$E:$E,$G189,SolCotizacion!$K:$K,$I189)>499,4%,0) -> 0
A190: Selcom ingeniería S.A.S.S1_Servicio_57 | B190: S1_Servicio_57 | C190: 57 | D190: Servicio | E190: Garantía anticipada 1.33 | F190: Garantía anticipada 1.3 | G190: Computador de escritorio Linux 1.3 | H190: 1 | I190: 3 | J190: % adicional por garantía anticipada/ETP | K190: Und | L190: Selcom ingeniería S.A.S. | M190: 0.01 | N190: 23363.37758 | O190: 22276.87154 | P190: 1 | Q190: =IF(SUMIFS(SolCotizacion!$P:$P,SolCotizacion!$E:$E,$G190,SolCotizacion!$K:$K,$I190)>499,1,0) -> 0 | R190: 333 | S190: =IF(SUMIFS(SolCotizacion!$P:$P,SolCotizacion!$E:$E,$G190,SolCotizacion!$K:$K,$I190)>499,4%,0) -> 0
A191: Selcom ingeniería S.A.S.S1_Servicio_58 | B191: S1_Servicio_58 | C191: 58 | D191: Servicio | E191: Garantía anticipada 1.41 | F191: Garantía anticipada 1.4 | G191: Computador de escritorio 1.4 | H191: 1 | I191: 1 | J191: % adicional por garantía anticipada/ETP | K191: Und | L191: Selcom ingeniería S.A.S. | M191: 0.01 | N191: 29325.42752 | O191: 27924.1193 | P191: 1 | Q191: =IF(SUMIFS(SolCotizacion!$P:$P,SolCotizacion!$E:$E,$G191,SolCotizacion!$K:$K,$I191)>499,1,0) -> 0 | R191: 334 | S191: =IF(SUMIFS(SolCotizacion!$P:$P,SolCotizacion!$E:$E,$G191,SolCotizacion!$K:$K,$I191)>499,4%,0) -> 0
A192: Selcom ingeniería S.A.S.S1_Servicio_59 | B192: S1_Servicio_59 | C192: 59 | D192: Servicio | E192: Garantía anticipada 1.42 | F192: Garantía anticipada 1.4 | G192: Computador de escritorio 1.4 | H192: 1 | I192: 2 | J192: % adicional por garantía anticipada/ETP | K192: Und | L192: Selcom ingeniería S.A.S. | M192: 0.01 | N192: 29914.89486 | O192: 28502.8456 | P192: 1 | Q192: =IF(SUMIFS(SolCotizacion!$P:$P,SolCotizacion!$E:$E,$G192,SolCotizacion!$K:$K,$I192)>499,1,0) -> 0 | R192: 335 | S192: =IF(SUMIFS(SolCotizacion!$P:$P,SolCotizacion!$E:$E,$G192,SolCotizacion!$K:$K,$I192)>499,4%,0) -> 0
A193: Selcom ingeniería S.A.S.S1_Servicio_60 | B193: S1_Servicio_60 | C193: 60 | D193: Servicio | E193: Garantía anticipada 1.43 | F193: Garantía anticipada 1.4 | G193: Computador de escritorio 1.4 | H193: 1 | I193: 3 | J193: % adicional por garantía anticipada/ETP | K193: Und | L193: Selcom ingeniería S.A.S. | M193: 0.01 | N193: 30651.71355 | O193: 29226.29217 | P193: 1 | Q193: =IF(SUMIFS(SolCotizacion!$P:$P,SolCotizacion!$E:$E,$G193,SolCotizacion!$K:$K,$I193)>499,1,0) -> 0 | R193: 336 | S193: =IF(SUMIFS(SolCotizacion!$P:$P,SolCotizacion!$E:$E,$G193,SolCotizacion!$K:$K,$I193)>499,4%,0) -> 0
A194: Selcom ingeniería S.A.S.S1_Servicio_61 | B194: S1_Servicio_61 | C194: 61 | D194: Servicio | E194: Garantía anticipada 1.51 | F194: Garantía anticipada 1.5 | G194: All in one 1.5 | H194: 1 | I194: 1 | J194: % adicional por garantía anticipada/ETP | K194: Und | L194: Selcom ingeniería S.A.S. | M194: 0.01 | N194: 33037.32802 | O194: 31458.71529 | P194: 1 | Q194: =IF(SUMIFS(SolCotizacion!$P:$P,SolCotizacion!$E:$E,$G194,SolCotizacion!$K:$K,$I194)>499,1,0) -> 0 | R194: 337 | S194: =IF(SUMIFS(SolCotizacion!$P:$P,SolCotizacion!$E:$E,$G194,SolCotizacion!$K:$K,$I194)>499,4%,0) -> 0
A195: Selcom ingeniería S.A.S.S1_Servicio_62 | B195: S1_Servicio_62 | C195: 62 | D195: Servicio | E195: Garantía anticipada 1.52 | F195: Garantía anticipada 1.5 | G195: All in one 1.5 | H195: 1 | I195: 2 | J195: % adicional por garantía anticipada/ETP | K195: Und | L195: Selcom ingeniería S.A.S. | M195: 0.01 | N195: 33701.44609 | O195: 32110.68907 | P195: 1 | Q195: =IF(SUMIFS(SolCotizacion!$P:$P,SolCotizacion!$E:$E,$G195,SolCotizacion!$K:$K,$I195)>499,1,0) -> 0 | R195: 338 | S195: =IF(SUMIFS(SolCotizacion!$P:$P,SolCotizacion!$E:$E,$G195,SolCotizacion!$K:$K,$I195)>499,4%,0) -> 0
A196: Selcom ingeniería S.A.S.S1_Servicio_63 | B196: S1_Servicio_63 | C196: 63 | D196: Servicio | E196: Garantía anticipada 1.53 | F196: Garantía anticipada 1.5 | G196: All in one 1.5 | H196: 1 | I196: 3 | J196: % adicional por garantía anticipada/ETP | K196: Und | L196: Selcom ingeniería S.A.S. | M196: 0.01 | N196: 34531.5395 | O196: 32925.63567 | P196: 1 | Q196: =IF(SUMIFS(SolCotizacion!$P:$P,SolCotizacion!$E:$E,$G196,SolCotizacion!$K:$K,$I196)>499,1,0) -> 0 | R196: 339 | S196: =IF(SUMIFS(SolCotizacion!$P:$P,SolCotizacion!$E:$E,$G196,SolCotizacion!$K:$K,$I196)>499,4%,0) -> 0
A197: Selcom ingeniería S.A.S.S1_Servicio_64 | B197: S1_Servicio_64 | C197: 64 | D197: Servicio | E197: Garantía anticipada 1.61 | F197: Garantía anticipada 1.6 | G197: Computador de escritorio 1.6 | H197: 1 | I197: 1 | J197: % adicional por garantía anticipada/ETP | K197: Und | L197: Selcom ingeniería S.A.S. | M197: 0.01 | N197: 36485.67584 | O197: 34742.2537 | P197: 1 | Q197: =IF(SUMIFS(SolCotizacion!$P:$P,SolCotizacion!$E:$E,$G197,SolCotizacion!$K:$K,$I197)>499,1,0) -> 0 | R197: 340 | S197: =IF(SUMIFS(SolCotizacion!$P:$P,SolCotizacion!$E:$E,$G197,SolCotizacion!$K:$K,$I197)>499,4%,0) -> 0
A198: Selcom ingeniería S.A.S.S1_Servicio_65 | B198: S1_Servicio_65 | C198: 65 | D198: Servicio | E198: Garantía anticipada 1.62 | F198: Garantía anticipada 1.6 | G198: Computador de escritorio 1.6 | H198: 1 | I198: 2 | J198: % adicional por garantía anticipada/ETP | K198: Und | L198: Selcom ingeniería S.A.S. | M198: 0.01 | N198: 37219.05865 | O198: 35462.26438 | P198: 1 | Q198: =IF(SUMIFS(SolCotizacion!$P:$P,SolCotizacion!$E:$E,$G198,SolCotizacion!$K:$K,$I198)>499,1,0) -> 0 | R198: 341 | S198: =IF(SUMIFS(SolCotizacion!$P:$P,SolCotizacion!$E:$E,$G198,SolCotizacion!$K:$K,$I198)>499,4%,0) -> 0
A199: Selcom ingeniería S.A.S.S1_Servicio_66 | B199: S1_Servicio_66 | C199: 66 | D199: Servicio | E199: Garantía anticipada 1.63 | F199: Garantía anticipada 1.6 | G199: Computador de escritorio 1.6 | H199: 1 | I199: 3 | J199: % adicional por garantía anticipada/ETP | K199: Und | L199: Selcom ingeniería S.A.S. | M199: 0.01 | N199: 38135.77167 | O199: 36362.33447 | P199: 1 | Q199: =IF(SUMIFS(SolCotizacion!$P:$P,SolCotizacion!$E:$E,$G199,SolCotizacion!$K:$K,$I199)>499,1,0) -> 0 | R199: 342 | S199: =IF(SUMIFS(SolCotizacion!$P:$P,SolCotizacion!$E:$E,$G199,SolCotizacion!$K:$K,$I199)>499,4%,0) -> 0
A200: Sistetronics ltda.S1_ETP_1 | B200: S1_ETP_1 | C200: 1 | D200: ETP | E200: Computador de escritorio 1.11 | F200: Computador de escritorio 1.1 | G200: Computador de escritorio 1.1 | H200: 1 | I200: 1 | J200: unidad | K200: Und | L200: Sistetronics ltda. | N200: 2305379.424 | O200: 1874078.64 | P200: 1 | Q200: 1 | R200: 343
... 4300 more rows

Sheet CSV
A1: Tipo (servicio o artÃ­culo) | B1: Cantidad | C1: CÃ³digo de unidad de medida* | D1: PosiciÃ³n | E1: Precio base | F1: Divisa | G1: DescripciÃ³n | H1: MercancÃ­a
A2: item | B2: 35 | C2: Und | E2: "3326352" | F2: COP | G2: acp01--S1_ETP_13 All in one 1.5
A3: item | B3: 30 | C3: Und | E3: "81696" | F3: COP | G3: acp01--S1_ETP (accesorio)_19 Teclado y mouse alÃ¡mbrico 1.7
A4: item | B4: 30 | C4: Und | E4: "231840" | F4: COP | G4: acp01--S1_ETP (accesorio)_23 Replicador de puertos 1.11
A5: item | B5: 35 | C5: ETP1A | E5: "51552,03" | F5: COP | G5: acp01--S1_Servicio_42 GarantÃ­a extendida 1.5

Sheet Cuadro Totales (hidden)
A1: Precio Unitario | B1: Precio Unitario + Gravamen | C1: Precio Total
B3: Valor Total | C3: 0
A8: Precio Unitario | B8: Precio Unitario + Gravamen | C8: Descuento adicional | D8: Precio con Descuento | E8: Precio Total
D10: Valor Total | E10: 0

Sheet Cuadro Totales IVA (hidden)
A1: Precio Unitario | B1: Precio Unitario + Gravamen | C1: Subtotal | D1: IVA | E1: Precio Total
D3: Valor Total | E3: =SUM(E2) -> 0
A8: Precio Unitario | B8: Precio Unitario + Gravamen | C8: Descuento adicional | D8: Precio con Descuento | E8: Subtotal | F8: IVA | G8: Precio Total
F10: Valor Total | G10: =SUM(G9) -> 0

Sheet minimo (hidden)
C3: Etiquetas de fila | D3: Suma de total
C4: Nex computer S.A. | D4: 127632721
C5: Sistetronics ltda. | D5: 133248641.5
C6: Selcom ingeniería S.A.S. | D6: 136005495.8
C7: Sumimas S.A.S. | D7: 146168273.9
C8: Pear Solutions S.A.S. | D8: 146693826.7
C9: Colombiana de Software y Hardware Colsof S.A. | D9: 146843190.2
C10: AconpiExpress S.A.S. | D10: 162547134.1
C11: I 3NET S.A.S. | D11: 170432712.8
C12: Key Market S.A.S. | D12: 170775855.9
C13: Microhard S.A.S. | D13: 174625744.2
C14: Origin IT S.A.S. | D14: 175306365.8
C15: Uniples S.A. | D15: 178005466.6
C16: Redcomputo Ltda. | D16: 179590781.5
C17: Computel System S.A.S. | D17: 180071536.1
C18: Oficom.co Ltda. | D18: 182558932.5
C19: P&P Systems Colombia S.A.S. | D19: 194942247.9
C20: Micronet S.A.S. | D20: 195732177.2
C21: Prointech Colombia S.A.S. | D21: 201682891
C22: Controles Empresariales Ltda. | D22: 202399130.1
C23: UT CCE Tecnológico | D23: 205414550.7
C24: Total general | D24: 3410677675

Sheet temp (hidden)
A1: llave | B1: Cod_Cat | C1: Consecutivo | D1: Tipo | E1: Productividad de equipo | F1: ETP/servicio | G1: Dependencia | H1: Segmento | I1: Región | J1: Unidad | K1: Unidad_TVEC | L1: Proveedor | M1: Garantia Porcentaje | N1: Rango 1 | O1: Rango 2 | P1: Activo | Q1: elegible | R1: id | S1: Garantia Anticipada | T1: cant | U1: valor base | V1: valor con gravamenes | W1: total | X1: =SUM(IF(FREQUENCY(MATCH(SolCotizacion!$C$28:$C$31,SolCotizacion!$C$28:$C$31,0),MATCH(SolCotizacion!$C$28:$C$31,SolCotizacion!$C$28:$C$31,0))>0,1)) -> 4
A2: Sumimas S.A.S.S1_ETP_13 | B2: S1_ETP_13 | C2: 13 | D2: ETP | E2: All in one 1.51 | F2: All in one 1.5 | G2: All in one 1.5 | H2: 1 | I2: 1 | J2: unidad | K2: Und | L2: Sumimas S.A.S. | N2: 3763632.048 | O2: 3726052.992 | P2: 1 | Q2: 1 | R2: 25 | T2: =SUMIF(ResumenCotizacion!$C:$C,B2,ResumenCotizacion!$P:$P) -> 35 | U2: =IF($J2="GB/ETP",IF($T2>250,$O2,$N2),IF($J2="% adicional por garantía anticipada/ETP",IF($T2>500,$O2,$N2),IF($T2>50,$O2,$N2))) -> 3763632.048 | V2: =ROUND(U2/(1-VLOOKUP("Total porcentaje:",ResumenCotizacion!$F:$H,3,0)),2) -> 3763632.05 | W2: =T2*V2 -> 131727121.8 | X2: =COUNTIF($L:$L,$L2) -> 4
A3: Sumimas S.A.S.S1_ETP (accesorio)_19 | B3: S1_ETP (accesorio)_19 | C3: 19 | D3: ETP (accesorio) | E3: Teclado y mouse alámbrico 1.7NA | F3: Teclado y mouse alámbrico 1.7 | G3: ETP | H3: 1 | I3: NA | J3: unidad | K3: Und | L3: Sumimas S.A.S. | N3: 64756.224 | O3: 64164.48 | P3: 1 | Q3: 1 | R3: 37 | T3: =SUMIF(ResumenCotizacion!$C:$C,B3,ResumenCotizacion!$P:$P) -> 30 | U3: =IF($J3="GB/ETP",IF($T3>250,$O3,$N3),IF($J3="% adicional por garantía anticipada/ETP",IF($T3>500,$O3,$N3),IF($T3>50,$O3,$N3))) -> 64756.224 | V3: =ROUND(U3/(1-VLOOKUP("Total porcentaje:",ResumenCotizacion!$F:$H,3,0)),2) -> 64756.22 | W3: =T3*V3 -> 1942686.6 | X3: 4
A4: Sumimas S.A.S.S1_ETP (accesorio)_23 | B4: S1_ETP (accesorio)_23 | C4: 23 | D4: ETP (accesorio) | E4: Replicador de puertos 1.11NA | F4: Replicador de puertos 1.11 | G4: ETP | H4: 1 | I4: NA | J4: unidad | K4: Und | L4: Sumimas S.A.S. | N4: 416614.272 | O4: 412506.288 | P4: 1 | Q4: 1 | R4: 45 | T4: =SUMIF(ResumenCotizacion!$C:$C,B4,ResumenCotizacion!$P:$P) -> 30 | U4: 416614.272 | V4: =ROUND(U4/(1-VLOOKUP("Total porcentaje:",ResumenCotizacion!$F:$H,3,0)),2) -> 416614.27 | W4: 12498428.1 | X4: 4
A5: Sumimas S.A.S.S1_Servicio_42 | B5: S1_Servicio_42 | C5: 42 | D5: Servicio | E5: Garantía extendida 1.5NA | F5: Garantía extendida 1.5 | G5: All in one 1.5 | H5: 1 | I5: NA | J5: ETP/año | K5: ETP1A | L5: Sumimas S.A.S. | N5: 1.073072 | O5: 1.073072 | P5: 1 | Q5: 1 | R5: 83 | T5: =SUMIF(ResumenCotizacion!$C:$C,B5,ResumenCotizacion!$P:$P) -> 35 | U5: 1.073072 | V5: =ROUND(U5/(1-VLOOKUP("Total porcentaje:",ResumenCotizacion!$F:$H,3,0)),2) -> 1.07 | W5: 37.45 | X5: 4
A6: Nex computer S.A.S1_ETP_13 | B6: S1_ETP_13 | C6: 13 | D6: ETP | E6: All in one 1.51 | F6: All in one 1.5 | G6: All in one 1.5 | H6: 1 | I6: 1 | J6: unidad | K6: Und | L6: Nex computer S.A. | N6: 3326352 | O6: 3259008 | P6: 1 | Q6: 1 | R6: 139 | T6: =SUMIF(ResumenCotizacion!$C:$C,B6,ResumenCotizacion!$P:$P) -> 35 | U6: 3326352 | V6: =ROUND(U6/(1-VLOOKUP("Total porcentaje:",ResumenCotizacion!$F:$H,3,0)),2) -> 3326352 | W6: 116422320 | X6: 4
A7: Nex computer S.A.S1_ETP (accesorio)_19 | B7: S1_ETP (accesorio)_19 | C7: 19 | D7: ETP (accesorio) | E7: Teclado y mouse alámbrico 1.7NA | F7: Teclado y mouse alámbrico 1.7 | G7: ETP | H7: 1 | I7: NA | J7: unidad | K7: Und | L7: Nex computer S.A. | N7: 81696 | O7: 79488 | P7: 1 | Q7: 1 | R7: 151 | T7: =SUMIF(ResumenCotizacion!$C:$C,B7,ResumenCotizacion!$P:$P) -> 30 | U7: 81696 | V7: =ROUND(U7/(1-VLOOKUP("Total porcentaje:",ResumenCotizacion!$F:$H,3,0)),2) -> 81696 | W7: 2450880 | X7: 4
A8: Nex computer S.A.S1_ETP (accesorio)_23 | B8: S1_ETP (accesorio)_23 | C8: 23 | D8: ETP (accesorio) | E8: Replicador de puertos 1.11NA | F8: Replicador de puertos 1.11 | G8: ETP | H8: 1 | I8: NA | J8: unidad | K8: Und | L8: Nex computer S.A. | N8: 231840 | O8: 220800 | P8: 1 | Q8: 1 | R8: 159 | T8: =SUMIF(ResumenCotizacion!$C:$C,B8,ResumenCotizacion!$P:$P) -> 30 | U8: 231840 | V8: =ROUND(U8/(1-VLOOKUP("Total porcentaje:",ResumenCotizacion!$F:$H,3,0)),2) -> 231840 | W8: 6955200 | X8: 4
A9: Nex computer S.A.S1_Servicio_42 | B9: S1_Servicio_42 | C9: 42 | D9: Servicio | E9: Garantía extendida 1.5NA | F9: Garantía extendida 1.5 | G9: All in one 1.5 | H9: 1 | I9: NA | J9: ETP/año | K9: ETP1A | L9: Nex computer S.A. | N9: 51552.02976 | O9: 49404.02852 | P9: 1 | Q9: 1 | R9: 197 | T9: =SUMIF(ResumenCotizacion!$C:$C,B9,ResumenCotizacion!$P:$P) -> 35 | U9: 51552.02976 | V9: =ROUND(U9/(1-VLOOKUP("Total porcentaje:",ResumenCotizacion!$F:$H,3,0)),2) -> 51552.03 | W9: 1804321.05 | X9: 4
A10: Selcom ingeniería S.A.S.S1_ETP_13 | B10: S1_ETP_13 | C10: 13 | D10: ETP | E10: All in one 1.51 | F10: All in one 1.5 | G10: All in one 1.5 | H10: 1 | I10: 1 | J10: unidad | K10: Und | L10: Selcom ingeniería S.A.S. | N10: 3396014.4 | O10: 3233742.96 | P10: 1 | Q10: 1 | R10: 253 | T10: =SUMIF(ResumenCotizacion!$C:$C,B10,ResumenCotizacion!$P:$P) -> 35 | U10: 3396014.4 | V10: =ROUND(U10/(1-VLOOKUP("Total porcentaje:",ResumenCotizacion!$F:$H,3,0)),2) -> 3396014.4 | W10: 118860504 | X10: 4
A11: Selcom ingeniería S.A.S.S1_ETP (accesorio)_19 | B11: S1_ETP (accesorio)_19 | C11: 19 | D11: ETP (accesorio) | E11: Teclado y mouse alámbrico 1.7NA | F11: Teclado y mouse alámbrico 1.7 | G11: ETP | H11: 1 | I11: NA | J11: unidad | K11: Und | L11: Selcom ingeniería S.A.S. | N11: 42007.2 | O11: 40014.48 | P11: 1 | Q11: 1 | R11: 265 | T11: =SUMIF(ResumenCotizacion!$C:$C,B11,ResumenCotizacion!$P:$P) -> 30 | U11: 42007.2 | V11: =ROUND(U11/(1-VLOOKUP("Total porcentaje:",ResumenCotizacion!$F:$H,3,0)),2) -> 42007.2 | W11: 1260216 | X11: 4
A12: Selcom ingeniería S.A.S.S1_ETP (accesorio)_23 | B12: S1_ETP (accesorio)_23 | C12: 23 | D12: ETP (accesorio) | E12: Replicador de puertos 1.11NA | F12: Replicador de puertos 1.11 | G12: ETP | H12: 1 | I12: NA | J12: unidad | K12: Und | L12: Selcom ingeniería S.A.S. | N12: 335803.68 | O12: 319806.72 | P12: 1 | Q12: 1 | R12: 273 | T12: =SUMIF(ResumenCotizacion!$C:$C,B12,ResumenCotizacion!$P:$P) -> 30 | U12: 335803.68 | V12: =ROUND(U12/(1-VLOOKUP("Total porcentaje:",ResumenCotizacion!$F:$H,3,0)),2) -> 335803.68 | W12: 10074110.4 | X12: 4
A13: Selcom ingeniería S.A.S.S1_Servicio_42 | B13: S1_Servicio_42 | C13: 42 | D13: Servicio | E13: Garantía extendida 1.5NA | F13: Garantía extendida 1.5 | G13: All in one 1.5 | H13: 1 | I13: NA | J13: ETP/año | K13: ETP1A | L13: Selcom ingeniería S.A.S. | N13: 166019.0138 | O13: 158108.9977 | P13: 1 | Q13: 1 | R13: 311 | T13: =SUMIF(ResumenCotizacion!$C:$C,B13,ResumenCotizacion!$P:$P) -> 35 | U13: 166019.0138 | V13: =ROUND(U13/(1-VLOOKUP("Total porcentaje:",ResumenCotizacion!$F:$H,3,0)),2) -> 166019.01 | W13: 5810665.35 | X13: 4
A14: Sistetronics ltda.S1_ETP_13 | B14: S1_ETP_13 | C14: 13 | D14: ETP | E14: All in one 1.51 | F14: All in one 1.5 | G14: All in one 1.5 | H14: 1 | I14: 1 | J14: unidad | K14: Und | L14: Sistetronics ltda. | N14: 3469976.88 | O14: 3356749.536 | P14: 1 | Q14: 1 | R14: 367 | T14: =SUMIF(ResumenCotizacion!$C:$C,B14,ResumenCotizacion!$P:$P) -> 35 | U14: 3469976.88 | V14: =ROUND(U14/(1-VLOOKUP("Total porcentaje:",ResumenCotizacion!$F:$H,3,0)),2) -> 3469976.88 | W14: 121449190.8 | X14: 4
A15: Sistetronics ltda.S1_ETP (accesorio)_19 | B15: S1_ETP (accesorio)_19 | C15: 19 | D15: ETP (accesorio) | E15: Teclado y mouse alámbrico 1.7NA | F15: Teclado y mouse alámbrico 1.7 | G15: ETP | H15: 1 | I15: NA | J15: unidad | K15: Und | L15: Sistetronics ltda. | N15: 38640 | O15: 37536 | P15: 1 | Q15: 1 | R15: 379 | T15: =SUMIF(ResumenCotizacion!$C:$C,B15,ResumenCotizacion!$P:$P) -> 30 | U15: 38640 | V15: =ROUND(U15/(1-VLOOKUP("Total porcentaje:",ResumenCotizacion!$F:$H,3,0)),2) -> 38640 | W15: 1159200 | X15: 4
A16: Sistetronics ltda.S1_ETP (accesorio)_23 | B16: S1_ETP (accesorio)_23 | C16: 23 | D16: ETP (accesorio) | E16: Replicador de puertos 1.11NA | F16: Replicador de puertos 1.11 | G16: ETP | H16: 1 | I16: NA | J16: unidad | K16: Und | L16: Sistetronics ltda. | N16: 305808 | O16: 296976 | P16: 1 | Q16: 1 | R16: 387 | T16: =SUMIF(ResumenCotizacion!$C:$C,B16,ResumenCotizacion!$P:$P) -> 30 | U16: 305808 | V16: =ROUND(U16/(1-VLOOKUP("Total porcentaje:",ResumenCotizacion!$F:$H,3,0)),2) -> 305808 | W16: 9174240 | X16: 4
A17: Sistetronics ltda.S1_Servicio_42 | B17: S1_Servicio_42 | C17: 42 | D17: Servicio | E17: Garantía extendida 1.5NA | F17: Garantía extendida 1.5 | G17: All in one 1.5 | H17: 1 | I17: NA | J17: ETP/año | K17: ETP1A | L17: Sistetronics ltda. | N17: 41886.02418 | O17: 41886.02418 | P17: 1 | Q17: 1 | R17: 425 | T17: =SUMIF(ResumenCotizacion!$C:$C,B17,ResumenCotizacion!$P:$P) -> 35 | U17: 41886.02418 | V17: =ROUND(U17/(1-VLOOKUP("Total porcentaje:",ResumenCotizacion!$F:$H,3,0)),2) -> 41886.02 | W17: 1466010.7 | X17: 4
A18: I 3NET S.A.S.S1_ETP_13 | B18: S1_ETP_13 | C18: 13 | D18: ETP | E18: All in one 1.51 | F18: All in one 1.5 | G18: All in one 1.5 | H18: 1 | I18: 1 | J18: unidad | K18: Und | L18: I 3NET S.A.S. | N18: 4335069.273 | O18: 4118315.809 | P18: 1 | Q18: 1 | R18: 481 | T18: =SUMIF(ResumenCotizacion!$C:$C,B18,ResumenCotizacion!$P:$P) -> 35 | U18: 4335069.273 | V18: =ROUND(U18/(1-VLOOKUP("Total porcentaje:",ResumenCotizacion!$F:$H,3,0)),2) -> 4335069.27 | W18: 151727424.4 | X18: 4
A19: I 3NET S.A.S.S1_ETP (accesorio)_19 | B19: S1_ETP (accesorio)_19 | C19: 19 | D19: ETP (accesorio) | E19: Teclado y mouse alámbrico 1.7NA | F19: Teclado y mouse alámbrico 1.7 | G19: ETP | H19: 1 | I19: NA | J19: unidad | K19: Und | L19: I 3NET S.A.S. | N19: 74294.18177 | O19: 70579.47271 | P19: 1 | Q19: 1 | R19: 493 | T19: =SUMIF(ResumenCotizacion!$C:$C,B19,ResumenCotizacion!$P:$P) -> 30 | U19: 74294.18177 | V19: =ROUND(U19/(1-VLOOKUP("Total porcentaje:",ResumenCotizacion!$F:$H,3,0)),2) -> 74294.18 | W19: 2228825.4 | X19: 4
A20: I 3NET S.A.S.S1_ETP (accesorio)_23 | B20: S1_ETP (accesorio)_23 | C20: 23 | D20: ETP (accesorio) | E20: Replicador de puertos 1.11NA | F20: Replicador de puertos 1.11 | G20: ETP | H20: 1 | I20: NA | J20: unidad | K20: Und | L20: I 3NET S.A.S. | N20: 489498.5454 | O20: 465023.6182 | P20: 1 | Q20: 1 | R20: 501 | T20: =SUMIF(ResumenCotizacion!$C:$C,B20,ResumenCotizacion!$P:$P) -> 30 | U20: 489498.5454 | V20: =ROUND(U20/(1-VLOOKUP("Total porcentaje:",ResumenCotizacion!$F:$H,3,0)),2) -> 489498.55 | W20: 14684956.5 | X20: 4
A21: I 3NET S.A.S.S1_Servicio_42 | B21: S1_Servicio_42 | C21: 42 | D21: Servicio | E21: Garantía extendida 1.5NA | F21: Garantía extendida 1.5 | G21: All in one 1.5 | H21: 1 | I21: NA | J21: ETP/año | K21: ETP1A | L21: I 3NET S.A.S. | N21: 51185.89553 | O21: 51185.89553 | P21: 1 | Q21: 1 | R21: 539 | T21: =SUMIF(ResumenCotizacion!$C:$C,B21,ResumenCotizacion!$P:$P) -> 35 | U21: 51185.89553 | V21: =ROUND(U21/(1-VLOOKUP("Total porcentaje:",ResumenCotizacion!$F:$H,3,0)),2) -> 51185.9 | W21: 1791506.5 | X21: 4
A22: Key Market S.A.S.S1_ETP_13 | B22: S1_ETP_13 | C22: 13 | D22: ETP | E22: All in one 1.51 | F22: All in one 1.5 | G22: All in one 1.5 | H22: 1 | I22: 1 | J22: unidad | K22: Und | L22: Key Market S.A.S. | N22: 4294853.543 | O22: 4294853.543 | P22: 1 | Q22: 1 | R22: 595 | T22: =SUMIF(ResumenCotizacion!$C:$C,B22,ResumenCotizacion!$P:$P) -> 35 | U22: 4294853.543 | V22: =ROUND(U22/(1-VLOOKUP("Total porcentaje:",ResumenCotizacion!$F:$H,3,0)),2) -> 4294853.54 | W22: 150319873.9 | X22: 4
A23: Key Market S.A.S.S1_ETP (accesorio)_19 | B23: S1_ETP (accesorio)_19 | C23: 19 | D23: ETP (accesorio) | E23: Teclado y mouse alámbrico 1.7NA | F23: Teclado y mouse alámbrico 1.7 | G23: ETP | H23: 1 | I23: NA | J23: unidad | K23: Und | L23: Key Market S.A.S. | N23: 78559.80008 | O23: 74567.94032 | P23: 1 | Q23: 1 | R23: 607 | T23: =SUMIF(ResumenCotizacion!$C:$C,B23,ResumenCotizacion!$P:$P) -> 30 | U23: 78559.80008 | V23: =ROUND(U23/(1-VLOOKUP("Total porcentaje:",ResumenCotizacion!$F:$H,3,0)),2) -> 78559.8 | W23: 2356794 | X23: 4
A24: Key Market S.A.S.S1_ETP (accesorio)_23 | B24: S1_ETP (accesorio)_23 | C24: 23 | D24: ETP (accesorio) | E24: Replicador de puertos 1.11NA | F24: Replicador de puertos 1.11 | G24: ETP | H24: 1 | I24: NA | J24: unidad | K24: Und | L24: Key Market S.A.S. | N24: 517664.3737 | O24: 517664.3737 | P24: 1 | Q24: 1 | R24: 615 | T24: =SUMIF(ResumenCotizacion!$C:$C,B24,ResumenCotizacion!$P:$P) -> 30 | U24: 517664.3737 | V24: =ROUND(U24/(1-VLOOKUP("Total porcentaje:",ResumenCotizacion!$F:$H,3,0)),2) -> 517664.37 | W24: 15529931.1 | X24: 4
A25: Key Market S.A.S.S1_Servicio_42 | B25: S1_Servicio_42 | C25: 42 | D25: Servicio | E25: Garantía extendida 1.5NA | F25: Garantía extendida 1.5 | G25: All in one 1.5 | H25: 1 | I25: NA | J25: ETP/año | K25: ETP1A | L25: Key Market S.A.S. | N25: 73407.33877 | O25: 73407.33877 | P25: 1 | Q25: 1 | R25: 653 | T25: =SUMIF(ResumenCotizacion!$C:$C,B25,ResumenCotizacion!$P:$P) -> 35 | U25: 73407.33877 | V25: =ROUND(U25/(1-VLOOKUP("Total porcentaje:",ResumenCotizacion!$F:$H,3,0)),2) -> 73407.34 | W25: 2569256.9 | X25: 4
A26: Pear Solutions S.A.S.S1_ETP_13 | B26: S1_ETP_13 | C26: 13 | D26: ETP | E26: All in one 1.51 | F26: All in one 1.5 | G26: All in one 1.5 | H26: 1 | I26: 1 | J26: unidad | K26: Und | L26: Pear Solutions S.A.S. | N26: 3997508.928 | O26: 3995565.888 | P26: 1 | Q26: 1 | R26: 823 | T26: =SUMIF(ResumenCotizacion!$C:$C,B26,ResumenCotizacion!$P:$P) -> 35 | U26: 3997508.928 | V26: =ROUND(U26/(1-VLOOKUP("Total porcentaje:",ResumenCotizacion!$F:$H,3,0)),2) -> 3997508.93 | W26: 139912812.6 | X26: 4
A27: Pear Solutions S.A.S.S1_ETP (accesorio)_19 | B27: S1_ETP (accesorio)_19 | C27: 19 | D27: ETP (accesorio) | E27: Teclado y mouse alámbrico 1.7NA | F27: Teclado y mouse alámbrico 1.7 | G27: ETP | H27: 1 | I27: NA | J27: unidad | K27: Und | L27: Pear Solutions S.A.S. | N27: 29367.504 | O27: 25712.16 | P27: 1 | Q27: 1 | R27: 835 | T27: =SUMIF(ResumenCotizacion!$C:$C,B27,ResumenCotizacion!$P:$P) -> 30 | U27: 29367.504 | V27: =ROUND(U27/(1-VLOOKUP("Total porcentaje:",ResumenCotizacion!$F:$H,3,0)),2) -> 29367.5 | W27: 881025 | X27: 4
A28: Pear Solutions S.A.S.S1_ETP (accesorio)_23 | B28: S1_ETP (accesorio)_23 | C28: 23 | D28: ETP (accesorio) | E28: Replicador de puertos 1.11NA | F28: Replicador de puertos 1.11 | G28: ETP | H28: 1 | I28: NA | J28: unidad | K28: Und | L28: Pear Solutions S.A.S. | N28: 103578.384 | O28: 101792.112 | P28: 1 | Q28: 1 | R28: 843 | T28: =SUMIF(ResumenCotizacion!$C:$C,B28,ResumenCotizacion!$P:$P) -> 30 | U28: 103578.384 | V28: =ROUND(U28/(1-VLOOKUP("Total porcentaje:",ResumenCotizacion!$F:$H,3,0)),2) -> 103578.38 | W28: 3107351.4 | X28: 4
A29: Pear Solutions S.A.S.S1_Servicio_42 | B29: S1_Servicio_42 | C29: 42 | D29: Servicio | E29: Garantía extendida 1.5NA | F29: Garantía extendida 1.5 | G29: All in one 1.5 | H29: 1 | I29: NA | J29: ETP/año | K29: ETP1A | L29: Pear Solutions S.A.S. | N29: 79789.65117 | O29: 79789.65117 | P29: 1 | Q29: 1 | R29: 881 | T29: =SUMIF(ResumenCotizacion!$C:$C,B29,ResumenCotizacion!$P:$P) -> 35 | U29: 79789.65117 | V29: =ROUND(U29/(1-VLOOKUP("Total porcentaje:",ResumenCotizacion!$F:$H,3,0)),2) -> 79789.65 | W29: 2792637.75 | X29: 4
A30: Computel System S.A.S.S1_ETP_13 | B30: S1_ETP_13 | C30: 13 | D30: ETP | E30: All in one 1.51 | F30: All in one 1.5 | G30: All in one 1.5 | H30: 1 | I30: 1 | J30: unidad | K30: Und | L30: Computel System S.A.S. | N30: 4631280 | O30: 4631280 | P30: 1 | Q30: 1 | R30: 937 | T30: =SUMIF(ResumenCotizacion!$C:$C,B30,ResumenCotizacion!$P:$P) -> 35 | U30: 4631280 | V30: =ROUND(U30/(1-VLOOKUP("Total porcentaje:",ResumenCotizacion!$F:$H,3,0)),2) -> 4631280 | W30: 162094800 | X30: 4
A31: Computel System S.A.S.S1_ETP (accesorio)_19 | B31: S1_ETP (accesorio)_19 | C31: 19 | D31: ETP (accesorio) | E31: Teclado y mouse alámbrico 1.7NA | F31: Teclado y mouse alámbrico 1.7 | G31: ETP | H31: 1 | I31: NA | J31: unidad | K31: Und | L31: Computel System S.A.S. | N31: 71760 | O31: 71760 | P31: 1 | Q31: 1 | R31: 949 | T31: =SUMIF(ResumenCotizacion!$C:$C,B31,ResumenCotizacion!$P:$P) -> 30 | U31: 71760 | V31: =ROUND(U31/(1-VLOOKUP("Total porcentaje:",ResumenCotizacion!$F:$H,3,0)),2) -> 71760 | W31: 2152800 | X31: 4
A32: Computel System S.A.S.S1_ETP (accesorio)_23 | B32: S1_ETP (accesorio)_23 | C32: 23 | D32: ETP (accesorio) | E32: Replicador de puertos 1.11NA | F32: Replicador de puertos 1.11 | G32: ETP | H32: 1 | I32: NA | J32: unidad | K32: Und | L32: Computel System S.A.S. | N32: 469200 | O32: 469200 | P32: 1 | Q32: 1 | R32: 957 | T32: =SUMIF(ResumenCotizacion!$C:$C,B32,ResumenCotizacion!$P:$P) -> 30 | U32: 469200 | V32: =ROUND(U32/(1-VLOOKUP("Total porcentaje:",ResumenCotizacion!$F:$H,3,0)),2) -> 469200 | W32: 14076000 | X32: 4
A33: Computel System S.A.S.S1_Servicio_42 | B33: S1_Servicio_42 | C33: 42 | D33: Servicio | E33: Garantía extendida 1.5NA | F33: Garantía extendida 1.5 | G33: All in one 1.5 | H33: 1 | I33: NA | J33: ETP/año | K33: ETP1A | L33: Computel System S.A.S. | N33: 49941.02883 | O33: 49941.02883 | P33: 1 | Q33: 1 | R33: 995 | T33: =SUMIF(ResumenCotizacion!$C:$C,B33,ResumenCotizacion!$P:$P) -> 35 | U33: 49941.02883 | V33: =ROUND(U33/(1-VLOOKUP("Total porcentaje:",ResumenCotizacion!$F:$H,3,0)),2) -> 49941.03 | W33: 1747936.05 | X33: 4
A34: Microhard S.A.S.S1_ETP_13 | B34: S1_ETP_13 | C34: 13 | D34: ETP | E34: All in one 1.51 | F34: All in one 1.5 | G34: All in one 1.5 | H34: 1 | I34: 1 | J34: unidad | K34: Und | L34: Microhard S.A.S. | N34: 3837504 | O34: 3760224 | P34: 1 | Q34: 1 | R34: 1051 | T34: =SUMIF(ResumenCotizacion!$C:$C,B34,ResumenCotizacion!$P:$P) -> 35 | U34: 3837504 | V34: =ROUND(U34/(1-VLOOKUP("Total porcentaje:",ResumenCotizacion!$F:$H,3,0)),2) -> 3837504 | W34: 134312640 | X34: =COUNTIF($L:$L,$L34) -> 4
A35: Microhard S.A.S.S1_ETP (accesorio)_19 | B35: S1_ETP (accesorio)_19 | C35: 19 | D35: ETP (accesorio) | E35: Teclado y mouse alámbrico 1.7NA | F35: Teclado y mouse alámbrico 1.7 | G35: ETP | H35: 1 | I35: NA | J35: unidad | K35: Und | L35: Microhard S.A.S. | N35: 76176 | O35: 73968 | P35: 1 | Q35: 1 | R35: 1063 | T35: =SUMIF(ResumenCotizacion!$C:$C,B35,ResumenCotizacion!$P:$P) -> 30 | U35: 76176 | V35: =ROUND(U35/(1-VLOOKUP("Total porcentaje:",ResumenCotizacion!$F:$H,3,0)),2) -> 76176 | W35: 2285280 | X35: 4
A36: Microhard S.A.S.S1_ETP (accesorio)_23 | B36: S1_ETP (accesorio)_23 | C36: 23 | D36: ETP (accesorio) | E36: Replicador de puertos 1.11NA | F36: Replicador de puertos 1.11 | G36: ETP | H36: 1 | I36: NA | J36: unidad | K36: Und | L36: Microhard S.A.S. | N36: 1024512 | O36: 1004640 | P36: 1 | Q36: 1 | R36: 1071 | T36: =SUMIF(ResumenCotizacion!$C:$C,B36,ResumenCotizacion!$P:$P) -> 30 | U36: 1024512 | V36: =ROUND(U36/(1-VLOOKUP("Total porcentaje:",ResumenCotizacion!$F:$H,3,0)),2) -> 1024512 | W36: 30735360 | X36: 4
A37: Microhard S.A.S.S1_Servicio_42 | B37: S1_Servicio_42 | C37: 42 | D37: Servicio | E37: Garantía extendida 1.5NA | F37: Garantía extendida 1.5 | G37: All in one 1.5 | H37: 1 | I37: NA | J37: ETP/año | K37: ETP1A | L37: Microhard S.A.S. | N37: 208356.1203 | O37: 204060.1178 | P37: 1 | Q37: 1 | R37: 1109 | T37: =SUMIF(ResumenCotizacion!$C:$C,B37,ResumenCotizacion!$P:$P) -> 35 | U37: 208356.1203 | V37: =ROUND(U37/(1-VLOOKUP("Total porcentaje:",ResumenCotizacion!$F:$H,3,0)),2) -> 208356.12 | W37: 7292464.2 | X37: 4
A38: Oficom.co Ltda.S1_ETP_13 | B38: S1_ETP_13 | C38: 13 | D38: ETP | E38: All in one 1.51 | F38: All in one 1.5 | G38: All in one 1.5 | H38: 1 | I38: 1 | J38: unidad | K38: Und | L38: Oficom.co Ltda. | N38: 4724056.371 | O38: 4657748.234 | P38: 1 | Q38: 1 | R38: 1165 | T38: =SUMIF(ResumenCotizacion!$C:$C,B38,ResumenCotizacion!$P:$P) -> 35 | U38: 4724056.371 | V38: =ROUND(U38/(1-VLOOKUP("Total porcentaje:",ResumenCotizacion!$F:$H,3,0)),2) -> 4724056.37 | W38: 165341973 | X38: 4
A39: Oficom.co Ltda.S1_ETP (accesorio)_19 | B39: S1_ETP (accesorio)_19 | C39: 19 | D39: ETP (accesorio) | E39: Teclado y mouse alámbrico 1.7NA | F39: Teclado y mouse alámbrico 1.7 | G39: ETP | H39: 1 | I39: NA | J39: unidad | K39: Und | L39: Oficom.co Ltda. | N39: 28252.90317 | O39: 27334.68385 | P39: 1 | Q39: 1 | R39: 1177 | T39: =SUMIF(ResumenCotizacion!$C:$C,B39,ResumenCotizacion!$P:$P) -> 30 | U39: 28252.90317 | V39: =ROUND(U39/(1-VLOOKUP("Total porcentaje:",ResumenCotizacion!$F:$H,3,0)),2) -> 28252.9 | W39: 847587 | X39: 4
A40: Oficom.co Ltda.S1_ETP (accesorio)_23 | B40: S1_ETP (accesorio)_23 | C40: 23 | D40: ETP (accesorio) | E40: Replicador de puertos 1.11NA | F40: Replicador de puertos 1.11 | G40: ETP | H40: 1 | I40: NA | J40: unidad | K40: Und | L40: Oficom.co Ltda. | N40: 491261.4813 | O40: 482488.9549 | P40: 1 | Q40: 1 | R40: 1185 | T40: =SUMIF(ResumenCotizacion!$C:$C,B40,ResumenCotizacion!$P:$P) -> 30 | U40: 491261.4813 | V40: =ROUND(U40/(1-VLOOKUP("Total porcentaje:",ResumenCotizacion!$F:$H,3,0)),2) -> 491261.48 | W40: 14737844.4 | X40: 4
A41: Oficom.co Ltda.S1_Servicio_42 | B41: S1_Servicio_42 | C41: 42 | D41: Servicio | E41: Garantía extendida 1.5NA | F41: Garantía extendida 1.5 | G41: All in one 1.5 | H41: 1 | I41: NA | J41: ETP/año | K41: ETP1A | L41: Oficom.co Ltda. | N41: 46615.09376 | O41: 46615.09376 | P41: 1 | Q41: 1 | R41: 1223 | T41: =SUMIF(ResumenCotizacion!$C:$C,B41,ResumenCotizacion!$P:$P) -> 35 | U41: 46615.09376 | V41: =ROUND(U41/(1-VLOOKUP("Total porcentaje:",ResumenCotizacion!$F:$H,3,0)),2) -> 46615.09 | W41: 1631528.15 | X41: 4
A42: Uniples S.A.S1_ETP_13 | B42: S1_ETP_13 | C42: 13 | D42: ETP | E42: All in one 1.51 | F42: All in one 1.5 | G42: All in one 1.5 | H42: 1 | I42: 1 | J42: unidad | K42: Und | L42: Uniples S.A. | N42: 4589091.744 | O42: 4489328.784 | P42: 1 | Q42: 1 | R42: 1279 | T42: =SUMIF(ResumenCotizacion!$C:$C,B42,ResumenCotizacion!$P:$P) -> 35 | U42: 4589091.744 | V42: =ROUND(U42/(1-VLOOKUP("Total porcentaje:",ResumenCotizacion!$F:$H,3,0)),2) -> 4589091.74 | W42: 160618210.9 | X42: 4
A43: Uniples S.A.S1_ETP (accesorio)_19 | B43: S1_ETP (accesorio)_19 | C43: 19 | D43: ETP (accesorio) | E43: Teclado y mouse alámbrico 1.7NA | F43: Teclado y mouse alámbrico 1.7 | G43: ETP | H43: 1 | I43: NA | J43: unidad | K43: Und | L43: Uniples S.A. | N43: 69643.632 | O43: 68177.52 | P43: 1 | Q43: 1 | R43: 1291 | T43: =SUMIF(ResumenCotizacion!$C:$C,B43,ResumenCotizacion!$P:$P) -> 30 | U43: 69643.632 | V43: =ROUND(U43/(1-VLOOKUP("Total porcentaje:",ResumenCotizacion!$F:$H,3,0)),2) -> 69643.63 | W43: 2089308.9 | X43: 4
A44: Uniples S.A.S1_ETP (accesorio)_23 | B44: S1_ETP (accesorio)_23 | C44: 23 | D44: ETP (accesorio) | E44: Replicador de puertos 1.11NA | F44: Replicador de puertos 1.11 | G44: ETP | H44: 1 | I44: NA | J44: unidad | K44: Und | L44: Uniples S.A. | N44: 458827.92 | O44: 449167.92 | P44: 1 | Q44: 1 | R44: 1299 | T44: =SUMIF(ResumenCotizacion!$C:$C,B44,ResumenCotizacion!$P:$P) -> 30 | U44: 458827.92 | V44: =ROUND(U44/(1-VLOOKUP("Total porcentaje:",ResumenCotizacion!$F:$H,3,0)),2) -> 458827.92 | W44: 13764837.6 | X44: 4
A45: Uniples S.A.S1_Servicio_42 | B45: S1_Servicio_42 | C45: 42 | D45: Servicio | E45: Garantía extendida 1.5NA | F45: Garantía extendida 1.5 | G45: All in one 1.5 | H45: 1 | I45: NA | J45: ETP/año | K45: ETP1A | L45: Uniples S.A. | N45: 43803.1189 | O45: 43803.1189 | P45: 1 | Q45: 1 | R45: 1337 | T45: =SUMIF(ResumenCotizacion!$C:$C,B45,ResumenCotizacion!$P:$P) -> 35 | U45: 43803.1189 | V45: =ROUND(U45/(1-VLOOKUP("Total porcentaje:",ResumenCotizacion!$F:$H,3,0)),2) -> 43803.12 | W45: 1533109.2 | X45: 4
A46: AconpiExpress S.A.S.S1_ETP_13 | B46: S1_ETP_13 | C46: 13 | D46: ETP | E46: All in one 1.51 | F46: All in one 1.5 | G46: All in one 1.5 | H46: 1 | I46: 1 | J46: unidad | K46: Und | L46: AconpiExpress S.A.S. | N46: 4344230.184 | O46: 4297518.031 | P46: 1 | Q46: 1 | R46: 1507 | T46: =SUMIF(ResumenCotizacion!$C:$C,B46,ResumenCotizacion!$P:$P) -> 35 | U46: 4344230.184 | V46: =ROUND(U46/(1-VLOOKUP("Total porcentaje:",ResumenCotizacion!$F:$H,3,0)),2) -> 4344230.18 | W46: 152048056.3 | X46: 4
A47: AconpiExpress S.A.S.S1_ETP (accesorio)_19 | B47: S1_ETP (accesorio)_19 | C47: 19 | D47: ETP (accesorio) | E47: Teclado y mouse alámbrico 1.7NA | F47: Teclado y mouse alámbrico 1.7 | G47: ETP | H47: 1 | I47: NA | J47: unidad | K47: Und | L47: AconpiExpress S.A.S. | N47: 157872 | O47: 1567680 | P47: 1 | Q47: 1 | R47: 1519 | T47: =SUMIF(ResumenCotizacion!$C:$C,B47,ResumenCotizacion!$P:$P) -> 30 | U47: 157872 | V47: =ROUND(U47/(1-VLOOKUP("Total porcentaje:",ResumenCotizacion!$F:$H,3,0)),2) -> 157872 | W47: 4736160 | X47: 4
A48: AconpiExpress S.A.S.S1_ETP (accesorio)_23 | B48: S1_ETP (accesorio)_23 | C48: 23 | D48: ETP (accesorio) | E48: Replicador de puertos 1.11NA | F48: Replicador de puertos 1.11 | G48: ETP | H48: 1 | I48: NA | J48: unidad | K48: Und | L48: AconpiExpress S.A.S. | N48: 192096 | O48: 190992 | P48: 1 | Q48: 1 | R48: 1527 | T48: =SUMIF(ResumenCotizacion!$C:$C,B48,ResumenCotizacion!$P:$P) -> 30 | U48: 192096 | V48: =ROUND(U48/(1-VLOOKUP("Total porcentaje:",ResumenCotizacion!$F:$H,3,0)),2) -> 192096 | W48: 5762880 | X48: 4
A49: AconpiExpress S.A.S.S1_Servicio_42 | B49: S1_Servicio_42 | C49: 42 | D49: Servicio | E49: Garantía extendida 1.5NA | F49: Garantía extendida 1.5 | G49: All in one 1.5 | H49: 1 | I49: NA | J49: ETP/año | K49: ETP1A | L49: AconpiExpress S.A.S. | N49: 1.08339 | O49: 1.08339 | P49: 1 | Q49: 1 | R49: 1565 | T49: =SUMIF(ResumenCotizacion!$C:$C,B49,ResumenCotizacion!$P:$P) -> 35 | U49: 1.08339 | V49: =ROUND(U49/(1-VLOOKUP("Total porcentaje:",ResumenCotizacion!$F:$H,3,0)),2) -> 1.08 | W49: 37.8 | X49: 4
A50: Redcomputo Ltda.S1_ETP_13 | B50: S1_ETP_13 | C50: 13 | D50: ETP | E50: All in one 1.51 | F50: All in one 1.5 | G50: All in one 1.5 | H50: 1 | I50: 1 | J50: unidad | K50: Und | L50: Redcomputo Ltda. | N50: 4633977.072 | O50: 4585706.88 | P50: 1 | Q50: 1 | R50: 1735 | T50: =SUMIF(ResumenCotizacion!$C:$C,B50,ResumenCotizacion!$P:$P) -> 35 | U50: 4633977.072 | V50: =ROUND(U50/(1-VLOOKUP("Total porcentaje:",ResumenCotizacion!$F:$H,3,0)),2) -> 4633977.07 | W50: 162189197.5 | X50: 4
A51: Redcomputo Ltda.S1_ETP (accesorio)_19 | B51: S1_ETP (accesorio)_19 | C51: 19 | D51: ETP (accesorio) | E51: Teclado y mouse alámbrico 1.7NA | F51: Teclado y mouse alámbrico 1.7 | G51: ETP | H51: 1 | I51: NA | J51: unidad | K51: Und | L51: Redcomputo Ltda. | N51: 89120.4 | O51: 88191.936 | P51: 1 | Q51: 1 | R51: 1747 | T51: =SUMIF(ResumenCotizacion!$C:$C,B51,ResumenCotizacion!$P:$P) -> 30 | U51: 89120.4 | V51: =ROUND(U51/(1-VLOOKUP("Total porcentaje:",ResumenCotizacion!$F:$H,3,0)),2) -> 89120.4 | W51: 2673612 | X51: 4
A52: Redcomputo Ltda.S1_ETP (accesorio)_23 | B52: S1_ETP (accesorio)_23 | C52: 23 | D52: ETP (accesorio) | E52: Replicador de puertos 1.11NA | F52: Replicador de puertos 1.11 | G52: ETP | H52: 1 | I52: NA | J52: unidad | K52: Und | L52: Redcomputo Ltda. | N52: 490931.136 | O52: 485817.408 | P52: 1 | Q52: 1 | R52: 1755 | T52: =SUMIF(ResumenCotizacion!$C:$C,B52,ResumenCotizacion!$P:$P) -> 30 | U52: 490931.136 | V52: =ROUND(U52/(1-VLOOKUP("Total porcentaje:",ResumenCotizacion!$F:$H,3,0)),2) -> 490931.14 | W52: 14727934.2 | X52: 4
A53: Redcomputo Ltda.S1_Servicio_42 | B53: S1_Servicio_42 | C53: 42 | D53: Servicio | E53: Garantía extendida 1.5NA | F53: Garantía extendida 1.5 | G53: All in one 1.5 | H53: 1 | I53: NA | J53: ETP/año | K53: ETP1A | L53: Redcomputo Ltda. | N53: 1.08339 | O53: 1.08339 | P53: 1 | Q53: 1 | R53: 1793 | T53: =SUMIF(ResumenCotizacion!$C:$C,B53,ResumenCotizacion!$P:$P) -> 35 | U53: 1.08339 | V53: =ROUND(U53/(1-VLOOKUP("Total porcentaje:",ResumenCotizacion!$F:$H,3,0)),2) -> 1.08 | W53: 37.8 | X53: 4
A54: Colombiana de Software y Hardware Colsof S.A.S1_ETP_13 | B54: S1_ETP_13 | C54: 13 | D54: ETP | E54: All in one 1.51 | F54: All in one 1.5 | G54: All in one 1.5 | H54: 1 | I54: 1 | J54: unidad | K54: Und | L54: Colombiana de Software y Hardware Colsof S.A. | N54: 3576518.4 | O54: 3503544 | P54: 1 | Q54: 1 | R54: 1849 | T54: =SUMIF(ResumenCotizacion!$C:$C,B54,ResumenCotizacion!$P:$P) -> 35 | U54: 3576518.4 | V54: =ROUND(U54/(1-VLOOKUP("Total porcentaje:",ResumenCotizacion!$F:$H,3,0)),2) -> 3576518.4 | W54: 125178144 | X54: 4
A55: Colombiana de Software y Hardware Colsof S.A.S1_ETP (accesorio)_19 | B55: S1_ETP (accesorio)_19 | C55: 19 | D55: ETP (accesorio) | E55: Teclado y mouse alámbrico 1.7NA | F55: Teclado y mouse alámbrico 1.7 | G55: ETP | H55: 1 | I55: NA | J55: unidad | K55: Und | L55: Colombiana de Software y Hardware Colsof S.A. | N55: 176452.32 | O55: 172820.16 | P55: 1 | Q55: 1 | R55: 1861 | T55: =SUMIF(ResumenCotizacion!$C:$C,B55,ResumenCotizacion!$P:$P) -> 30 | U55: 176452.32 | V55: =ROUND(U55/(1-VLOOKUP("Total porcentaje:",ResumenCotizacion!$F:$H,3,0)),2) -> 176452.32 | W55: 5293569.6 | X55: 4
A56: Colombiana de Software y Hardware Colsof S.A.S1_ETP (accesorio)_23 | B56: S1_ETP (accesorio)_23 | C56: 23 | D56: ETP (accesorio) | E56: Replicador de puertos 1.11NA | F56: Replicador de puertos 1.11 | G56: ETP | H56: 1 | I56: NA | J56: unidad | K56: Und | L56: Colombiana de Software y Hardware Colsof S.A. | N56: 470535.84 | O56: 460831.68 | P56: 1 | Q56: 1 | R56: 1869 | T56: =SUMIF(ResumenCotizacion!$C:$C,B56,ResumenCotizacion!$P:$P) -> 30 | U56: 470535.84 | V56: =ROUND(U56/(1-VLOOKUP("Total porcentaje:",ResumenCotizacion!$F:$H,3,0)),2) -> 470535.84 | W56: 14116075.2 | X56: 4
A57: Colombiana de Software y Hardware Colsof S.A.S1_Servicio_42 | B57: S1_Servicio_42 | C57: 42 | D57: Servicio | E57: Garantía extendida 1.5NA | F57: Garantía extendida 1.5 | G57: All in one 1.5 | H57: 1 | I57: NA | J57: ETP/año | K57: ETP1A | L57: Colombiana de Software y Hardware Colsof S.A. | N57: 64440.0372 | O57: 64440.0372 | P57: 1 | Q57: 1 | R57: 1907 | T57: =SUMIF(ResumenCotizacion!$C:$C,B57,ResumenCotizacion!$P:$P) -> 35 | U57: 64440.0372 | V57: =ROUND(U57/(1-VLOOKUP("Total porcentaje:",ResumenCotizacion!$F:$H,3,0)),2) -> 64440.04 | W57: 2255401.4 | X57: 4
A58: P&P Systems Colombia S.A.S.S1_ETP_13 | B58: S1_ETP_13 | C58: 13 | D58: ETP | E58: All in one 1.51 | F58: All in one 1.5 | G58: All in one 1.5 | H58: 1 | I58: 1 | J58: unidad | K58: Und | L58: P&P Systems Colombia S.A.S. | N58: 5005445.726 | O58: 4900067.921 | P58: 1 | Q58: 1 | R58: 1963 | T58: =SUMIF(ResumenCotizacion!$C:$C,B58,ResumenCotizacion!$P:$P) -> 35 | U58: 5005445.726 | V58: =ROUND(U58/(1-VLOOKUP("Total porcentaje:",ResumenCotizacion!$F:$H,3,0)),2) -> 5005445.73 | W58: 175190600.6 | X58: 4
A59: P&P Systems Colombia S.A.S.S1_ETP (accesorio)_19 | B59: S1_ETP (accesorio)_19 | C59: 19 | D59: ETP (accesorio) | E59: Teclado y mouse alámbrico 1.7NA | F59: Teclado y mouse alámbrico 1.7 | G59: ETP | H59: 1 | I59: NA | J59: unidad | K59: Und | L59: P&P Systems Colombia S.A.S. | N59: 32378.39904 | O59: 31696.74528 | P59: 1 | Q59: 1 | R59: 1975 | T59: =SUMIF(ResumenCotizacion!$C:$C,B59,ResumenCotizacion!$P:$P) -> 30 | U59: 32378.39904 | V59: =ROUND(U59/(1-VLOOKUP("Total porcentaje:",ResumenCotizacion!$F:$H,3,0)),2) -> 32378.4 | W59: 971352 | X59: 4
A60: P&P Systems Colombia S.A.S.S1_ETP (accesorio)_23 | B60: S1_ETP (accesorio)_23 | C60: 23 | D60: ETP (accesorio) | E60: Replicador de puertos 1.11NA | F60: Replicador de puertos 1.11 | G60: ETP | H60: 1 | I60: NA | J60: unidad | K60: Und | L60: P&P Systems Colombia S.A.S. | N60: 559195.585 | O60: 547423.0478 | P60: 1 | Q60: 1 | R60: 1983 | T60: =SUMIF(ResumenCotizacion!$C:$C,B60,ResumenCotizacion!$P:$P) -> 30 | U60: 559195.585 | V60: =ROUND(U60/(1-VLOOKUP("Total porcentaje:",ResumenCotizacion!$F:$H,3,0)),2) -> 559195.58 | W60: 16775867.4 | X60: 4
A61: P&P Systems Colombia S.A.S.S1_Servicio_42 | B61: S1_Servicio_42 | C61: 42 | D61: Servicio | E61: Garantía extendida 1.5NA | F61: Garantía extendida 1.5 | G61: All in one 1.5 | H61: 1 | I61: NA | J61: ETP/año | K61: ETP1A | L61: P&P Systems Colombia S.A.S. | N61: 57269.36769 | O61: 56088.55514 | P61: 1 | Q61: 1 | R61: 2021 | T61: =SUMIF(ResumenCotizacion!$C:$C,B61,ResumenCotizacion!$P:$P) -> 35 | U61: 57269.36769 | V61: =ROUND(U61/(1-VLOOKUP("Total porcentaje:",ResumenCotizacion!$F:$H,3,0)),2) -> 57269.37 | W61: 2004427.95 | X61: 4
A62: Micronet S.A.S.S1_ETP_13 | B62: S1_ETP_13 | C62: 13 | D62: ETP | E62: All in one 1.51 | F62: All in one 1.5 | G62: All in one 1.5 | H62: 1 | I62: 1 | J62: unidad | K62: Und | L62: Micronet S.A.S. | N62: 4910834.88 | O62: 4868794.56 | P62: 1 | Q62: 1 | R62: 2191 | T62: =SUMIF(ResumenCotizacion!$C:$C,B62,ResumenCotizacion!$P:$P) -> 35 | U62: 4910834.88 | V62: =ROUND(U62/(1-VLOOKUP("Total porcentaje:",ResumenCotizacion!$F:$H,3,0)),2) -> 4910834.88 | W62: 171879220.8 | X62: 4
A63: Micronet S.A.S.S1_ETP (accesorio)_19 | B63: S1_ETP (accesorio)_19 | C63: 19 | D63: ETP (accesorio) | E63: Teclado y mouse alámbrico 1.7NA | F63: Teclado y mouse alámbrico 1.7 | G63: ETP | H63: 1 | I63: NA | J63: unidad | K63: Und | L63: Micronet S.A.S. | N63: 115610.88 | O63: 102473.28 | P63: 1 | Q63: 1 | R63: 2203 | T63: =SUMIF(ResumenCotizacion!$C:$C,B63,ResumenCotizacion!$P:$P) -> 30 | U63: 115610.88 | V63: =ROUND(U63/(1-VLOOKUP("Total porcentaje:",ResumenCotizacion!$F:$H,3,0)),2) -> 115610.88 | W63: 3468326.4 | X63: 4
A64: Micronet S.A.S.S1_ETP (accesorio)_23 | B64: S1_ETP (accesorio)_23 | C64: 23 | D64: ETP (accesorio) | E64: Replicador de puertos 1.11NA | F64: Replicador de puertos 1.11 | G64: ETP | H64: 1 | I64: NA | J64: unidad | K64: Und | L64: Micronet S.A.S. | N64: 610898.4 | O64: 606957.12 | P64: 1 | Q64: 1 | R64: 2211 | T64: =SUMIF(ResumenCotizacion!$C:$C,B64,ResumenCotizacion!$P:$P) -> 30 | U64: 610898.4 | V64: =ROUND(U64/(1-VLOOKUP("Total porcentaje:",ResumenCotizacion!$F:$H,3,0)),2) -> 610898.4 | W64: 18326952 | X64: 4
A65: Micronet S.A.S.S1_Servicio_42 | B65: S1_Servicio_42 | C65: 42 | D65: Servicio | E65: Garantía extendida 1.5NA | F65: Garantía extendida 1.5 | G65: All in one 1.5 | H65: 1 | I65: NA | J65: ETP/año | K65: ETP1A | L65: Micronet S.A.S. | N65: 58790.79807 | O65: 57512.73836 | P65: 1 | Q65: 1 | R65: 2249 | T65: =SUMIF(ResumenCotizacion!$C:$C,B65,ResumenCotizacion!$P:$P) -> 35 | U65: 58790.79807 | V65: =ROUND(U65/(1-VLOOKUP("Total porcentaje:",ResumenCotizacion!$F:$H,3,0)),2) -> 58790.8 | W65: 2057678 | X65: 4
A66: Origin IT S.A.S.S1_ETP_13 | B66: S1_ETP_13 | C66: 13 | D66: ETP | E66: All in one 1.51 | F66: All in one 1.5 | G66: All in one 1.5 | H66: 1 | I66: 1 | J66: unidad | K66: Und | L66: Origin IT S.A.S. | N66: 4222800 | O66: 4085904 | P66: 1 | Q66: 1 | R66: 2419 | T66: =SUMIF(ResumenCotizacion!$C:$C,B66,ResumenCotizacion!$P:$P) -> 35 | U66: 4222800 | V66: =ROUND(U66/(1-VLOOKUP("Total porcentaje:",ResumenCotizacion!$F:$H,3,0)),2) -> 4222800 | W66: 147798000 | X66: =COUNTIF($L:$L,$L66) -> 4
A67: Origin IT S.A.S.S1_ETP (accesorio)_19 | B67: S1_ETP (accesorio)_19 | C67: 19 | D67: ETP (accesorio) | E67: Teclado y mouse alámbrico 1.7NA | F67: Teclado y mouse alámbrico 1.7 | G67: ETP | H67: 1 | I67: NA | J67: unidad | K67: Und | L67: Origin IT S.A.S. | N67: 127622.4 | O67: 123427.2 | P67: 1 | Q67: 1 | R67: 2431 | T67: =SUMIF(ResumenCotizacion!$C:$C,B67,ResumenCotizacion!$P:$P) -> 30 | U67: =IF($J67="GB/ETP",IF($T67>250,$O67,$N67),IF($J67="% adicional por garantía anticipada/ETP",IF($T67>500,$O67,$N67),IF($T67>50,$O67,$N67))) -> 127622.4 | V67: =ROUND(U67/(1-VLOOKUP("Total porcentaje:",ResumenCotizacion!$F:$H,3,0)),2) -> 127622.4 | W67: =T67*V67 -> 3828672 | X67: 4
A68: Origin IT S.A.S.S1_ETP (accesorio)_23 | B68: S1_ETP (accesorio)_23 | C68: 23 | D68: ETP (accesorio) | E68: Replicador de puertos 1.11NA | F68: Replicador de puertos 1.11 | G68: ETP | H68: 1 | I68: NA | J68: unidad | K68: Und | L68: Origin IT S.A.S. | N68: 564033.6 | O68: 545596.8 | P68: 1 | Q68: 1 | R68: 2439 | T68: =SUMIF(ResumenCotizacion!$C:$C,B68,ResumenCotizacion!$P:$P) -> 30 | U68: 564033.6 | V68: =ROUND(U68/(1-VLOOKUP("Total porcentaje:",ResumenCotizacion!$F:$H,3,0)),2) -> 564033.6 | W68: 16921008 | X68: 4
A69: Origin IT S.A.S.S1_Servicio_42 | B69: S1_Servicio_42 | C69: 42 | D69: Servicio | E69: Garantía extendida 1.5NA | F69: Garantía extendida 1.5 | G69: All in one 1.5 | H69: 1 | I69: NA | J69: ETP/año | K69: ETP1A | L69: Origin IT S.A.S. | N69: 193105.3115 | O69: 186876.1079 | P69: 1 | Q69: 1 | R69: 2477 | T69: =SUMIF(ResumenCotizacion!$C:$C,B69,ResumenCotizacion!$P:$P) -> 35 | U69: 193105.3115 | V69: =ROUND(U69/(1-VLOOKUP("Total porcentaje:",ResumenCotizacion!$F:$H,3,0)),2) -> 193105.31 | W69: 6758685.85 | X69: 4
A70: UT CCE TecnológicoS1_ETP_13 | B70: S1_ETP_13 | C70: 13 | D70: ETP | E70: All in one 1.51 | F70: All in one 1.5 | G70: All in one 1.5 | H70: 1 | I70: 1 | J70: unidad | K70: Und | L70: UT CCE Tecnológico | N70: 5257509.869 | O70: 5197076.909 | P70: 1 | Q70: 1 | R70: 2533 | T70: =SUMIF(ResumenCotizacion!$C:$C,B70,ResumenCotizacion!$P:$P) -> 35 | U70: 5257509.869 | V70: =ROUND(U70/(1-VLOOKUP("Total porcentaje:",ResumenCotizacion!$F:$H,3,0)),2) -> 5257509.87 | W70: 184012845.5 | X70: 4
A71: UT CCE TecnológicoS1_ETP (accesorio)_19 | B71: S1_ETP (accesorio)_19 | C71: 19 | D71: ETP (accesorio) | E71: Teclado y mouse alámbrico 1.7NA | F71: Teclado y mouse alámbrico 1.7 | G71: ETP | H71: 1 | I71: NA | J71: unidad | K71: Und | L71: UT CCE Tecnológico | N71: 85000.272 | O71: 85000.272 | P71: 1 | Q71: 1 | R71: 2545 | T71: =SUMIF(ResumenCotizacion!$C:$C,B71,ResumenCotizacion!$P:$P) -> 30 | U71: 85000.272 | V71: =ROUND(U71/(1-VLOOKUP("Total porcentaje:",ResumenCotizacion!$F:$H,3,0)),2) -> 85000.27 | W71: 2550008.1 | X71: 4
A72: UT CCE TecnológicoS1_ETP (accesorio)_23 | B72: S1_ETP (accesorio)_23 | C72: 23 | D72: ETP (accesorio) | E72: Replicador de puertos 1.11NA | F72: Replicador de puertos 1.11 | G72: ETP | H72: 1 | I72: NA | J72: unidad | K72: Und | L72: UT CCE Tecnológico | N72: 560069.0256 | O72: 560069.0256 | P72: 1 | Q72: 1 | R72: 2553 | T72: =SUMIF(ResumenCotizacion!$C:$C,B72,ResumenCotizacion!$P:$P) -> 30 | U72: 560069.0256 | V72: =ROUND(U72/(1-VLOOKUP("Total porcentaje:",ResumenCotizacion!$F:$H,3,0)),2) -> 560069.03 | W72: 16802070.9 | X72: 4
A73: UT CCE TecnológicoS1_Servicio_42 | B73: S1_Servicio_42 | C73: 42 | D73: Servicio | E73: Garantía extendida 1.5NA | F73: Garantía extendida 1.5 | G73: All in one 1.5 | H73: 1 | I73: NA | J73: ETP/año | K73: ETP1A | L73: UT CCE Tecnológico | N73: 58560.74794 | O73: 58560.74794 | P73: 1 | Q73: 1 | R73: 2591 | T73: =SUMIF(ResumenCotizacion!$C:$C,B73,ResumenCotizacion!$P:$P) -> 35 | U73: 58560.74794 | V73: =ROUND(U73/(1-VLOOKUP("Total porcentaje:",ResumenCotizacion!$F:$H,3,0)),2) -> 58560.75 | W73: 2049626.25 | X73: 4
A74: Prointech Colombia S.A.S.S1_ETP_13 | B74: S1_ETP_13 | C74: 13 | D74: ETP | E74: All in one 1.51 | F74: All in one 1.5 | G74: All in one 1.5 | H74: 1 | I74: 1 | J74: unidad | K74: Und | L74: Prointech Colombia S.A.S. | N74: 4342599.417 | O74: 4125469.446 | P74: 1 | Q74: 1 | R74: 2647 | T74: =SUMIF(ResumenCotizacion!$C:$C,B74,ResumenCotizacion!$P:$P) -> 35 | U74: 4342599.417 | V74: =ROUND(U74/(1-VLOOKUP("Total porcentaje:",ResumenCotizacion!$F:$H,3,0)),2) -> 4342599.42 | W74: 151990979.7 | X74: 4
A75: Prointech Colombia S.A.S.S1_ETP (accesorio)_19 | B75: S1_ETP (accesorio)_19 | C75: 19 | D75: ETP (accesorio) | E75: Teclado y mouse alámbrico 1.7NA | F75: Teclado y mouse alámbrico 1.7 | G75: ETP | H75: 1 | I75: NA | J75: unidad | K75: Und | L75: Prointech Colombia S.A.S. | N75: 430236.4308 | O75: 408724.6093 | P75: 1 | Q75: 1 | R75: 2659 | T75: =SUMIF(ResumenCotizacion!$C:$C,B75,ResumenCotizacion!$P:$P) -> 30 | U75: 430236.4308 | V75: =ROUND(U75/(1-VLOOKUP("Total porcentaje:",ResumenCotizacion!$F:$H,3,0)),2) -> 430236.43 | W75: 12907092.9 | X75: 4
A76: Prointech Colombia S.A.S.S1_ETP (accesorio)_23 | B76: S1_ETP (accesorio)_23 | C76: 23 | D76: ETP (accesorio) | E76: Replicador de puertos 1.11NA | F76: Replicador de puertos 1.11 | G76: ETP | H76: 1 | I76: NA | J76: unidad | K76: Und | L76: Prointech Colombia S.A.S. | N76: 958960.7194 | O76: 911012.6834 | P76: 1 | Q76: 1 | R76: 2667 | T76: =SUMIF(ResumenCotizacion!$C:$C,B76,ResumenCotizacion!$P:$P) -> 30 | U76: 958960.7194 | V76: =ROUND(U76/(1-VLOOKUP("Total porcentaje:",ResumenCotizacion!$F:$H,3,0)),2) -> 958960.72 | W76: 28768821.6 | X76: 4
A77: Prointech Colombia S.A.S.S1_Servicio_42 | B77: S1_Servicio_42 | C77: 42 | D77: Servicio | E77: Garantía extendida 1.5NA | F77: Garantía extendida 1.5 | G77: All in one 1.5 | H77: 1 | I77: NA | J77: ETP/año | K77: ETP1A | L77: Prointech Colombia S.A.S. | N77: 229028.4809 | O77: 217577.0589 | P77: 1 | Q77: 1 | R77: 2705 | T77: =SUMIF(ResumenCotizacion!$C:$C,B77,ResumenCotizacion!$P:$P) -> 35 | U77: 229028.4809 | V77: =ROUND(U77/(1-VLOOKUP("Total porcentaje:",ResumenCotizacion!$F:$H,3,0)),2) -> 229028.48 | W77: 8015996.8 | X77: 4
A78: Controles Empresariales Ltda.S1_ETP_13 | B78: S1_ETP_13 | C78: 13 | D78: ETP | E78: All in one 1.51 | F78: All in one 1.5 | G78: All in one 1.5 | H78: 1 | I78: 1 | J78: unidad | K78: Und | L78: Controles Empresariales Ltda. | N78: 5283581.712 | O78: 5177910.144 | P78: 1 | Q78: 1 | R78: 2761 | T78: =SUMIF(ResumenCotizacion!$C:$C,B78,ResumenCotizacion!$P:$P) -> 35 | U78: 5283581.712 | V78: =ROUND(U78/(1-VLOOKUP("Total porcentaje:",ResumenCotizacion!$F:$H,3,0)),2) -> 5283581.71 | W78: 184925359.8 | X78: 4
A79: Controles Empresariales Ltda.S1_ETP (accesorio)_19 | B79: S1_ETP (accesorio)_19 | C79: 19 | D79: ETP (accesorio) | E79: Teclado y mouse alámbrico 1.7NA | F79: Teclado y mouse alámbrico 1.7 | G79: ETP | H79: 1 | I79: NA | J79: unidad | K79: Und | L79: Controles Empresariales Ltda. | N79: 80332.56 | O79: 78726.24 | P79: 1 | Q79: 1 | R79: 2773 | T79: =SUMIF(ResumenCotizacion!$C:$C,B79,ResumenCotizacion!$P:$P) -> 30 | U79: 80332.56 | V79: =ROUND(U79/(1-VLOOKUP("Total porcentaje:",ResumenCotizacion!$F:$H,3,0)),2) -> 80332.56 | W79: 2409976.8 | X79: 4
A80: Controles Empresariales Ltda.S1_ETP (accesorio)_23 | B80: S1_ETP (accesorio)_23 | C80: 23 | D80: ETP (accesorio) | E80: Replicador de puertos 1.11NA | F80: Replicador de puertos 1.11 | G80: ETP | H80: 1 | I80: NA | J80: unidad | K80: Und | L80: Controles Empresariales Ltda. | N80: 443677.728 | O80: 434803.776 | P80: 1 | Q80: 1 | R80: 2781 | T80: =SUMIF(ResumenCotizacion!$C:$C,B80,ResumenCotizacion!$P:$P) -> 30 | U80: 443677.728 | V80: =ROUND(U80/(1-VLOOKUP("Total porcentaje:",ResumenCotizacion!$F:$H,3,0)),2) -> 443677.73 | W80: 13310331.9 | X80: 4
A81: Controles Empresariales Ltda.S1_Servicio_42 | B81: S1_Servicio_42 | C81: 42 | D81: Servicio | E81: Garantía extendida 1.5NA | F81: Garantía extendida 1.5 | G81: All in one 1.5 | H81: 1 | I81: NA | J81: ETP/año | K81: ETP1A | L81: Controles Empresariales Ltda. | N81: 50098.90455 | O81: 49096.86166 | P81: 1 | Q81: 1 | R81: 2819 | T81: =SUMIF(ResumenCotizacion!$C:$C,B81,ResumenCotizacion!$P:$P) -> 35 | U81: 50098.90455 | V81: =ROUND(U81/(1-VLOOKUP("Total porcentaje:",ResumenCotizacion!$F:$H,3,0)),2) -> 50098.9 | W81: 1753461.5 | X81: 4

Sheet tempListas (hidden)
A1: Proveedor
A2: AconpiExpress S.A.S.
A3: Colombiana de Software y Hardware Colsof S.A.
A4: Computel System S.A.S.
A5: Controles Empresariales Ltda.
A6: I 3NET S.A.S.
A7: Key Market S.A.S.
A8: Microhard S.A.S.
A9: Micronet S.A.S.
A10: Nex computer S.A.
A11: Oficom.co Ltda.
A12: Origin IT S.A.S.
A13: P&P Systems Colombia S.A.S.
A14: Pear Solutions S.A.S.
A15: Prointech Colombia S.A.S.
A16: Redcomputo Ltda.
A17: Selcom ingeniería S.A.S.
A18: Sistetronics ltda.
A19: Sumimas S.A.S.
A20: Uniples S.A.
A21: UT CCE Tecnológico
